Workbook

Sheet Instrukcija
B2: Apraksts: | C2: https://exceldarbariki.mozello.lv/produkti/vsaoi/
B3: Kā ieslēgt makrosus: | D3: https://exceldarbariki.mozello.lv/produkti/instrukcijas/
B4: Kā atbloķēt makrosus: | D4: https://exceldarbariki.mozello.lv/produkti/ka-atbloket-makrosus/
B6: VSAOI deklarācijas
B30: Algas nodokļa grāmatiņas
B31: Atslkaite nepieciešama par visu parskata periodu
B47: Darbinieku darbnespējas lapas
B48: Atslkaite nepieciešama par visu parskata periodu
B68: Pārskats par darbinieku vidējām stundas likmēm

Sheet Sakuma lapa
H2: Decimālais atdalītais | K2: =MID(1/10,2,1) -> .
H3: Tūkstošu atdalītais
B4: Nolasītais periods | H4: VSAOI kopsavilkuma izskats | K4: Horizontāli
N5: Nodokļu aprēķini var nesakrīt
H6: IIN ar nodokļu grāmatiņu | K6: 0.2 | N6: - ja ir parejošais atvaļinājums, kad IIN samaksa uzreiz, bet Bruto alga sadalīta 2 mēnešos
H7: IIN bez nodokļu grāmatiņas | K7: 0.23 | N7: - ja algas uzskaites programmā nav precīzi dati no EDS par algas grāmatiņām un slimības lapām B
B8: Nolasītais periods | H8: Salīdzināt IIN pret | J8: pārskata mēnesi | N8: - neprecizitāte var būt dēļ manuālas kļūdas
N9: - neprecizitāte var būt ja VG dati netiek regulāri sinhronizēti ar EDS
H10: VSAOI tips | J10: DN | K10: DD
H11: Standarta | J11: 0.105 | K11: 0.2359
B12: Nolasītais periods | H12: Pensionārs | J12: 0.0925 | K12: 0.2077 | P12: Minimālā alga | R12: 700
H13: Izdienas pensija; Invalīds | J13: 0.0976 | K13: 0.2194
H14: BASIL Standarta | J14: 0.0887 | K14: 0.1993 | N14: Datums | O14: DD | P14: DST | Q14: VidSt/D | R14: Min. Likme
H15: BASIL Izdienas pensija | J15: 0.0767 | K15: 0.1724 | N15: 2024-01-31 | O15: 22 | P15: 176 | Q15: =P15/O15 -> 8 | R15: 3.8043
B16: Nolasītais periods | H16: Autoratlīdzību saņēmēji | J16: 0 | K16: 0.1 | N16: =DATE(YEAR(N15),MONTH(N15)+2,0) -> 2024-02-29 | O16: 21 | P16: 168 | Q16: 8 | R16: 4.1667
N17: =DATE(YEAR(N16),MONTH(N16)+2,0) -> 2024-03-31 | O17: 20 | P17: 159 | Q17: 7.95 | R17: 4.1667
B18: Gads | C18: RegNr. | E18: Mēnesis | F18: DokId | N18: 2024-04-30 | O18: 21 | P18: 167 | Q18: =P18/O18 -> 7.952380952 | R18: 3.9773
H19: Atvieglojumi par 1 apgādājamo | K19: 250 | N19: 2024-05-31 | O19: 21 | P19: 167 | Q19: =P19/O19 -> 7.952380952 | R19: 3.8043
H20: Atvieglojumi represētiem | K20: 154 | N20: 2024-06-30 | O20: 19 | P20: 152 | Q20: 8 | R20: 4.375
H21: Atvieglojumi 1. grupas invalidiem | K21: 154 | N21: 2024-07-31 | O21: 23 | P21: 184 | Q21: 8 | R21: 3.8043
H22: Atvieglojumi 2. grupas invalidiem | K22: 154 | N22: 2024-08-31 | O22: 22 | P22: 175 | Q22: 7.954545455 | R22: 3.9773
H23: Atvieglojumi 3. grupas invalidiem | K23: 120 | N23: 2024-09-30 | O23: 21 | P23: 168 | Q23: 8 | R23: 4.1667
N24: 2024-10-31 | O24: 23 | P24: 184 | Q24: 8 | R24: 3.8043
H25: Bruto alga virs kuras nepiemērot NM | K25: 1800 | N25: 2024-11-30 | O25: 20 | P25: 160 | Q25: 8 | R25: 4.1667
N26: 2024-12-31 | O26: 18 | P26: 142 | Q26: 7.888888889 | R26: 3.9773
H27: Radīt lapu - Zinas par DN | N27: Kopā | O27: =SUM(O15:O26) -> 251 | P27: =SUM(P15:P26) -> 2002
H28: Radīt lapu - VSAOI pa darbiniekiem | K28: X | N28: Vidēji | O28: =AVERAGE(O15:O26) -> 20.91666667 | P28: =AVERAGE(P15:P26) -> 166.8333333 | Q28: =AVERAGE(Q15:Q26) -> 7.974849687 | R28: =AVERAGE(R15:R26) -> 4.015908333
N30: Uzņemums

Sheet Gramatiņas dati
B2: Gramatiņa | H2: Apgadajamie | L2: Pensija | O2: Atvieglojumi | R2: Neapliekamais minimums | V2: IIN likmes maiņa
B3: Kods | C3: Persona | D3: Numurs | E3: Datums | F3: No | G3: Līdz | H3: Persona | I3: Veids | J3: No | K3: Līdz | L3: Veids | M3: No | N3: Līdz | O3: Veids | P3: No | Q3: Līdz | R3: Veids | S3: No | T3: Līdz | U3: Summa | V3: Veids | W3: No | X3: Līdz

Sheet Darbnespējas lapas
B2: Darbinieku darbnespējas lapu dati | K2: Darbnespējas | L2: Darbā stāšanās | M2: Datums, no kura | N2: Iepriekšējās | O2: Statusa
B3: Kods | C3: Persona | D3: Numurs | E3: Tips | F3: Veids | G3: Statuss | H3: No | I3: Līdz | J3: Parrēk. Līdz | K3: cēlonis | L3: datums | M3: DNL turpinās | N3: DNL reģ. nr. | O3: datums

Sheet VSAOI data
AR1: =IF(IFERROR(SEARCH(" 9",H1,1),0)=0,ROUND(IF($AF1=0,0,IF($AE1="Nav",($J1+$L1)*0.23-$AO1*0.2,IF($AF1='Sakuma lapa'!$K$7, ($J1+$L1)*0.23-SUM($AJ1:$AK1,$AO1)*IF(AJ1="Ir",0.2,0.23)-IF(AND($J1>='Sakuma lapa'!$K$25,'Sakuma lapa'!$K$25>0),0,$AL1)*0.2, ROUND(IF(($J1+$L1)>1667,(($J1+$L1)-1667)*0.23,0),2) + ROUND(IF(AND((IF(($J1+$L1)<=1667,($J1+$L1),1667)-$AJ1-$AK1-IF(AND($J1>='Sakuma lapa'!$K$25,'Sakuma lapa'!$K$25>0),0,$AL1)-$AO1)<0,($J1+$L1)<=1667),0,1)*IF($AE1="Nav",0.23*IF(($J1+$L1)<=1667,($J1+$L1),1667),$AF1*(IF(($J1+$L1)<=1667,($J1+$L1),1667)-$AJ1-$AK1-IF(AND($J1>='Sakuma lapa'!$K$25,'Sakuma lapa'!$K$25>0),0,$AL1)-$AO1)),2)))),2)*IF(P1=0,0,1),0)*IF(O1*AK1-SUM(AO1:AQ1,AT1)*0.2<0,0,1) -> 0 | AS1: =IF('Sakuma lapa'!$J$8="iepriekšējo mēnesi",IF($C1=$C2,$AM1-$N2,0),$AM1-$N1) -> 0 | AT1: =($J1+$L1)*$AG1 -> 0 | AU1: =($J1+$L1)*$AH1 -> 0 | AW1: =ROUND(IF(($J1+$L1-$AO1-$AJ1-$AK1-$AL1)*$AF1>0,($J1+$L1-$AO1-$AJ1-$AK1-$AL1)*$AF1,0),2) -> 0 | AX1: =IF('Sakuma lapa'!$J$8="iepriekšējo mēnesi",IF($C1=$C2,$AM1-$N2,0),$AM1-$N1) -> 0 | AY1: =($J1+$L1)*$AG1 -> 0 | AZ1: =($J1+$L1)*$AH1 -> 0
B2: Dati no EDS VSAOI deklarācijām | Y2: Tehniskie identifikatori | AE2: Dati no EDS nodokļu grāmatiņām, ņemot verā slimibās lapas B | AM2: Revidenta veiktie aprēķini
B3: DokId | C3: Persona,kods,lapa | D3: Persona2 | E3: Gads | F3: Menesis | G3: Sagatavotajs | H3: Npk | I3: Persona | J3: Ienakumi | K3: VSAOI | L3: Precizetie ienakumi | M3: Precizētie VSAOI | N3: Ieturētais IIN | O3: RN pazīme | P3: Riska nodeva | Q3: Nostrādātas stundas | R3: Pensiju apdroš. | S3: Solidaritātes nodoklis | T3: Preciz.iem. pens.apdr. | U3: Preciz.aprēķ. solidar.nod. | V3: Status | W3: Darba veids | X3: Lapa | Y3: GM | Z3: GMS | AA3: GML | AB3: GMS | AC3: DGM | AD3: DGMS | AE3: Nod. Gram. | AF3: IIN | AG3: DN SOC | AH3: DD SOC | AI3: Apgad. Skaits | AJ3: Par apgād. | AK3: Atviegl. | AL3: Neapl. Min. | AM3: IIN | AN3: IIN starpība | AO3: DN SOC | AP3: DD SOC

Sheet VSAOI transakcijas (hidden)
L2: Taksācijas periods | N2: EDS uzskaites | S2: VG
B4: Nodokļa veids | C4: Transakcijas datums | D4: Aprēķins / Maksājums | E4: Aprēķina pamatojums | F4: Saistības veids | G4: Saistības dok. nr. | H4: Summas veids | I4: Summa | J4: Maks.uzd. / saist.dok.nr. | K4: Papildus informācija | L4: No | M4: Līdz | N4: Termiņš | O4: Gads | P4: Men. | Q4: Nodoklis | R4: EUR | S4: Datums | T4: VgGads | U4: VgMen

Sheet Vidējas likmes
B2: Profesijas/ profesijas grupas | D2: Darba ņēmēja | F2: Kopējie | G2: Kopējās | H2: Vidējā st. likme | I2: Vidējā st. | J2: 80% no vidējās | K2: Atbilstība 80% no vidējās | L2: Atbilstība valsts
B3: kods | C3: nosaukums | D3: pers. kods | E3: uzvārds vārds | F3: ienākumi | G3: stundas | H3: uzņēmumā | I3: likme valstī | J3: st. likmes valstī | K3: st. likmei valstī | L3: min. st. likmei

Sheet Zinas par DN (hidden)
B2: Dati no EDS - Ziņas par darba ņēmējiem
B3: DokId | C3: Precizējums | D3: Sagatavotājs | E3: Personas kods | F3: Persona (1-ais nosaukums) | G3: Persona (deklaracijā, ja atšķiras) | H3: Datums | I3: Ziņu kods | J3: Profesijas kods | K3: Prof. darbības ierobežojums | L3: Valsts kods

Sheet VSAOI vertikāli (hidden)
C2: ='Sakuma lapa'!E16 -> 00:00:00 | D2: =DATE(YEAR(C2),MONTH(C2)+2,0) -> 60 | E2: 1900-03-31 | F2: 1900-04-30 | G2: 1900-05-31 | H2: 1900-06-30 | I2: 1900-07-31 | J2: 1900-08-31 | K2: 1900-09-30 | L2: 1900-10-31 | M2: 1900-11-30 | N2: 1900-12-31 | O2: KOPĀ gads
B3: Bruto alga | C3: =SUMIF('VSAOI data'!$Y:$Y,YEAR(C$2)&MONTH(C$2),'VSAOI data'!$J:$J)+SUMIF('VSAOI data'!$Y:$Y,YEAR(C$2)&MONTH(C$2),'VSAOI data'!$L:$L) -> 0 | D3: =SUMIF('VSAOI data'!$Y:$Y,YEAR(D$2)&MONTH(D$2),'VSAOI data'!$J:$J)+SUMIF('VSAOI data'!$Y:$Y,YEAR(D$2)&MONTH(D$2),'VSAOI data'!$L:$L) -> 0 | E3: =SUMIF('VSAOI data'!$Y:$Y,YEAR(E$2)&MONTH(E$2),'VSAOI data'!$J:$J)+SUMIF('VSAOI data'!$Y:$Y,YEAR(E$2)&MONTH(E$2),'VSAOI data'!$L:$L) -> 0 | F3: =SUMIF('VSAOI data'!$Y:$Y,YEAR(F$2)&MONTH(F$2),'VSAOI data'!$J:$J)+SUMIF('VSAOI data'!$Y:$Y,YEAR(F$2)&MONTH(F$2),'VSAOI data'!$L:$L) -> 0 | G3: =SUMIF('VSAOI data'!$Y:$Y,YEAR(G$2)&MONTH(G$2),'VSAOI data'!$J:$J)+SUMIF('VSAOI data'!$Y:$Y,YEAR(G$2)&MONTH(G$2),'VSAOI data'!$L:$L) -> 0 | H3: =SUMIF('VSAOI data'!$Y:$Y,YEAR(H$2)&MONTH(H$2),'VSAOI data'!$J:$J)+SUMIF('VSAOI data'!$Y:$Y,YEAR(H$2)&MONTH(H$2),'VSAOI data'!$L:$L) -> 0 | I3: =SUMIF('VSAOI data'!$Y:$Y,YEAR(I$2)&MONTH(I$2),'VSAOI data'!$J:$J)+SUMIF('VSAOI data'!$Y:$Y,YEAR(I$2)&MONTH(I$2),'VSAOI data'!$L:$L) -> 0 | J3: =SUMIF('VSAOI data'!$Y:$Y,YEAR(J$2)&MONTH(J$2),'VSAOI data'!$J:$J)+SUMIF('VSAOI data'!$Y:$Y,YEAR(J$2)&MONTH(J$2),'VSAOI data'!$L:$L) -> 0 | K3: =SUMIF('VSAOI data'!$Y:$Y,YEAR(K$2)&MONTH(K$2),'VSAOI data'!$J:$J)+SUMIF('VSAOI data'!$Y:$Y,YEAR(K$2)&MONTH(K$2),'VSAOI data'!$L:$L) -> 0 | L3: =SUMIF('VSAOI data'!$Y:$Y,YEAR(L$2)&MONTH(L$2),'VSAOI data'!$J:$J)+SUMIF('VSAOI data'!$Y:$Y,YEAR(L$2)&MONTH(L$2),'VSAOI data'!$L:$L) -> 0 | M3: =SUMIF('VSAOI data'!$Y:$Y,YEAR(M$2)&MONTH(M$2),'VSAOI data'!$J:$J)+SUMIF('VSAOI data'!$Y:$Y,YEAR(M$2)&MONTH(M$2),'VSAOI data'!$L:$L) -> 0 | N3: =SUMIF('VSAOI data'!$Y:$Y,YEAR(N$2)&MONTH(N$2),'VSAOI data'!$J:$J)+SUMIF('VSAOI data'!$Y:$Y,YEAR(N$2)&MONTH(N$2),'VSAOI data'!$L:$L) -> 0 | O3: =SUM(C3:N3) -> 0
B4: Aprēķinātās DD VSAOI | C4: =SUMIF('VSAOI data'!$Z:$Z,YEAR(C$2)&MONTH(C$2)&"D*",'VSAOI data'!$AP:$AP)+SUMIF('VSAOI data'!$Z:$Z,YEAR(C$2)&MONTH(C$2)&"C*",'VSAOI data'!$AP:$AP)+SUMIF('VSAOI data'!$Z:$Z,YEAR(C$2)&MONTH(C$2)&"A*",'VSAOI data'!$AP:$AP) -> 0 | D4: =SUMIF('VSAOI data'!$Z:$Z,YEAR(D$2)&MONTH(D$2)&"D*",'VSAOI data'!$AP:$AP)+SUMIF('VSAOI data'!$Z:$Z,YEAR(D$2)&MONTH(D$2)&"C*",'VSAOI data'!$AP:$AP)+SUMIF('VSAOI data'!$Z:$Z,YEAR(D$2)&MONTH(D$2)&"A*",'VSAOI data'!$AP:$AP) -> 0 | E4: =SUMIF('VSAOI data'!$Z:$Z,YEAR(E$2)&MONTH(E$2)&"D*",'VSAOI data'!$AP:$AP)+SUMIF('VSAOI data'!$Z:$Z,YEAR(E$2)&MONTH(E$2)&"C*",'VSAOI data'!$AP:$AP)+SUMIF('VSAOI data'!$Z:$Z,YEAR(E$2)&MONTH(E$2)&"A*",'VSAOI data'!$AP:$AP) -> 0 | F4: =SUMIF('VSAOI data'!$Z:$Z,YEAR(F$2)&MONTH(F$2)&"D*",'VSAOI data'!$AP:$AP)+SUMIF('VSAOI data'!$Z:$Z,YEAR(F$2)&MONTH(F$2)&"C*",'VSAOI data'!$AP:$AP)+SUMIF('VSAOI data'!$Z:$Z,YEAR(F$2)&MONTH(F$2)&"A*",'VSAOI data'!$AP:$AP) -> 0 | G4: =SUMIF('VSAOI data'!$Z:$Z,YEAR(G$2)&MONTH(G$2)&"D*",'VSAOI data'!$AP:$AP)+SUMIF('VSAOI data'!$Z:$Z,YEAR(G$2)&MONTH(G$2)&"C*",'VSAOI data'!$AP:$AP)+SUMIF('VSAOI data'!$Z:$Z,YEAR(G$2)&MONTH(G$2)&"A*",'VSAOI data'!$AP:$AP) -> 0 | H4: =SUMIF('VSAOI data'!$Z:$Z,YEAR(H$2)&MONTH(H$2)&"D*",'VSAOI data'!$AP:$AP)+SUMIF('VSAOI data'!$Z:$Z,YEAR(H$2)&MONTH(H$2)&"C*",'VSAOI data'!$AP:$AP)+SUMIF('VSAOI data'!$Z:$Z,YEAR(H$2)&MONTH(H$2)&"A*",'VSAOI data'!$AP:$AP) -> 0 | I4: =SUMIF('VSAOI data'!$Z:$Z,YEAR(I$2)&MONTH(I$2)&"D*",'VSAOI data'!$AP:$AP)+SUMIF('VSAOI data'!$Z:$Z,YEAR(I$2)&MONTH(I$2)&"C*",'VSAOI data'!$AP:$AP)+SUMIF('VSAOI data'!$Z:$Z,YEAR(I$2)&MONTH(I$2)&"A*",'VSAOI data'!$AP:$AP) -> 0 | J4: =SUMIF('VSAOI data'!$Z:$Z,YEAR(J$2)&MONTH(J$2)&"D*",'VSAOI data'!$AP:$AP)+SUMIF('VSAOI data'!$Z:$Z,YEAR(J$2)&MONTH(J$2)&"C*",'VSAOI data'!$AP:$AP)+SUMIF('VSAOI data'!$Z:$Z,YEAR(J$2)&MONTH(J$2)&"A*",'VSAOI data'!$AP:$AP) -> 0 | K4: =SUMIF('VSAOI data'!$Z:$Z,YEAR(K$2)&MONTH(K$2)&"D*",'VSAOI data'!$AP:$AP)+SUMIF('VSAOI data'!$Z:$Z,YEAR(K$2)&MONTH(K$2)&"C*",'VSAOI data'!$AP:$AP)+SUMIF('VSAOI data'!$Z:$Z,YEAR(K$2)&MONTH(K$2)&"A*",'VSAOI data'!$AP:$AP) -> 0 | L4: =SUMIF('VSAOI data'!$Z:$Z,YEAR(L$2)&MONTH(L$2)&"D*",'VSAOI data'!$AP:$AP)+SUMIF('VSAOI data'!$Z:$Z,YEAR(L$2)&MONTH(L$2)&"C*",'VSAOI data'!$AP:$AP)+SUMIF('VSAOI data'!$Z:$Z,YEAR(L$2)&MONTH(L$2)&"A*",'VSAOI data'!$AP:$AP) -> 0 | M4: =SUMIF('VSAOI data'!$Z:$Z,YEAR(M$2)&MONTH(M$2)&"D*",'VSAOI data'!$AP:$AP)+SUMIF('VSAOI data'!$Z:$Z,YEAR(M$2)&MONTH(M$2)&"C*",'VSAOI data'!$AP:$AP)+SUMIF('VSAOI data'!$Z:$Z,YEAR(M$2)&MONTH(M$2)&"A*",'VSAOI data'!$AP:$AP) -> 0 | N4: =SUMIF('VSAOI data'!$Z:$Z,YEAR(N$2)&MONTH(N$2)&"D*",'VSAOI data'!$AP:$AP)+SUMIF('VSAOI data'!$Z:$Z,YEAR(N$2)&MONTH(N$2)&"C*",'VSAOI data'!$AP:$AP)+SUMIF('VSAOI data'!$Z:$Z,YEAR(N$2)&MONTH(N$2)&"A*",'VSAOI data'!$AP:$AP) -> 0 | O4: =SUM(C4:N4) -> 0
B5: Aprēķinātās DŅ VSAOI | C5: =SUMIF('VSAOI data'!$Z:$Z,YEAR(C$2)&MONTH(C$2)&"D*",'VSAOI data'!$AO:$AO)+SUMIF('VSAOI data'!$Z:$Z,YEAR(C$2)&MONTH(C$2)&"C*",'VSAOI data'!$AO:$AO)+SUMIF('VSAOI data'!$Z:$Z,YEAR(C$2)&MONTH(C$2)&"A*",'VSAOI data'!$AO:$AO) -> 0 | D5: =SUMIF('VSAOI data'!$Z:$Z,YEAR(D$2)&MONTH(D$2)&"D*",'VSAOI data'!$AO:$AO)+SUMIF('VSAOI data'!$Z:$Z,YEAR(D$2)&MONTH(D$2)&"C*",'VSAOI data'!$AO:$AO)+SUMIF('VSAOI data'!$Z:$Z,YEAR(D$2)&MONTH(D$2)&"A*",'VSAOI data'!$AO:$AO) -> 0 | E5: =SUMIF('VSAOI data'!$Z:$Z,YEAR(E$2)&MONTH(E$2)&"D*",'VSAOI data'!$AO:$AO)+SUMIF('VSAOI data'!$Z:$Z,YEAR(E$2)&MONTH(E$2)&"C*",'VSAOI data'!$AO:$AO)+SUMIF('VSAOI data'!$Z:$Z,YEAR(E$2)&MONTH(E$2)&"A*",'VSAOI data'!$AO:$AO) -> 0 | F5: =SUMIF('VSAOI data'!$Z:$Z,YEAR(F$2)&MONTH(F$2)&"D*",'VSAOI data'!$AO:$AO)+SUMIF('VSAOI data'!$Z:$Z,YEAR(F$2)&MONTH(F$2)&"C*",'VSAOI data'!$AO:$AO)+SUMIF('VSAOI data'!$Z:$Z,YEAR(F$2)&MONTH(F$2)&"A*",'VSAOI data'!$AO:$AO) -> 0 | G5: =SUMIF('VSAOI data'!$Z:$Z,YEAR(G$2)&MONTH(G$2)&"D*",'VSAOI data'!$AO:$AO)+SUMIF('VSAOI data'!$Z:$Z,YEAR(G$2)&MONTH(G$2)&"C*",'VSAOI data'!$AO:$AO)+SUMIF('VSAOI data'!$Z:$Z,YEAR(G$2)&MONTH(G$2)&"A*",'VSAOI data'!$AO:$AO) -> 0 | H5: =SUMIF('VSAOI data'!$Z:$Z,YEAR(H$2)&MONTH(H$2)&"D*",'VSAOI data'!$AO:$AO)+SUMIF('VSAOI data'!$Z:$Z,YEAR(H$2)&MONTH(H$2)&"C*",'VSAOI data'!$AO:$AO)+SUMIF('VSAOI data'!$Z:$Z,YEAR(H$2)&MONTH(H$2)&"A*",'VSAOI data'!$AO:$AO) -> 0 | I5: =SUMIF('VSAOI data'!$Z:$Z,YEAR(I$2)&MONTH(I$2)&"D*",'VSAOI data'!$AO:$AO)+SUMIF('VSAOI data'!$Z:$Z,YEAR(I$2)&MONTH(I$2)&"C*",'VSAOI data'!$AO:$AO)+SUMIF('VSAOI data'!$Z:$Z,YEAR(I$2)&MONTH(I$2)&"A*",'VSAOI data'!$AO:$AO) -> 0 | J5: =SUMIF('VSAOI data'!$Z:$Z,YEAR(J$2)&MONTH(J$2)&"D*",'VSAOI data'!$AO:$AO)+SUMIF('VSAOI data'!$Z:$Z,YEAR(J$2)&MONTH(J$2)&"C*",'VSAOI data'!$AO:$AO)+SUMIF('VSAOI data'!$Z:$Z,YEAR(J$2)&MONTH(J$2)&"A*",'VSAOI data'!$AO:$AO) -> 0 | K5: =SUMIF('VSAOI data'!$Z:$Z,YEAR(K$2)&MONTH(K$2)&"D*",'VSAOI data'!$AO:$AO)+SUMIF('VSAOI data'!$Z:$Z,YEAR(K$2)&MONTH(K$2)&"C*",'VSAOI data'!$AO:$AO)+SUMIF('VSAOI data'!$Z:$Z,YEAR(K$2)&MONTH(K$2)&"A*",'VSAOI data'!$AO:$AO) -> 0 | L5: =SUMIF('VSAOI data'!$Z:$Z,YEAR(L$2)&MONTH(L$2)&"D*",'VSAOI data'!$AO:$AO)+SUMIF('VSAOI data'!$Z:$Z,YEAR(L$2)&MONTH(L$2)&"C*",'VSAOI data'!$AO:$AO)+SUMIF('VSAOI data'!$Z:$Z,YEAR(L$2)&MONTH(L$2)&"A*",'VSAOI data'!$AO:$AO) -> 0 | M5: =SUMIF('VSAOI data'!$Z:$Z,YEAR(M$2)&MONTH(M$2)&"D*",'VSAOI data'!$AO:$AO)+SUMIF('VSAOI data'!$Z:$Z,YEAR(M$2)&MONTH(M$2)&"C*",'VSAOI data'!$AO:$AO)+SUMIF('VSAOI data'!$Z:$Z,YEAR(M$2)&MONTH(M$2)&"A*",'VSAOI data'!$AO:$AO) -> 0 | N5: =SUMIF('VSAOI data'!$Z:$Z,YEAR(N$2)&MONTH(N$2)&"D*",'VSAOI data'!$AO:$AO)+SUMIF('VSAOI data'!$Z:$Z,YEAR(N$2)&MONTH(N$2)&"C*",'VSAOI data'!$AO:$AO)+SUMIF('VSAOI data'!$Z:$Z,YEAR(N$2)&MONTH(N$2)&"A*",'VSAOI data'!$AO:$AO) -> 0 | O5: 0
B6: starpības | C6: =C7-SUM(C4:C5) -> 0 | D6: =D7-SUM(D4:D5) -> 0 | E6: 0 | F6: 0 | G6: 0 | H6: 0 | I6: 0 | J6: 0 | K6: 0 | L6: 0 | M6: 0 | N6: 0 | O6: 0
B7: KOPĀ VSAOI no VID EDS | C7: =SUMIF('VSAOI data'!$Y:$Y,YEAR(C$2)&MONTH(C$2),'VSAOI data'!$K:$K)+SUMIF('VSAOI data'!$Y:$Y,YEAR(C$2)&MONTH(C$2),'VSAOI data'!$M:$M) -> 0 | D7: =SUMIF('VSAOI data'!$Y:$Y,YEAR(D$2)&MONTH(D$2),'VSAOI data'!$K:$K)+SUMIF('VSAOI data'!$Y:$Y,YEAR(D$2)&MONTH(D$2),'VSAOI data'!$M:$M) -> 0 | E7: =SUMIF('VSAOI data'!$Y:$Y,YEAR(E$2)&MONTH(E$2),'VSAOI data'!$K:$K)+SUMIF('VSAOI data'!$Y:$Y,YEAR(E$2)&MONTH(E$2),'VSAOI data'!$M:$M) -> 0 | F7: =SUMIF('VSAOI data'!$Y:$Y,YEAR(F$2)&MONTH(F$2),'VSAOI data'!$K:$K)+SUMIF('VSAOI data'!$Y:$Y,YEAR(F$2)&MONTH(F$2),'VSAOI data'!$M:$M) -> 0 | G7: =SUMIF('VSAOI data'!$Y:$Y,YEAR(G$2)&MONTH(G$2),'VSAOI data'!$K:$K)+SUMIF('VSAOI data'!$Y:$Y,YEAR(G$2)&MONTH(G$2),'VSAOI data'!$M:$M) -> 0 | H7: =SUMIF('VSAOI data'!$Y:$Y,YEAR(H$2)&MONTH(H$2),'VSAOI data'!$K:$K)+SUMIF('VSAOI data'!$Y:$Y,YEAR(H$2)&MONTH(H$2),'VSAOI data'!$M:$M) -> 0 | I7: =SUMIF('VSAOI data'!$Y:$Y,YEAR(I$2)&MONTH(I$2),'VSAOI data'!$K:$K)+SUMIF('VSAOI data'!$Y:$Y,YEAR(I$2)&MONTH(I$2),'VSAOI data'!$M:$M) -> 0 | J7: =SUMIF('VSAOI data'!$Y:$Y,YEAR(J$2)&MONTH(J$2),'VSAOI data'!$K:$K)+SUMIF('VSAOI data'!$Y:$Y,YEAR(J$2)&MONTH(J$2),'VSAOI data'!$M:$M) -> 0 | K7: =SUMIF('VSAOI data'!$Y:$Y,YEAR(K$2)&MONTH(K$2),'VSAOI data'!$K:$K)+SUMIF('VSAOI data'!$Y:$Y,YEAR(K$2)&MONTH(K$2),'VSAOI data'!$M:$M) -> 0 | L7: =SUMIF('VSAOI data'!$Y:$Y,YEAR(L$2)&MONTH(L$2),'VSAOI data'!$K:$K)+SUMIF('VSAOI data'!$Y:$Y,YEAR(L$2)&MONTH(L$2),'VSAOI data'!$M:$M) -> 0 | M7: =SUMIF('VSAOI data'!$Y:$Y,YEAR(M$2)&MONTH(M$2),'VSAOI data'!$K:$K)+SUMIF('VSAOI data'!$Y:$Y,YEAR(M$2)&MONTH(M$2),'VSAOI data'!$M:$M) -> 0 | N7: =SUMIF('VSAOI data'!$Y:$Y,YEAR(N$2)&MONTH(N$2),'VSAOI data'!$K:$K)+SUMIF('VSAOI data'!$Y:$Y,YEAR(N$2)&MONTH(N$2),'VSAOI data'!$M:$M) -> 0 | O7: 0
B8: Darbinieku skaits | C8: =SUM(C9:C10) -> 0 | D8: =SUM(D9:D10) -> 0 | E8: 0 | F8: 0 | G8: 0 | H8: 0 | I8: 0 | J8: 0 | K8: 0 | L8: 0 | M8: 0 | N8: 0
B9: ar nodokļu grāmatiņu | C9: =COUNTIF('VSAOI data'!$AA:$AA,YEAR(C$2)&MONTH(C$2)&"Tab*Ir")-COUNTIF('VSAOI data'!$AA:$AA,YEAR(C$2)&MONTH(C$2)&"Tab4*Ir") -> 0 | D9: =COUNTIF('VSAOI data'!$AA:$AA,YEAR(D$2)&MONTH(D$2)&"Tab*Ir")-COUNTIF('VSAOI data'!$AA:$AA,YEAR(D$2)&MONTH(D$2)&"Tab4*Ir") -> 0 | E9: =COUNTIF('VSAOI data'!$AA:$AA,YEAR(E$2)&MONTH(E$2)&"Tab*Ir")-COUNTIF('VSAOI data'!$AA:$AA,YEAR(E$2)&MONTH(E$2)&"Tab4*Ir") -> 0 | F9: =COUNTIF('VSAOI data'!$AA:$AA,YEAR(F$2)&MONTH(F$2)&"Tab*Ir")-COUNTIF('VSAOI data'!$AA:$AA,YEAR(F$2)&MONTH(F$2)&"Tab4*Ir") -> 0 | G9: =COUNTIF('VSAOI data'!$AA:$AA,YEAR(G$2)&MONTH(G$2)&"Tab*Ir")-COUNTIF('VSAOI data'!$AA:$AA,YEAR(G$2)&MONTH(G$2)&"Tab4*Ir") -> 0 | H9: =COUNTIF('VSAOI data'!$AA:$AA,YEAR(H$2)&MONTH(H$2)&"Tab*Ir")-COUNTIF('VSAOI data'!$AA:$AA,YEAR(H$2)&MONTH(H$2)&"Tab4*Ir") -> 0 | I9: =COUNTIF('VSAOI data'!$AA:$AA,YEAR(I$2)&MONTH(I$2)&"Tab*Ir")-COUNTIF('VSAOI data'!$AA:$AA,YEAR(I$2)&MONTH(I$2)&"Tab4*Ir") -> 0 | J9: =COUNTIF('VSAOI data'!$AA:$AA,YEAR(J$2)&MONTH(J$2)&"Tab*Ir")-COUNTIF('VSAOI data'!$AA:$AA,YEAR(J$2)&MONTH(J$2)&"Tab4*Ir") -> 0 | K9: =COUNTIF('VSAOI data'!$AA:$AA,YEAR(K$2)&MONTH(K$2)&"Tab*Ir")-COUNTIF('VSAOI data'!$AA:$AA,YEAR(K$2)&MONTH(K$2)&"Tab4*Ir") -> 0 | L9: =COUNTIF('VSAOI data'!$AA:$AA,YEAR(L$2)&MONTH(L$2)&"Tab*Ir")-COUNTIF('VSAOI data'!$AA:$AA,YEAR(L$2)&MONTH(L$2)&"Tab4*Ir") -> 0 | M9: =COUNTIF('VSAOI data'!$AA:$AA,YEAR(M$2)&MONTH(M$2)&"Tab*Ir")-COUNTIF('VSAOI data'!$AA:$AA,YEAR(M$2)&MONTH(M$2)&"Tab4*Ir") -> 0 | N9: =COUNTIF('VSAOI data'!$AA:$AA,YEAR(N$2)&MONTH(N$2)&"Tab*Ir")-COUNTIF('VSAOI data'!$AA:$AA,YEAR(N$2)&MONTH(N$2)&"Tab4*Ir") -> 0
B10: bez nodokļu grāmatiņas | C10: =COUNTIF('VSAOI data'!$AA:$AA,YEAR(C$2)&MONTH(C$2)&"Tab*Nav")-COUNTIF('VSAOI data'!$AA:$AA,YEAR(C$2)&MONTH(C$2)&"Tab4*Nav") -> 0 | D10: =COUNTIF('VSAOI data'!$AA:$AA,YEAR(D$2)&MONTH(D$2)&"Tab*Nav")-COUNTIF('VSAOI data'!$AA:$AA,YEAR(D$2)&MONTH(D$2)&"Tab4*Nav") -> 0 | E10: =COUNTIF('VSAOI data'!$AA:$AA,YEAR(E$2)&MONTH(E$2)&"Tab*Nav")-COUNTIF('VSAOI data'!$AA:$AA,YEAR(E$2)&MONTH(E$2)&"Tab4*Nav") -> 0 | F10: =COUNTIF('VSAOI data'!$AA:$AA,YEAR(F$2)&MONTH(F$2)&"Tab*Nav")-COUNTIF('VSAOI data'!$AA:$AA,YEAR(F$2)&MONTH(F$2)&"Tab4*Nav") -> 0 | G10: =COUNTIF('VSAOI data'!$AA:$AA,YEAR(G$2)&MONTH(G$2)&"Tab*Nav")-COUNTIF('VSAOI data'!$AA:$AA,YEAR(G$2)&MONTH(G$2)&"Tab4*Nav") -> 0 | H10: =COUNTIF('VSAOI data'!$AA:$AA,YEAR(H$2)&MONTH(H$2)&"Tab*Nav")-COUNTIF('VSAOI data'!$AA:$AA,YEAR(H$2)&MONTH(H$2)&"Tab4*Nav") -> 0 | I10: =COUNTIF('VSAOI data'!$AA:$AA,YEAR(I$2)&MONTH(I$2)&"Tab*Nav")-COUNTIF('VSAOI data'!$AA:$AA,YEAR(I$2)&MONTH(I$2)&"Tab4*Nav") -> 0 | J10: =COUNTIF('VSAOI data'!$AA:$AA,YEAR(J$2)&MONTH(J$2)&"Tab*Nav")-COUNTIF('VSAOI data'!$AA:$AA,YEAR(J$2)&MONTH(J$2)&"Tab4*Nav") -> 0 | K10: =COUNTIF('VSAOI data'!$AA:$AA,YEAR(K$2)&MONTH(K$2)&"Tab*Nav")-COUNTIF('VSAOI data'!$AA:$AA,YEAR(K$2)&MONTH(K$2)&"Tab4*Nav") -> 0 | L10: =COUNTIF('VSAOI data'!$AA:$AA,YEAR(L$2)&MONTH(L$2)&"Tab*Nav")-COUNTIF('VSAOI data'!$AA:$AA,YEAR(L$2)&MONTH(L$2)&"Tab4*Nav") -> 0 | M10: =COUNTIF('VSAOI data'!$AA:$AA,YEAR(M$2)&MONTH(M$2)&"Tab*Nav")-COUNTIF('VSAOI data'!$AA:$AA,YEAR(M$2)&MONTH(M$2)&"Tab4*Nav") -> 0 | N10: =COUNTIF('VSAOI data'!$AA:$AA,YEAR(N$2)&MONTH(N$2)&"Tab*Nav")-COUNTIF('VSAOI data'!$AA:$AA,YEAR(N$2)&MONTH(N$2)&"Tab4*Nav") -> 0
B11: Apgādājamo skaits | C11: =SUMIF('VSAOI data'!$Z:$Z,YEAR(C$2)&MONTH(C$2)&"D*",'VSAOI data'!$AI:$AI)+SUMIF('VSAOI data'!$Z:$Z,YEAR(C$2)&MONTH(C$2)&"C*",'VSAOI data'!$AI:$AI)+SUMIF('VSAOI data'!$Z:$Z,YEAR(C$2)&MONTH(C$2)&"A*",'VSAOI data'!$AI:$AI) -> 0 | D11: =SUMIF('VSAOI data'!$Z:$Z,YEAR(D$2)&MONTH(D$2)&"D*",'VSAOI data'!$AI:$AI)+SUMIF('VSAOI data'!$Z:$Z,YEAR(D$2)&MONTH(D$2)&"C*",'VSAOI data'!$AI:$AI)+SUMIF('VSAOI data'!$Z:$Z,YEAR(D$2)&MONTH(D$2)&"A*",'VSAOI data'!$AI:$AI) -> 0 | E11: =SUMIF('VSAOI data'!$Z:$Z,YEAR(E$2)&MONTH(E$2)&"D*",'VSAOI data'!$AI:$AI)+SUMIF('VSAOI data'!$Z:$Z,YEAR(E$2)&MONTH(E$2)&"C*",'VSAOI data'!$AI:$AI)+SUMIF('VSAOI data'!$Z:$Z,YEAR(E$2)&MONTH(E$2)&"A*",'VSAOI data'!$AI:$AI) -> 0 | F11: =SUMIF('VSAOI data'!$Z:$Z,YEAR(F$2)&MONTH(F$2)&"D*",'VSAOI data'!$AI:$AI)+SUMIF('VSAOI data'!$Z:$Z,YEAR(F$2)&MONTH(F$2)&"C*",'VSAOI data'!$AI:$AI)+SUMIF('VSAOI data'!$Z:$Z,YEAR(F$2)&MONTH(F$2)&"A*",'VSAOI data'!$AI:$AI) -> 0 | G11: =SUMIF('VSAOI data'!$Z:$Z,YEAR(G$2)&MONTH(G$2)&"D*",'VSAOI data'!$AI:$AI)+SUMIF('VSAOI data'!$Z:$Z,YEAR(G$2)&MONTH(G$2)&"C*",'VSAOI data'!$AI:$AI)+SUMIF('VSAOI data'!$Z:$Z,YEAR(G$2)&MONTH(G$2)&"A*",'VSAOI data'!$AI:$AI) -> 0 | H11: =SUMIF('VSAOI data'!$Z:$Z,YEAR(H$2)&MONTH(H$2)&"D*",'VSAOI data'!$AI:$AI)+SUMIF('VSAOI data'!$Z:$Z,YEAR(H$2)&MONTH(H$2)&"C*",'VSAOI data'!$AI:$AI)+SUMIF('VSAOI data'!$Z:$Z,YEAR(H$2)&MONTH(H$2)&"A*",'VSAOI data'!$AI:$AI) -> 0 | I11: =SUMIF('VSAOI data'!$Z:$Z,YEAR(I$2)&MONTH(I$2)&"D*",'VSAOI data'!$AI:$AI)+SUMIF('VSAOI data'!$Z:$Z,YEAR(I$2)&MONTH(I$2)&"C*",'VSAOI data'!$AI:$AI)+SUMIF('VSAOI data'!$Z:$Z,YEAR(I$2)&MONTH(I$2)&"A*",'VSAOI data'!$AI:$AI) -> 0 | J11: =SUMIF('VSAOI data'!$Z:$Z,YEAR(J$2)&MONTH(J$2)&"D*",'VSAOI data'!$AI:$AI)+SUMIF('VSAOI data'!$Z:$Z,YEAR(J$2)&MONTH(J$2)&"C*",'VSAOI data'!$AI:$AI)+SUMIF('VSAOI data'!$Z:$Z,YEAR(J$2)&MONTH(J$2)&"A*",'VSAOI data'!$AI:$AI) -> 0 | K11: =SUMIF('VSAOI data'!$Z:$Z,YEAR(K$2)&MONTH(K$2)&"D*",'VSAOI data'!$AI:$AI)+SUMIF('VSAOI data'!$Z:$Z,YEAR(K$2)&MONTH(K$2)&"C*",'VSAOI data'!$AI:$AI)+SUMIF('VSAOI data'!$Z:$Z,YEAR(K$2)&MONTH(K$2)&"A*",'VSAOI data'!$AI:$AI) -> 0 | L11: =SUMIF('VSAOI data'!$Z:$Z,YEAR(L$2)&MONTH(L$2)&"D*",'VSAOI data'!$AI:$AI)+SUMIF('VSAOI data'!$Z:$Z,YEAR(L$2)&MONTH(L$2)&"C*",'VSAOI data'!$AI:$AI)+SUMIF('VSAOI data'!$Z:$Z,YEAR(L$2)&MONTH(L$2)&"A*",'VSAOI data'!$AI:$AI) -> 0 | M11: =SUMIF('VSAOI data'!$Z:$Z,YEAR(M$2)&MONTH(M$2)&"D*",'VSAOI data'!$AI:$AI)+SUMIF('VSAOI data'!$Z:$Z,YEAR(M$2)&MONTH(M$2)&"C*",'VSAOI data'!$AI:$AI)+SUMIF('VSAOI data'!$Z:$Z,YEAR(M$2)&MONTH(M$2)&"A*",'VSAOI data'!$AI:$AI) -> 0 | N11: =SUMIF('VSAOI data'!$Z:$Z,YEAR(N$2)&MONTH(N$2)&"D*",'VSAOI data'!$AI:$AI)+SUMIF('VSAOI data'!$Z:$Z,YEAR(N$2)&MONTH(N$2)&"C*",'VSAOI data'!$AI:$AI)+SUMIF('VSAOI data'!$Z:$Z,YEAR(N$2)&MONTH(N$2)&"A*",'VSAOI data'!$AI:$AI) -> 0
B12: ="Ieturētais IIN par "&'Sakuma lapa'!$J$8 -> Ieturētais IIN par pārskata mēnesi | C12: =SUMIF('VSAOI data'!$Y:$Y,YEAR(C$2)&MONTH(C$2),'VSAOI data'!$N:$N) -> 0 | D12: =SUMIF('VSAOI data'!$Y:$Y,YEAR(D$2)&MONTH(D$2),'VSAOI data'!$N:$N) -> 0 | E12: =SUMIF('VSAOI data'!$Y:$Y,YEAR(E$2)&MONTH(E$2),'VSAOI data'!$N:$N) -> 0 | F12: =SUMIF('VSAOI data'!$Y:$Y,YEAR(F$2)&MONTH(F$2),'VSAOI data'!$N:$N) -> 0 | G12: =SUMIF('VSAOI data'!$Y:$Y,YEAR(G$2)&MONTH(G$2),'VSAOI data'!$N:$N) -> 0 | H12: =SUMIF('VSAOI data'!$Y:$Y,YEAR(H$2)&MONTH(H$2),'VSAOI data'!$N:$N) -> 0 | I12: =SUMIF('VSAOI data'!$Y:$Y,YEAR(I$2)&MONTH(I$2),'VSAOI data'!$N:$N) -> 0 | J12: =SUMIF('VSAOI data'!$Y:$Y,YEAR(J$2)&MONTH(J$2),'VSAOI data'!$N:$N) -> 0 | K12: =SUMIF('VSAOI data'!$Y:$Y,YEAR(K$2)&MONTH(K$2),'VSAOI data'!$N:$N) -> 0 | L12: =SUMIF('VSAOI data'!$Y:$Y,YEAR(L$2)&MONTH(L$2),'VSAOI data'!$N:$N) -> 0 | M12: =SUMIF('VSAOI data'!$Y:$Y,YEAR(M$2)&MONTH(M$2),'VSAOI data'!$N:$N) -> 0 | N12: =SUMIF('VSAOI data'!$Y:$Y,YEAR(N$2)&MONTH(N$2),'VSAOI data'!$N:$N) -> 0 | O12: 0
B13: Pārrēķinātais IIN par tekošo mēnesi | C13: =SUMIF('VSAOI data'!$Z:$Z,YEAR(C$2)&MONTH(C$2)&"D*",'VSAOI data'!$AM:$AM)+SUMIF('VSAOI data'!$Z:$Z,YEAR(C$2)&MONTH(C$2)&"C*",'VSAOI data'!$AM:$AM)+SUMIF('VSAOI data'!$Z:$Z,YEAR(C$2)&MONTH(C$2)&"A*",'VSAOI data'!$AM:$AM) -> 0 | D13: =SUMIF('VSAOI data'!$Z:$Z,YEAR(D$2)&MONTH(D$2)&"D*",'VSAOI data'!$AM:$AM)+SUMIF('VSAOI data'!$Z:$Z,YEAR(D$2)&MONTH(D$2)&"C*",'VSAOI data'!$AM:$AM)+SUMIF('VSAOI data'!$Z:$Z,YEAR(D$2)&MONTH(D$2)&"A*",'VSAOI data'!$AM:$AM) -> 0 | E13: =SUMIF('VSAOI data'!$Z:$Z,YEAR(E$2)&MONTH(E$2)&"D*",'VSAOI data'!$AM:$AM)+SUMIF('VSAOI data'!$Z:$Z,YEAR(E$2)&MONTH(E$2)&"C*",'VSAOI data'!$AM:$AM)+SUMIF('VSAOI data'!$Z:$Z,YEAR(E$2)&MONTH(E$2)&"A*",'VSAOI data'!$AM:$AM) -> 0 | F13: =SUMIF('VSAOI data'!$Z:$Z,YEAR(F$2)&MONTH(F$2)&"D*",'VSAOI data'!$AM:$AM)+SUMIF('VSAOI data'!$Z:$Z,YEAR(F$2)&MONTH(F$2)&"C*",'VSAOI data'!$AM:$AM)+SUMIF('VSAOI data'!$Z:$Z,YEAR(F$2)&MONTH(F$2)&"A*",'VSAOI data'!$AM:$AM) -> 0 | G13: =SUMIF('VSAOI data'!$Z:$Z,YEAR(G$2)&MONTH(G$2)&"D*",'VSAOI data'!$AM:$AM)+SUMIF('VSAOI data'!$Z:$Z,YEAR(G$2)&MONTH(G$2)&"C*",'VSAOI data'!$AM:$AM)+SUMIF('VSAOI data'!$Z:$Z,YEAR(G$2)&MONTH(G$2)&"A*",'VSAOI data'!$AM:$AM) -> 0 | H13: =SUMIF('VSAOI data'!$Z:$Z,YEAR(H$2)&MONTH(H$2)&"D*",'VSAOI data'!$AM:$AM)+SUMIF('VSAOI data'!$Z:$Z,YEAR(H$2)&MONTH(H$2)&"C*",'VSAOI data'!$AM:$AM)+SUMIF('VSAOI data'!$Z:$Z,YEAR(H$2)&MONTH(H$2)&"A*",'VSAOI data'!$AM:$AM) -> 0 | I13: =SUMIF('VSAOI data'!$Z:$Z,YEAR(I$2)&MONTH(I$2)&"D*",'VSAOI data'!$AM:$AM)+SUMIF('VSAOI data'!$Z:$Z,YEAR(I$2)&MONTH(I$2)&"C*",'VSAOI data'!$AM:$AM)+SUMIF('VSAOI data'!$Z:$Z,YEAR(I$2)&MONTH(I$2)&"A*",'VSAOI data'!$AM:$AM) -> 0 | J13: =SUMIF('VSAOI data'!$Z:$Z,YEAR(J$2)&MONTH(J$2)&"D*",'VSAOI data'!$AM:$AM)+SUMIF('VSAOI data'!$Z:$Z,YEAR(J$2)&MONTH(J$2)&"C*",'VSAOI data'!$AM:$AM)+SUMIF('VSAOI data'!$Z:$Z,YEAR(J$2)&MONTH(J$2)&"A*",'VSAOI data'!$AM:$AM) -> 0 | K13: =SUMIF('VSAOI data'!$Z:$Z,YEAR(K$2)&MONTH(K$2)&"D*",'VSAOI data'!$AM:$AM)+SUMIF('VSAOI data'!$Z:$Z,YEAR(K$2)&MONTH(K$2)&"C*",'VSAOI data'!$AM:$AM)+SUMIF('VSAOI data'!$Z:$Z,YEAR(K$2)&MONTH(K$2)&"A*",'VSAOI data'!$AM:$AM) -> 0 | L13: =SUMIF('VSAOI data'!$Z:$Z,YEAR(L$2)&MONTH(L$2)&"D*",'VSAOI data'!$AM:$AM)+SUMIF('VSAOI data'!$Z:$Z,YEAR(L$2)&MONTH(L$2)&"C*",'VSAOI data'!$AM:$AM)+SUMIF('VSAOI data'!$Z:$Z,YEAR(L$2)&MONTH(L$2)&"A*",'VSAOI data'!$AM:$AM) -> 0 | M13: =SUMIF('VSAOI data'!$Z:$Z,YEAR(M$2)&MONTH(M$2)&"D*",'VSAOI data'!$AM:$AM)+SUMIF('VSAOI data'!$Z:$Z,YEAR(M$2)&MONTH(M$2)&"C*",'VSAOI data'!$AM:$AM)+SUMIF('VSAOI data'!$Z:$Z,YEAR(M$2)&MONTH(M$2)&"A*",'VSAOI data'!$AM:$AM) -> 0 | N13: =SUMIF('VSAOI data'!$Z:$Z,YEAR(N$2)&MONTH(N$2)&"D*",'VSAOI data'!$AM:$AM)+SUMIF('VSAOI data'!$Z:$Z,YEAR(N$2)&MONTH(N$2)&"C*",'VSAOI data'!$AM:$AM)+SUMIF('VSAOI data'!$Z:$Z,YEAR(N$2)&MONTH(N$2)&"A*",'VSAOI data'!$AM:$AM) -> 0 | O13: 0
B14: starpības | C14: =IF(AND('Sakuma lapa'!$J$8="iepriekšējo mēnesi",YEAR(C2)<=2020),IF(D3>0,C13-D12,0),IF(C3>0,C13-C12,0)) -> 0 | D14: =IF('Sakuma lapa'!$J$8="iepriekšējo mēnesi",IF(E3>0,D13-E12,0),IF(D3>0,D13-D12,0)) -> 0 | E14: =IF('Sakuma lapa'!$J$8="iepriekšējo mēnesi",IF(F3>0,E13-F12,0),IF(E3>0,E13-E12,0)) -> 0 | F14: =IF('Sakuma lapa'!$J$8="iepriekšējo mēnesi",IF(G3>0,F13-G12,0),IF(F3>0,F13-F12,0)) -> 0 | G14: =IF('Sakuma lapa'!$J$8="iepriekšējo mēnesi",IF(H3>0,G13-H12,0),IF(G3>0,G13-G12,0)) -> 0 | H14: =IF('Sakuma lapa'!$J$8="iepriekšējo mēnesi",IF(I3>0,H13-I12,0),IF(H3>0,H13-H12,0)) -> 0 | I14: =IF('Sakuma lapa'!$J$8="iepriekšējo mēnesi",IF(J3>0,I13-J12,0),IF(I3>0,I13-I12,0)) -> 0 | J14: =IF('Sakuma lapa'!$J$8="iepriekšējo mēnesi",IF(K3>0,J13-K12,0),IF(J3>0,J13-J12,0)) -> 0 | K14: =IF('Sakuma lapa'!$J$8="iepriekšējo mēnesi",IF(L3>0,K13-L12,0),IF(K3>0,K13-K12,0)) -> 0 | L14: =IF('Sakuma lapa'!$J$8="iepriekšējo mēnesi",IF(M3>0,L13-M12,0),IF(L3>0,L13-L12,0)) -> 0 | M14: =IF('Sakuma lapa'!$J$8="iepriekšējo mēnesi",IF(N3>0,M13-N12,0),IF(M3>0,M13-M12,0)) -> 0 | N14: =IF('Sakuma lapa'!$J$8="iepriekšējo mēnesi",IF(O3>0,N13-#REF!,0),IF(N3>0,N13-N12,0)) -> 0 | O14: 0
B15: Riska nodeva | C15: =SUMIF('VSAOI data'!$Y:$Y,YEAR(C$2)&MONTH(C$2),'VSAOI data'!$P:$P) -> 0 | D15: =SUMIF('VSAOI data'!$Y:$Y,YEAR(D$2)&MONTH(D$2),'VSAOI data'!$P:$P) -> 0 | E15: =SUMIF('VSAOI data'!$Y:$Y,YEAR(E$2)&MONTH(E$2),'VSAOI data'!$P:$P) -> 0 | F15: =SUMIF('VSAOI data'!$Y:$Y,YEAR(F$2)&MONTH(F$2),'VSAOI data'!$P:$P) -> 0 | G15: =SUMIF('VSAOI data'!$Y:$Y,YEAR(G$2)&MONTH(G$2),'VSAOI data'!$P:$P) -> 0 | H15: =SUMIF('VSAOI data'!$Y:$Y,YEAR(H$2)&MONTH(H$2),'VSAOI data'!$P:$P) -> 0 | I15: =SUMIF('VSAOI data'!$Y:$Y,YEAR(I$2)&MONTH(I$2),'VSAOI data'!$P:$P) -> 0 | J15: =SUMIF('VSAOI data'!$Y:$Y,YEAR(J$2)&MONTH(J$2),'VSAOI data'!$P:$P) -> 0 | K15: =SUMIF('VSAOI data'!$Y:$Y,YEAR(K$2)&MONTH(K$2),'VSAOI data'!$P:$P) -> 0 | L15: =SUMIF('VSAOI data'!$Y:$Y,YEAR(L$2)&MONTH(L$2),'VSAOI data'!$P:$P) -> 0 | M15: =SUMIF('VSAOI data'!$Y:$Y,YEAR(M$2)&MONTH(M$2),'VSAOI data'!$P:$P) -> 0 | N15: =SUMIF('VSAOI data'!$Y:$Y,YEAR(N$2)&MONTH(N$2),'VSAOI data'!$P:$P) -> 0 | O15: 0
B16: Nostrādātās stundas | C16: =SUMIF('VSAOI data'!$Y:$Y,YEAR(C$2)&MONTH(C$2),'VSAOI data'!$Q:$Q) -> 0 | D16: =SUMIF('VSAOI data'!$Y:$Y,YEAR(D$2)&MONTH(D$2),'VSAOI data'!$Q:$Q) -> 0 | E16: =SUMIF('VSAOI data'!$Y:$Y,YEAR(E$2)&MONTH(E$2),'VSAOI data'!$Q:$Q) -> 0 | F16: =SUMIF('VSAOI data'!$Y:$Y,YEAR(F$2)&MONTH(F$2),'VSAOI data'!$Q:$Q) -> 0 | G16: =SUMIF('VSAOI data'!$Y:$Y,YEAR(G$2)&MONTH(G$2),'VSAOI data'!$Q:$Q) -> 0 | H16: =SUMIF('VSAOI data'!$Y:$Y,YEAR(H$2)&MONTH(H$2),'VSAOI data'!$Q:$Q) -> 0 | I16: =SUMIF('VSAOI data'!$Y:$Y,YEAR(I$2)&MONTH(I$2),'VSAOI data'!$Q:$Q) -> 0 | J16: =SUMIF('VSAOI data'!$Y:$Y,YEAR(J$2)&MONTH(J$2),'VSAOI data'!$Q:$Q) -> 0 | K16: =SUMIF('VSAOI data'!$Y:$Y,YEAR(K$2)&MONTH(K$2),'VSAOI data'!$Q:$Q) -> 0 | L16: =SUMIF('VSAOI data'!$Y:$Y,YEAR(L$2)&MONTH(L$2),'VSAOI data'!$Q:$Q) -> 0 | M16: =SUMIF('VSAOI data'!$Y:$Y,YEAR(M$2)&MONTH(M$2),'VSAOI data'!$Q:$Q) -> 0 | N16: =SUMIF('VSAOI data'!$Y:$Y,YEAR(N$2)&MONTH(N$2),'VSAOI data'!$Q:$Q) -> 0 | O16: 0
B17: Atlaistie | C17: =COUNTIF('VSAOI data'!$AA:$AA,YEAR(C$2)&MONTH(C$2)&"Tab4G*") -> 0 | D17: =COUNTIF('VSAOI data'!$AA:$AA,YEAR(D$2)&MONTH(D$2)&"Tab4G*") -> 0 | E17: =COUNTIF('VSAOI data'!$AA:$AA,YEAR(E$2)&MONTH(E$2)&"Tab4G*") -> 0 | F17: =COUNTIF('VSAOI data'!$AA:$AA,YEAR(F$2)&MONTH(F$2)&"Tab4G*") -> 0 | G17: =COUNTIF('VSAOI data'!$AA:$AA,YEAR(G$2)&MONTH(G$2)&"Tab4G*") -> 0 | H17: =COUNTIF('VSAOI data'!$AA:$AA,YEAR(H$2)&MONTH(H$2)&"Tab4G*") -> 0 | I17: =COUNTIF('VSAOI data'!$AA:$AA,YEAR(I$2)&MONTH(I$2)&"Tab4G*") -> 0 | J17: =COUNTIF('VSAOI data'!$AA:$AA,YEAR(J$2)&MONTH(J$2)&"Tab4G*") -> 0 | K17: =COUNTIF('VSAOI data'!$AA:$AA,YEAR(K$2)&MONTH(K$2)&"Tab4G*") -> 0 | L17: =COUNTIF('VSAOI data'!$AA:$AA,YEAR(L$2)&MONTH(L$2)&"Tab4G*") -> 0 | M17: =COUNTIF('VSAOI data'!$AA:$AA,YEAR(M$2)&MONTH(M$2)&"Tab4G*") -> 0 | N17: =COUNTIF('VSAOI data'!$AA:$AA,YEAR(N$2)&MONTH(N$2)&"Tab4G*") -> 0
B18: Vidējā mēneša alga | C18: =IFERROR((SUMIF('VSAOI data'!$AB:$AB,YEAR(C$2)&MONTH(C$2),'VSAOI data'!$J:$J)+SUMIF('VSAOI data'!$AB:$AB,YEAR(C$2)&MONTH(C$2),'VSAOI data'!$L:$L))/COUNTIF('VSAOI data'!$AB:$AB,YEAR(C$2)&MONTH(C$2)),"-") -> - | D18: =IFERROR((SUMIF('VSAOI data'!$AB:$AB,YEAR(D$2)&MONTH(D$2),'VSAOI data'!$J:$J)+SUMIF('VSAOI data'!$AB:$AB,YEAR(D$2)&MONTH(D$2),'VSAOI data'!$L:$L))/COUNTIF('VSAOI data'!$AB:$AB,YEAR(D$2)&MONTH(D$2)),"-") -> - | E18: =IFERROR((SUMIF('VSAOI data'!$AB:$AB,YEAR(E$2)&MONTH(E$2),'VSAOI data'!$J:$J)+SUMIF('VSAOI data'!$AB:$AB,YEAR(E$2)&MONTH(E$2),'VSAOI data'!$L:$L))/COUNTIF('VSAOI data'!$AB:$AB,YEAR(E$2)&MONTH(E$2)),"-") -> - | F18: =IFERROR((SUMIF('VSAOI data'!$AB:$AB,YEAR(F$2)&MONTH(F$2),'VSAOI data'!$J:$J)+SUMIF('VSAOI data'!$AB:$AB,YEAR(F$2)&MONTH(F$2),'VSAOI data'!$L:$L))/COUNTIF('VSAOI data'!$AB:$AB,YEAR(F$2)&MONTH(F$2)),"-") -> - | G18: =IFERROR((SUMIF('VSAOI data'!$AB:$AB,YEAR(G$2)&MONTH(G$2),'VSAOI data'!$J:$J)+SUMIF('VSAOI data'!$AB:$AB,YEAR(G$2)&MONTH(G$2),'VSAOI data'!$L:$L))/COUNTIF('VSAOI data'!$AB:$AB,YEAR(G$2)&MONTH(G$2)),"-") -> - | H18: =IFERROR((SUMIF('VSAOI data'!$AB:$AB,YEAR(H$2)&MONTH(H$2),'VSAOI data'!$J:$J)+SUMIF('VSAOI data'!$AB:$AB,YEAR(H$2)&MONTH(H$2),'VSAOI data'!$L:$L))/COUNTIF('VSAOI data'!$AB:$AB,YEAR(H$2)&MONTH(H$2)),"-") -> - | I18: =IFERROR((SUMIF('VSAOI data'!$AB:$AB,YEAR(I$2)&MONTH(I$2),'VSAOI data'!$J:$J)+SUMIF('VSAOI data'!$AB:$AB,YEAR(I$2)&MONTH(I$2),'VSAOI data'!$L:$L))/COUNTIF('VSAOI data'!$AB:$AB,YEAR(I$2)&MONTH(I$2)),"-") -> - | J18: =IFERROR((SUMIF('VSAOI data'!$AB:$AB,YEAR(J$2)&MONTH(J$2),'VSAOI data'!$J:$J)+SUMIF('VSAOI data'!$AB:$AB,YEAR(J$2)&MONTH(J$2),'VSAOI data'!$L:$L))/COUNTIF('VSAOI data'!$AB:$AB,YEAR(J$2)&MONTH(J$2)),"-") -> - | K18: =IFERROR((SUMIF('VSAOI data'!$AB:$AB,YEAR(K$2)&MONTH(K$2),'VSAOI data'!$J:$J)+SUMIF('VSAOI data'!$AB:$AB,YEAR(K$2)&MONTH(K$2),'VSAOI data'!$L:$L))/COUNTIF('VSAOI data'!$AB:$AB,YEAR(K$2)&MONTH(K$2)),"-") -> - | L18: =IFERROR((SUMIF('VSAOI data'!$AB:$AB,YEAR(L$2)&MONTH(L$2),'VSAOI data'!$J:$J)+SUMIF('VSAOI data'!$AB:$AB,YEAR(L$2)&MONTH(L$2),'VSAOI data'!$L:$L))/COUNTIF('VSAOI data'!$AB:$AB,YEAR(L$2)&MONTH(L$2)),"-") -> - | M18: =IFERROR((SUMIF('VSAOI data'!$AB:$AB,YEAR(M$2)&MONTH(M$2),'VSAOI data'!$J:$J)+SUMIF('VSAOI data'!$AB:$AB,YEAR(M$2)&MONTH(M$2),'VSAOI data'!$L:$L))/COUNTIF('VSAOI data'!$AB:$AB,YEAR(M$2)&MONTH(M$2)),"-") -> - | N18: =IFERROR((SUMIF('VSAOI data'!$AB:$AB,YEAR(N$2)&MONTH(N$2),'VSAOI data'!$J:$J)+SUMIF('VSAOI data'!$AB:$AB,YEAR(N$2)&MONTH(N$2),'VSAOI data'!$L:$L))/COUNTIF('VSAOI data'!$AB:$AB,YEAR(N$2)&MONTH(N$2)),"-") -> -
B19: Vidējā stundas likme | C19: =IFERROR((SUMIF('VSAOI data'!$AB:$AB,YEAR(C$2)&MONTH(C$2),'VSAOI data'!$J:$J)+SUMIF('VSAOI data'!$AB:$AB,YEAR(C$2)&MONTH(C$2),'VSAOI data'!$L:$L))/SUMIF('VSAOI data'!$AB:$AB,YEAR(C$2)&MONTH(C$2),'VSAOI data'!$Q:$Q),"-") -> - | D19: =IFERROR((SUMIF('VSAOI data'!$AB:$AB,YEAR(D$2)&MONTH(D$2),'VSAOI data'!$J:$J)+SUMIF('VSAOI data'!$AB:$AB,YEAR(D$2)&MONTH(D$2),'VSAOI data'!$L:$L))/SUMIF('VSAOI data'!$AB:$AB,YEAR(D$2)&MONTH(D$2),'VSAOI data'!$Q:$Q),"-") -> - | E19: =IFERROR((SUMIF('VSAOI data'!$AB:$AB,YEAR(E$2)&MONTH(E$2),'VSAOI data'!$J:$J)+SUMIF('VSAOI data'!$AB:$AB,YEAR(E$2)&MONTH(E$2),'VSAOI data'!$L:$L))/SUMIF('VSAOI data'!$AB:$AB,YEAR(E$2)&MONTH(E$2),'VSAOI data'!$Q:$Q),"-") -> - | F19: =IFERROR((SUMIF('VSAOI data'!$AB:$AB,YEAR(F$2)&MONTH(F$2),'VSAOI data'!$J:$J)+SUMIF('VSAOI data'!$AB:$AB,YEAR(F$2)&MONTH(F$2),'VSAOI data'!$L:$L))/SUMIF('VSAOI data'!$AB:$AB,YEAR(F$2)&MONTH(F$2),'VSAOI data'!$Q:$Q),"-") -> - | G19: =IFERROR((SUMIF('VSAOI data'!$AB:$AB,YEAR(G$2)&MONTH(G$2),'VSAOI data'!$J:$J)+SUMIF('VSAOI data'!$AB:$AB,YEAR(G$2)&MONTH(G$2),'VSAOI data'!$L:$L))/SUMIF('VSAOI data'!$AB:$AB,YEAR(G$2)&MONTH(G$2),'VSAOI data'!$Q:$Q),"-") -> - | H19: =IFERROR((SUMIF('VSAOI data'!$AB:$AB,YEAR(H$2)&MONTH(H$2),'VSAOI data'!$J:$J)+SUMIF('VSAOI data'!$AB:$AB,YEAR(H$2)&MONTH(H$2),'VSAOI data'!$L:$L))/SUMIF('VSAOI data'!$AB:$AB,YEAR(H$2)&MONTH(H$2),'VSAOI data'!$Q:$Q),"-") -> - | I19: =IFERROR((SUMIF('VSAOI data'!$AB:$AB,YEAR(I$2)&MONTH(I$2),'VSAOI data'!$J:$J)+SUMIF('VSAOI data'!$AB:$AB,YEAR(I$2)&MONTH(I$2),'VSAOI data'!$L:$L))/SUMIF('VSAOI data'!$AB:$AB,YEAR(I$2)&MONTH(I$2),'VSAOI data'!$Q:$Q),"-") -> - | J19: =IFERROR((SUMIF('VSAOI data'!$AB:$AB,YEAR(J$2)&MONTH(J$2),'VSAOI data'!$J:$J)+SUMIF('VSAOI data'!$AB:$AB,YEAR(J$2)&MONTH(J$2),'VSAOI data'!$L:$L))/SUMIF('VSAOI data'!$AB:$AB,YEAR(J$2)&MONTH(J$2),'VSAOI data'!$Q:$Q),"-") -> - | K19: =IFERROR((SUMIF('VSAOI data'!$AB:$AB,YEAR(K$2)&MONTH(K$2),'VSAOI data'!$J:$J)+SUMIF('VSAOI data'!$AB:$AB,YEAR(K$2)&MONTH(K$2),'VSAOI data'!$L:$L))/SUMIF('VSAOI data'!$AB:$AB,YEAR(K$2)&MONTH(K$2),'VSAOI data'!$Q:$Q),"-") -> - | L19: =IFERROR((SUMIF('VSAOI data'!$AB:$AB,YEAR(L$2)&MONTH(L$2),'VSAOI data'!$J:$J)+SUMIF('VSAOI data'!$AB:$AB,YEAR(L$2)&MONTH(L$2),'VSAOI data'!$L:$L))/SUMIF('VSAOI data'!$AB:$AB,YEAR(L$2)&MONTH(L$2),'VSAOI data'!$Q:$Q),"-") -> - | M19: =IFERROR((SUMIF('VSAOI data'!$AB:$AB,YEAR(M$2)&MONTH(M$2),'VSAOI data'!$J:$J)+SUMIF('VSAOI data'!$AB:$AB,YEAR(M$2)&MONTH(M$2),'VSAOI data'!$L:$L))/SUMIF('VSAOI data'!$AB:$AB,YEAR(M$2)&MONTH(M$2),'VSAOI data'!$Q:$Q),"-") -> - | N19: =IFERROR((SUMIF('VSAOI data'!$AB:$AB,YEAR(N$2)&MONTH(N$2),'VSAOI data'!$J:$J)+SUMIF('VSAOI data'!$AB:$AB,YEAR(N$2)&MONTH(N$2),'VSAOI data'!$L:$L))/SUMIF('VSAOI data'!$AB:$AB,YEAR(N$2)&MONTH(N$2),'VSAOI data'!$Q:$Q),"-") -> -
B21: VG - Bruto alga | O21: =SUM(C21:N21) -> 0
B22: VG - Aprēķinātās DD VSAOI | O22: 0
B23: VG - Aprēķinātās DŅ VSAOI | O23: 0
B24: VG - Ieturētais IIN | O24: 0
B25: VG - Riska nodeva | O25: 0
B27: Novirze - Bruto alga | C27: =C3-C21 -> 0 | D27: =D3-D21 -> 0 | E27: 0 | F27: 0 | G27: 0 | H27: 0 | I27: 0 | J27: 0 | K27: 0 | L27: 0 | M27: 0 | N27: 0 | O27: =SUM(C27:N27) -> 0
B28: Novirze - Aprēķinātās DD VSAOI | C28: =C4-C22 -> 0 | D28: =D4-D22 -> 0 | E28: 0 | F28: 0 | G28: 0 | H28: 0 | I28: 0 | J28: 0 | K28: 0 | L28: 0 | M28: 0 | N28: 0 | O28: 0
B29: Novirze - Aprēķinātās DŅ VSAOI | C29: =C5-C23 -> 0 | D29: =D5-D23 -> 0 | E29: 0 | F29: 0 | G29: 0 | H29: 0 | I29: 0 | J29: 0 | K29: 0 | L29: 0 | M29: 0 | N29: 0 | O29: 0
B30: Novirze - Ieturētais IIN | C30: =C12-C24 -> 0 | D30: =D12-D24 -> 0 | E30: 0 | F30: 0 | G30: 0 | H30: 0 | I30: 0 | J30: 0 | K30: 0 | L30: 0 | M30: 0 | N30: 0 | O30: 0
B31: Novirze - Riska nodeva | C31: =C15-C25 -> 0 | D31: =D15-D25 -> 0 | E31: 0 | F31: 0 | G31: 0 | H31: 0 | I31: 0 | J31: 0 | K31: 0 | L31: 0 | M31: 0 | N31: 0 | O31: 0
B35: (+ parāds, - pārmaksa)
B36: VSAOI - VG sakuma atlikums | D36: =SUM(C36:C39) -> 0 | E36: 0 | F36: 0 | G36: 0 | H36: 0 | I36: 0 | J36: 0 | K36: 0 | L36: 0 | M36: 0 | N36: 0 | O36: =SUM(N36:N39) -> 0
B37: Aprēķins - Deklarācijas | C37: =-SUMIFS('VSAOI transakcijas'!$R:$R,'VSAOI transakcijas'!$D:$D,"Aprēķins",'VSAOI transakcijas'!$H:$H,"Pamatsumma",'VSAOI transakcijas'!$S:$S,">="&DATE(YEAR(C2),MONTH(C2),1),'VSAOI transakcijas'!$S:$S,"<="&'Sakuma lapa'!$F$16,'VSAOI transakcijas'!$O:$O,YEAR(DATE(YEAR(C2),MONTH(C2)+2,0)),'VSAOI transakcijas'!$P:$P,RIGHT("0"&MONTH(DATE(YEAR(C2),MONTH(C2)+2,0)),2),'VSAOI transakcijas'!$Q:$Q,"VSAOI",'VSAOI transakcijas'!$K:$K,"<>"&"FIFO*",'VSAOI transakcijas'!$K:$K,"<>"&"Iemaksas atbrīvošana",'VSAOI transakcijas'!$E:$E,"Deklarācija/pārskats") -> 0 | D37: =-SUMIFS('VSAOI transakcijas'!$R:$R,'VSAOI transakcijas'!$D:$D,"Aprēķins",'VSAOI transakcijas'!$H:$H,"Pamatsumma",'VSAOI transakcijas'!$S:$S,">="&DATE(YEAR(D2),MONTH(D2),1),'VSAOI transakcijas'!$S:$S,"<="&'Sakuma lapa'!$F$16,'VSAOI transakcijas'!$O:$O,YEAR(DATE(YEAR(D2),MONTH(D2)+2,0)),'VSAOI transakcijas'!$P:$P,RIGHT("0"&MONTH(DATE(YEAR(D2),MONTH(D2)+2,0)),2),'VSAOI transakcijas'!$Q:$Q,"VSAOI",'VSAOI transakcijas'!$K:$K,"<>"&"FIFO*",'VSAOI transakcijas'!$K:$K,"<>"&"Iemaksas atbrīvošana",'VSAOI transakcijas'!$E:$E,"Deklarācija/pārskats") -> 0 | E37: =-SUMIFS('VSAOI transakcijas'!$R:$R,'VSAOI transakcijas'!$D:$D,"Aprēķins",'VSAOI transakcijas'!$H:$H,"Pamatsumma",'VSAOI transakcijas'!$S:$S,">="&DATE(YEAR(E2),MONTH(E2),1),'VSAOI transakcijas'!$S:$S,"<="&'Sakuma lapa'!$F$16,'VSAOI transakcijas'!$O:$O,YEAR(DATE(YEAR(E2),MONTH(E2)+2,0)),'VSAOI transakcijas'!$P:$P,RIGHT("0"&MONTH(DATE(YEAR(E2),MONTH(E2)+2,0)),2),'VSAOI transakcijas'!$Q:$Q,"VSAOI",'VSAOI transakcijas'!$K:$K,"<>"&"FIFO*",'VSAOI transakcijas'!$K:$K,"<>"&"Iemaksas atbrīvošana",'VSAOI transakcijas'!$E:$E,"Deklarācija/pārskats") -> 0 | F37: =-SUMIFS('VSAOI transakcijas'!$R:$R,'VSAOI transakcijas'!$D:$D,"Aprēķins",'VSAOI transakcijas'!$H:$H,"Pamatsumma",'VSAOI transakcijas'!$S:$S,">="&DATE(YEAR(F2),MONTH(F2),1),'VSAOI transakcijas'!$S:$S,"<="&'Sakuma lapa'!$F$16,'VSAOI transakcijas'!$O:$O,YEAR(DATE(YEAR(F2),MONTH(F2)+2,0)),'VSAOI transakcijas'!$P:$P,RIGHT("0"&MONTH(DATE(YEAR(F2),MONTH(F2)+2,0)),2),'VSAOI transakcijas'!$Q:$Q,"VSAOI",'VSAOI transakcijas'!$K:$K,"<>"&"FIFO*",'VSAOI transakcijas'!$K:$K,"<>"&"Iemaksas atbrīvošana",'VSAOI transakcijas'!$E:$E,"Deklarācija/pārskats") -> 0 | G37: =-SUMIFS('VSAOI transakcijas'!$R:$R,'VSAOI transakcijas'!$D:$D,"Aprēķins",'VSAOI transakcijas'!$H:$H,"Pamatsumma",'VSAOI transakcijas'!$S:$S,">="&DATE(YEAR(G2),MONTH(G2),1),'VSAOI transakcijas'!$S:$S,"<="&'Sakuma lapa'!$F$16,'VSAOI transakcijas'!$O:$O,YEAR(DATE(YEAR(G2),MONTH(G2)+2,0)),'VSAOI transakcijas'!$P:$P,RIGHT("0"&MONTH(DATE(YEAR(G2),MONTH(G2)+2,0)),2),'VSAOI transakcijas'!$Q:$Q,"VSAOI",'VSAOI transakcijas'!$K:$K,"<>"&"FIFO*",'VSAOI transakcijas'!$K:$K,"<>"&"Iemaksas atbrīvošana",'VSAOI transakcijas'!$E:$E,"Deklarācija/pārskats") -> 0 | H37: =-SUMIFS('VSAOI transakcijas'!$R:$R,'VSAOI transakcijas'!$D:$D,"Aprēķins",'VSAOI transakcijas'!$H:$H,"Pamatsumma",'VSAOI transakcijas'!$S:$S,">="&DATE(YEAR(H2),MONTH(H2),1),'VSAOI transakcijas'!$S:$S,"<="&'Sakuma lapa'!$F$16,'VSAOI transakcijas'!$O:$O,YEAR(DATE(YEAR(H2),MONTH(H2)+2,0)),'VSAOI transakcijas'!$P:$P,RIGHT("0"&MONTH(DATE(YEAR(H2),MONTH(H2)+2,0)),2),'VSAOI transakcijas'!$Q:$Q,"VSAOI",'VSAOI transakcijas'!$K:$K,"<>"&"FIFO*",'VSAOI transakcijas'!$K:$K,"<>"&"Iemaksas atbrīvošana",'VSAOI transakcijas'!$E:$E,"Deklarācija/pārskats") -> 0 | I37: =-SUMIFS('VSAOI transakcijas'!$R:$R,'VSAOI transakcijas'!$D:$D,"Aprēķins",'VSAOI transakcijas'!$H:$H,"Pamatsumma",'VSAOI transakcijas'!$S:$S,">="&DATE(YEAR(I2),MONTH(I2),1),'VSAOI transakcijas'!$S:$S,"<="&'Sakuma lapa'!$F$16,'VSAOI transakcijas'!$O:$O,YEAR(DATE(YEAR(I2),MONTH(I2)+2,0)),'VSAOI transakcijas'!$P:$P,RIGHT("0"&MONTH(DATE(YEAR(I2),MONTH(I2)+2,0)),2),'VSAOI transakcijas'!$Q:$Q,"VSAOI",'VSAOI transakcijas'!$K:$K,"<>"&"FIFO*",'VSAOI transakcijas'!$K:$K,"<>"&"Iemaksas atbrīvošana",'VSAOI transakcijas'!$E:$E,"Deklarācija/pārskats") -> 0 | J37: =-SUMIFS('VSAOI transakcijas'!$R:$R,'VSAOI transakcijas'!$D:$D,"Aprēķins",'VSAOI transakcijas'!$H:$H,"Pamatsumma",'VSAOI transakcijas'!$S:$S,">="&DATE(YEAR(J2),MONTH(J2),1),'VSAOI transakcijas'!$S:$S,"<="&'Sakuma lapa'!$F$16,'VSAOI transakcijas'!$O:$O,YEAR(DATE(YEAR(J2),MONTH(J2)+2,0)),'VSAOI transakcijas'!$P:$P,RIGHT("0"&MONTH(DATE(YEAR(J2),MONTH(J2)+2,0)),2),'VSAOI transakcijas'!$Q:$Q,"VSAOI",'VSAOI transakcijas'!$K:$K,"<>"&"FIFO*",'VSAOI transakcijas'!$K:$K,"<>"&"Iemaksas atbrīvošana",'VSAOI transakcijas'!$E:$E,"Deklarācija/pārskats") -> 0 | K37: =-SUMIFS('VSAOI transakcijas'!$R:$R,'VSAOI transakcijas'!$D:$D,"Aprēķins",'VSAOI transakcijas'!$H:$H,"Pamatsumma",'VSAOI transakcijas'!$S:$S,">="&DATE(YEAR(K2),MONTH(K2),1),'VSAOI transakcijas'!$S:$S,"<="&'Sakuma lapa'!$F$16,'VSAOI transakcijas'!$O:$O,YEAR(DATE(YEAR(K2),MONTH(K2)+2,0)),'VSAOI transakcijas'!$P:$P,RIGHT("0"&MONTH(DATE(YEAR(K2),MONTH(K2)+2,0)),2),'VSAOI transakcijas'!$Q:$Q,"VSAOI",'VSAOI transakcijas'!$K:$K,"<>"&"FIFO*",'VSAOI transakcijas'!$K:$K,"<>"&"Iemaksas atbrīvošana",'VSAOI transakcijas'!$E:$E,"Deklarācija/pārskats") -> 0 | L37: =-SUMIFS('VSAOI transakcijas'!$R:$R,'VSAOI transakcijas'!$D:$D,"Aprēķins",'VSAOI transakcijas'!$H:$H,"Pamatsumma",'VSAOI transakcijas'!$S:$S,">="&DATE(YEAR(L2),MONTH(L2),1),'VSAOI transakcijas'!$S:$S,"<="&'Sakuma lapa'!$F$16,'VSAOI transakcijas'!$O:$O,YEAR(DATE(YEAR(L2),MONTH(L2)+2,0)),'VSAOI transakcijas'!$P:$P,RIGHT("0"&MONTH(DATE(YEAR(L2),MONTH(L2)+2,0)),2),'VSAOI transakcijas'!$Q:$Q,"VSAOI",'VSAOI transakcijas'!$K:$K,"<>"&"FIFO*",'VSAOI transakcijas'!$K:$K,"<>"&"Iemaksas atbrīvošana",'VSAOI transakcijas'!$E:$E,"Deklarācija/pārskats") -> 0 | M37: =-SUMIFS('VSAOI transakcijas'!$R:$R,'VSAOI transakcijas'!$D:$D,"Aprēķins",'VSAOI transakcijas'!$H:$H,"Pamatsumma",'VSAOI transakcijas'!$S:$S,">="&DATE(YEAR(M2),MONTH(M2),1),'VSAOI transakcijas'!$S:$S,"<="&'Sakuma lapa'!$F$16,'VSAOI transakcijas'!$O:$O,YEAR(DATE(YEAR(M2),MONTH(M2)+2,0)),'VSAOI transakcijas'!$P:$P,RIGHT("0"&MONTH(DATE(YEAR(M2),MONTH(M2)+2,0)),2),'VSAOI transakcijas'!$Q:$Q,"VSAOI",'VSAOI transakcijas'!$K:$K,"<>"&"FIFO*",'VSAOI transakcijas'!$K:$K,"<>"&"Iemaksas atbrīvošana",'VSAOI transakcijas'!$E:$E,"Deklarācija/pārskats") -> 0 | N37: =-SUMIFS('VSAOI transakcijas'!$R:$R,'VSAOI transakcijas'!$D:$D,"Aprēķins",'VSAOI transakcijas'!$H:$H,"Pamatsumma",'VSAOI transakcijas'!$S:$S,">="&DATE(YEAR(N2),MONTH(N2),1),'VSAOI transakcijas'!$S:$S,"<="&'Sakuma lapa'!$F$16,'VSAOI transakcijas'!$O:$O,YEAR(DATE(YEAR(N2),MONTH(N2)+2,0)),'VSAOI transakcijas'!$P:$P,RIGHT("0"&MONTH(DATE(YEAR(N2),MONTH(N2)+2,0)),2),'VSAOI transakcijas'!$Q:$Q,"VSAOI",'VSAOI transakcijas'!$K:$K,"<>"&"FIFO*",'VSAOI transakcijas'!$K:$K,"<>"&"Iemaksas atbrīvošana",'VSAOI transakcijas'!$E:$E,"Deklarācija/pārskats") -> 0 | O37: =SUM(C37:N37) -> 0
B38: Aprēķins - Citi | C38: =-SUMIFS('VSAOI transakcijas'!$R:$R,'VSAOI transakcijas'!$D:$D,"Aprēķins",'VSAOI transakcijas'!$H:$H,"Pamatsumma",'VSAOI transakcijas'!$S:$S,">="&DATE(YEAR(C2),MONTH(C2),1),'VSAOI transakcijas'!$S:$S,"<="&'Sakuma lapa'!$F$16,'VSAOI transakcijas'!$O:$O,YEAR(DATE(YEAR(C2),MONTH(C2)+2,0)),'VSAOI transakcijas'!$P:$P,RIGHT("0"&MONTH(DATE(YEAR(C2),MONTH(C2)+2,0)),2),'VSAOI transakcijas'!$Q:$Q,"VSAOI",'VSAOI transakcijas'!$K:$K,"<>"&"FIFO*",'VSAOI transakcijas'!$K:$K,"<>"&"Iemaksas atbrīvošana",'VSAOI transakcijas'!$E:$E,"<>"&"Deklarācija/pārskats") -> 0 | D38: =-SUMIFS('VSAOI transakcijas'!$R:$R,'VSAOI transakcijas'!$D:$D,"Aprēķins",'VSAOI transakcijas'!$H:$H,"Pamatsumma",'VSAOI transakcijas'!$S:$S,">="&DATE(YEAR(D2),MONTH(D2),1),'VSAOI transakcijas'!$S:$S,"<="&'Sakuma lapa'!$F$16,'VSAOI transakcijas'!$O:$O,YEAR(DATE(YEAR(D2),MONTH(D2)+2,0)),'VSAOI transakcijas'!$P:$P,RIGHT("0"&MONTH(DATE(YEAR(D2),MONTH(D2)+2,0)),2),'VSAOI transakcijas'!$Q:$Q,"VSAOI",'VSAOI transakcijas'!$K:$K,"<>"&"FIFO*",'VSAOI transakcijas'!$K:$K,"<>"&"Iemaksas atbrīvošana",'VSAOI transakcijas'!$E:$E,"<>"&"Deklarācija/pārskats") -> 0 | E38: =-SUMIFS('VSAOI transakcijas'!$R:$R,'VSAOI transakcijas'!$D:$D,"Aprēķins",'VSAOI transakcijas'!$H:$H,"Pamatsumma",'VSAOI transakcijas'!$S:$S,">="&DATE(YEAR(E2),MONTH(E2),1),'VSAOI transakcijas'!$S:$S,"<="&'Sakuma lapa'!$F$16,'VSAOI transakcijas'!$O:$O,YEAR(DATE(YEAR(E2),MONTH(E2)+2,0)),'VSAOI transakcijas'!$P:$P,RIGHT("0"&MONTH(DATE(YEAR(E2),MONTH(E2)+2,0)),2),'VSAOI transakcijas'!$Q:$Q,"VSAOI",'VSAOI transakcijas'!$K:$K,"<>"&"FIFO*",'VSAOI transakcijas'!$K:$K,"<>"&"Iemaksas atbrīvošana",'VSAOI transakcijas'!$E:$E,"<>"&"Deklarācija/pārskats") -> 0 | F38: =-SUMIFS('VSAOI transakcijas'!$R:$R,'VSAOI transakcijas'!$D:$D,"Aprēķins",'VSAOI transakcijas'!$H:$H,"Pamatsumma",'VSAOI transakcijas'!$S:$S,">="&DATE(YEAR(F2),MONTH(F2),1),'VSAOI transakcijas'!$S:$S,"<="&'Sakuma lapa'!$F$16,'VSAOI transakcijas'!$O:$O,YEAR(DATE(YEAR(F2),MONTH(F2)+2,0)),'VSAOI transakcijas'!$P:$P,RIGHT("0"&MONTH(DATE(YEAR(F2),MONTH(F2)+2,0)),2),'VSAOI transakcijas'!$Q:$Q,"VSAOI",'VSAOI transakcijas'!$K:$K,"<>"&"FIFO*",'VSAOI transakcijas'!$K:$K,"<>"&"Iemaksas atbrīvošana",'VSAOI transakcijas'!$E:$E,"<>"&"Deklarācija/pārskats") -> 0 | G38: =-SUMIFS('VSAOI transakcijas'!$R:$R,'VSAOI transakcijas'!$D:$D,"Aprēķins",'VSAOI transakcijas'!$H:$H,"Pamatsumma",'VSAOI transakcijas'!$S:$S,">="&DATE(YEAR(G2),MONTH(G2),1),'VSAOI transakcijas'!$S:$S,"<="&'Sakuma lapa'!$F$16,'VSAOI transakcijas'!$O:$O,YEAR(DATE(YEAR(G2),MONTH(G2)+2,0)),'VSAOI transakcijas'!$P:$P,RIGHT("0"&MONTH(DATE(YEAR(G2),MONTH(G2)+2,0)),2),'VSAOI transakcijas'!$Q:$Q,"VSAOI",'VSAOI transakcijas'!$K:$K,"<>"&"FIFO*",'VSAOI transakcijas'!$K:$K,"<>"&"Iemaksas atbrīvošana",'VSAOI transakcijas'!$E:$E,"<>"&"Deklarācija/pārskats") -> 0 | H38: =-SUMIFS('VSAOI transakcijas'!$R:$R,'VSAOI transakcijas'!$D:$D,"Aprēķins",'VSAOI transakcijas'!$H:$H,"Pamatsumma",'VSAOI transakcijas'!$S:$S,">="&DATE(YEAR(H2),MONTH(H2),1),'VSAOI transakcijas'!$S:$S,"<="&'Sakuma lapa'!$F$16,'VSAOI transakcijas'!$O:$O,YEAR(DATE(YEAR(H2),MONTH(H2)+2,0)),'VSAOI transakcijas'!$P:$P,RIGHT("0"&MONTH(DATE(YEAR(H2),MONTH(H2)+2,0)),2),'VSAOI transakcijas'!$Q:$Q,"VSAOI",'VSAOI transakcijas'!$K:$K,"<>"&"FIFO*",'VSAOI transakcijas'!$K:$K,"<>"&"Iemaksas atbrīvošana",'VSAOI transakcijas'!$E:$E,"<>"&"Deklarācija/pārskats") -> 0 | I38: =-SUMIFS('VSAOI transakcijas'!$R:$R,'VSAOI transakcijas'!$D:$D,"Aprēķins",'VSAOI transakcijas'!$H:$H,"Pamatsumma",'VSAOI transakcijas'!$S:$S,">="&DATE(YEAR(I2),MONTH(I2),1),'VSAOI transakcijas'!$S:$S,"<="&'Sakuma lapa'!$F$16,'VSAOI transakcijas'!$O:$O,YEAR(DATE(YEAR(I2),MONTH(I2)+2,0)),'VSAOI transakcijas'!$P:$P,RIGHT("0"&MONTH(DATE(YEAR(I2),MONTH(I2)+2,0)),2),'VSAOI transakcijas'!$Q:$Q,"VSAOI",'VSAOI transakcijas'!$K:$K,"<>"&"FIFO*",'VSAOI transakcijas'!$K:$K,"<>"&"Iemaksas atbrīvošana",'VSAOI transakcijas'!$E:$E,"<>"&"Deklarācija/pārskats") -> 0 | J38: =-SUMIFS('VSAOI transakcijas'!$R:$R,'VSAOI transakcijas'!$D:$D,"Aprēķins",'VSAOI transakcijas'!$H:$H,"Pamatsumma",'VSAOI transakcijas'!$S:$S,">="&DATE(YEAR(J2),MONTH(J2),1),'VSAOI transakcijas'!$S:$S,"<="&'Sakuma lapa'!$F$16,'VSAOI transakcijas'!$O:$O,YEAR(DATE(YEAR(J2),MONTH(J2)+2,0)),'VSAOI transakcijas'!$P:$P,RIGHT("0"&MONTH(DATE(YEAR(J2),MONTH(J2)+2,0)),2),'VSAOI transakcijas'!$Q:$Q,"VSAOI",'VSAOI transakcijas'!$K:$K,"<>"&"FIFO*",'VSAOI transakcijas'!$K:$K,"<>"&"Iemaksas atbrīvošana",'VSAOI transakcijas'!$E:$E,"<>"&"Deklarācija/pārskats") -> 0 | K38: =-SUMIFS('VSAOI transakcijas'!$R:$R,'VSAOI transakcijas'!$D:$D,"Aprēķins",'VSAOI transakcijas'!$H:$H,"Pamatsumma",'VSAOI transakcijas'!$S:$S,">="&DATE(YEAR(K2),MONTH(K2),1),'VSAOI transakcijas'!$S:$S,"<="&'Sakuma lapa'!$F$16,'VSAOI transakcijas'!$O:$O,YEAR(DATE(YEAR(K2),MONTH(K2)+2,0)),'VSAOI transakcijas'!$P:$P,RIGHT("0"&MONTH(DATE(YEAR(K2),MONTH(K2)+2,0)),2),'VSAOI transakcijas'!$Q:$Q,"VSAOI",'VSAOI transakcijas'!$K:$K,"<>"&"FIFO*",'VSAOI transakcijas'!$K:$K,"<>"&"Iemaksas atbrīvošana",'VSAOI transakcijas'!$E:$E,"<>"&"Deklarācija/pārskats") -> 0 | L38: =-SUMIFS('VSAOI transakcijas'!$R:$R,'VSAOI transakcijas'!$D:$D,"Aprēķins",'VSAOI transakcijas'!$H:$H,"Pamatsumma",'VSAOI transakcijas'!$S:$S,">="&DATE(YEAR(L2),MONTH(L2),1),'VSAOI transakcijas'!$S:$S,"<="&'Sakuma lapa'!$F$16,'VSAOI transakcijas'!$O:$O,YEAR(DATE(YEAR(L2),MONTH(L2)+2,0)),'VSAOI transakcijas'!$P:$P,RIGHT("0"&MONTH(DATE(YEAR(L2),MONTH(L2)+2,0)),2),'VSAOI transakcijas'!$Q:$Q,"VSAOI",'VSAOI transakcijas'!$K:$K,"<>"&"FIFO*",'VSAOI transakcijas'!$K:$K,"<>"&"Iemaksas atbrīvošana",'VSAOI transakcijas'!$E:$E,"<>"&"Deklarācija/pārskats") -> 0 | M38: =-SUMIFS('VSAOI transakcijas'!$R:$R,'VSAOI transakcijas'!$D:$D,"Aprēķins",'VSAOI transakcijas'!$H:$H,"Pamatsumma",'VSAOI transakcijas'!$S:$S,">="&DATE(YEAR(M2),MONTH(M2),1),'VSAOI transakcijas'!$S:$S,"<="&'Sakuma lapa'!$F$16,'VSAOI transakcijas'!$O:$O,YEAR(DATE(YEAR(M2),MONTH(M2)+2,0)),'VSAOI transakcijas'!$P:$P,RIGHT("0"&MONTH(DATE(YEAR(M2),MONTH(M2)+2,0)),2),'VSAOI transakcijas'!$Q:$Q,"VSAOI",'VSAOI transakcijas'!$K:$K,"<>"&"FIFO*",'VSAOI transakcijas'!$K:$K,"<>"&"Iemaksas atbrīvošana",'VSAOI transakcijas'!$E:$E,"<>"&"Deklarācija/pārskats") -> 0 | N38: =-SUMIFS('VSAOI transakcijas'!$R:$R,'VSAOI transakcijas'!$D:$D,"Aprēķins",'VSAOI transakcijas'!$H:$H,"Pamatsumma",'VSAOI transakcijas'!$S:$S,">="&DATE(YEAR(N2),MONTH(N2),1),'VSAOI transakcijas'!$S:$S,"<="&'Sakuma lapa'!$F$16,'VSAOI transakcijas'!$O:$O,YEAR(DATE(YEAR(N2),MONTH(N2)+2,0)),'VSAOI transakcijas'!$P:$P,RIGHT("0"&MONTH(DATE(YEAR(N2),MONTH(N2)+2,0)),2),'VSAOI transakcijas'!$Q:$Q,"VSAOI",'VSAOI transakcijas'!$K:$K,"<>"&"FIFO*",'VSAOI transakcijas'!$K:$K,"<>"&"Iemaksas atbrīvošana",'VSAOI transakcijas'!$E:$E,"<>"&"Deklarācija/pārskats") -> 0 | O38: =SUM(C38:N38) -> 0
B39: Iemaksa/Atmaksa/Pārvietošana | C39: =-SUMIFS('VSAOI transakcijas'!$R:$R,'VSAOI transakcijas'!$D:$D,"Iemaksa",'VSAOI transakcijas'!$H:$H,"Pamatsumma",'VSAOI transakcijas'!$S:$S,">="&DATE(YEAR(C2),MONTH(C2),1),'VSAOI transakcijas'!$S:$S,"<="&'Sakuma lapa'!$F$16,'VSAOI transakcijas'!$O:$O,YEAR(DATE(YEAR(C2),MONTH(C2)+1,0)),'VSAOI transakcijas'!$P:$P,RIGHT("0"&MONTH(DATE(YEAR(C2),MONTH(C2)+1,0)),2),'VSAOI transakcijas'!$Q:$Q,"VSAOI") -SUMIFS('VSAOI transakcijas'!$R:$R,'VSAOI transakcijas'!$D:$D,"Atmaksa",'VSAOI transakcijas'!$H:$H,"Pamatsumma",'VSAOI transakcijas'!$S:$S,">="&DATE(YEAR(C2),MONTH(C2),1),'VSAOI transakcijas'!$S:$S,"<="&'Sakuma lapa'!$F$16,'VSAOI transakcijas'!$O:$O,YEAR(DATE(YEAR(C2),MONTH(C2)+1,0)),'VSAOI transakcijas'!$P:$P,RIGHT("0"&MONTH(DATE(YEAR(C2),MONTH(C2)+1,0)),2),'VSAOI transakcijas'!$Q:$Q,"VSAOI") -SUMIFS('VSAOI transakcijas'!$R:$R,'VSAOI transakcijas'!$D:$D,"Aprēķins",'VSAOI transakcijas'!$H:$H,"Pamatsumma",'VSAOI transakcijas'!$S:$S,">="&DATE(YEAR(C2),MONTH(C2),1),'VSAOI transakcijas'!$S:$S,"<="&'Sakuma lapa'!$F$16,'VSAOI transakcijas'!$O:$O,YEAR(DATE(YEAR(C2),MONTH(C2)+1,0)),'VSAOI transakcijas'!$P:$P,RIGHT("0"&MONTH(DATE(YEAR(C2),MONTH(C2)+1,0)),2),'VSAOI transakcijas'!$Q:$Q,"VSAOI",'VSAOI transakcijas'!$K:$K,"FIFO*") -SUMIFS('VSAOI transakcijas'!$R:$R,'VSAOI transakcijas'!$D:$D,"Aprēķins",'VSAOI transakcijas'!$H:$H,"Pamatsumma",'VSAOI transakcijas'!$S:$S,">="&DATE(YEAR(C2),MONTH(C2),1),'VSAOI transakcijas'!$S:$S,"<="&'Sakuma lapa'!$F$16,'VSAOI transakcijas'!$O:$O,YEAR(DATE(YEAR(C2),MONTH(C2)+1,0)),'VSAOI transakcijas'!$P:$P,RIGHT("0"&MONTH(DATE(YEAR(C2),MONTH(C2)+1,0)),2),'VSAOI transakcijas'!$Q:$Q,"VSAOI",'VSAOI transakcijas'!$K:$K,"Iemaksas atbrīvošana") -SUMIFS('VSAOI transakcijas'!$R:$R,'VSAOI transakcijas'!$H:$H,"Nokavējuma nauda",'VSAOI transakcijas'!$S:$S,">="&DATE(YEAR(C2),MONTH(C2),1),'VSAOI transakcijas'!$S:$S,"<="&'Sakuma lapa'!$F$16,'VSAOI transakcijas'!$O:$O,YEAR(DATE(YEAR(C2),MONTH(C2)+1,0)),'VSAOI transakcijas'!$P:$P,RIGHT("0"&MONTH(DATE(YEAR(C2),MONTH(C2)+1,0)),2),'VSAOI transakcijas'!$Q:$Q,"VSAOI") -> 0 | D39: =-SUMIFS('VSAOI transakcijas'!$R:$R,'VSAOI transakcijas'!$D:$D,"Iemaksa",'VSAOI transakcijas'!$H:$H,"Pamatsumma",'VSAOI transakcijas'!$S:$S,">="&DATE(YEAR(D2),MONTH(D2),1),'VSAOI transakcijas'!$S:$S,"<="&'Sakuma lapa'!$F$16,'VSAOI transakcijas'!$O:$O,YEAR(DATE(YEAR(D2),MONTH(D2)+1,0)),'VSAOI transakcijas'!$P:$P,RIGHT("0"&MONTH(DATE(YEAR(D2),MONTH(D2)+1,0)),2),'VSAOI transakcijas'!$Q:$Q,"VSAOI") -SUMIFS('VSAOI transakcijas'!$R:$R,'VSAOI transakcijas'!$D:$D,"Atmaksa",'VSAOI transakcijas'!$H:$H,"Pamatsumma",'VSAOI transakcijas'!$S:$S,">="&DATE(YEAR(D2),MONTH(D2),1),'VSAOI transakcijas'!$S:$S,"<="&'Sakuma lapa'!$F$16,'VSAOI transakcijas'!$O:$O,YEAR(DATE(YEAR(D2),MONTH(D2)+1,0)),'VSAOI transakcijas'!$P:$P,RIGHT("0"&MONTH(DATE(YEAR(D2),MONTH(D2)+1,0)),2),'VSAOI transakcijas'!$Q:$Q,"VSAOI") -SUMIFS('VSAOI transakcijas'!$R:$R,'VSAOI transakcijas'!$D:$D,"Aprēķins",'VSAOI transakcijas'!$H:$H,"Pamatsumma",'VSAOI transakcijas'!$S:$S,">="&DATE(YEAR(D2),MONTH(D2),1),'VSAOI transakcijas'!$S:$S,"<="&'Sakuma lapa'!$F$16,'VSAOI transakcijas'!$O:$O,YEAR(DATE(YEAR(D2),MONTH(D2)+1,0)),'VSAOI transakcijas'!$P:$P,RIGHT("0"&MONTH(DATE(YEAR(D2),MONTH(D2)+1,0)),2),'VSAOI transakcijas'!$Q:$Q,"VSAOI",'VSAOI transakcijas'!$K:$K,"FIFO*") -SUMIFS('VSAOI transakcijas'!$R:$R,'VSAOI transakcijas'!$D:$D,"Aprēķins",'VSAOI transakcijas'!$H:$H,"Pamatsumma",'VSAOI transakcijas'!$S:$S,">="&DATE(YEAR(D2),MONTH(D2),1),'VSAOI transakcijas'!$S:$S,"<="&'Sakuma lapa'!$F$16,'VSAOI transakcijas'!$O:$O,YEAR(DATE(YEAR(D2),MONTH(D2)+1,0)),'VSAOI transakcijas'!$P:$P,RIGHT("0"&MONTH(DATE(YEAR(D2),MONTH(D2)+1,0)),2),'VSAOI transakcijas'!$Q:$Q,"VSAOI",'VSAOI transakcijas'!$K:$K,"Iemaksas atbrīvošana") -SUMIFS('VSAOI transakcijas'!$R:$R,'VSAOI transakcijas'!$H:$H,"Nokavējuma nauda",'VSAOI transakcijas'!$S:$S,">="&DATE(YEAR(D2),MONTH(D2),1),'VSAOI transakcijas'!$S:$S,"<="&'Sakuma lapa'!$F$16,'VSAOI transakcijas'!$O:$O,YEAR(DATE(YEAR(D2),MONTH(D2)+1,0)),'VSAOI transakcijas'!$P:$P,RIGHT("0"&MONTH(DATE(YEAR(D2),MONTH(D2)+1,0)),2),'VSAOI transakcijas'!$Q:$Q,"VSAOI") -> 0 | E39: =-SUMIFS('VSAOI transakcijas'!$R:$R,'VSAOI transakcijas'!$D:$D,"Iemaksa",'VSAOI transakcijas'!$H:$H,"Pamatsumma",'VSAOI transakcijas'!$S:$S,">="&DATE(YEAR(E2),MONTH(E2),1),'VSAOI transakcijas'!$S:$S,"<="&'Sakuma lapa'!$F$16,'VSAOI transakcijas'!$O:$O,YEAR(DATE(YEAR(E2),MONTH(E2)+1,0)),'VSAOI transakcijas'!$P:$P,RIGHT("0"&MONTH(DATE(YEAR(E2),MONTH(E2)+1,0)),2),'VSAOI transakcijas'!$Q:$Q,"VSAOI") -SUMIFS('VSAOI transakcijas'!$R:$R,'VSAOI transakcijas'!$D:$D,"Atmaksa",'VSAOI transakcijas'!$H:$H,"Pamatsumma",'VSAOI transakcijas'!$S:$S,">="&DATE(YEAR(E2),MONTH(E2),1),'VSAOI transakcijas'!$S:$S,"<="&'Sakuma lapa'!$F$16,'VSAOI transakcijas'!$O:$O,YEAR(DATE(YEAR(E2),MONTH(E2)+1,0)),'VSAOI transakcijas'!$P:$P,RIGHT("0"&MONTH(DATE(YEAR(E2),MONTH(E2)+1,0)),2),'VSAOI transakcijas'!$Q:$Q,"VSAOI") -SUMIFS('VSAOI transakcijas'!$R:$R,'VSAOI transakcijas'!$D:$D,"Aprēķins",'VSAOI transakcijas'!$H:$H,"Pamatsumma",'VSAOI transakcijas'!$S:$S,">="&DATE(YEAR(E2),MONTH(E2),1),'VSAOI transakcijas'!$S:$S,"<="&'Sakuma lapa'!$F$16,'VSAOI transakcijas'!$O:$O,YEAR(DATE(YEAR(E2),MONTH(E2)+1,0)),'VSAOI transakcijas'!$P:$P,RIGHT("0"&MONTH(DATE(YEAR(E2),MONTH(E2)+1,0)),2),'VSAOI transakcijas'!$Q:$Q,"VSAOI",'VSAOI transakcijas'!$K:$K,"FIFO*") -SUMIFS('VSAOI transakcijas'!$R:$R,'VSAOI transakcijas'!$D:$D,"Aprēķins",'VSAOI transakcijas'!$H:$H,"Pamatsumma",'VSAOI transakcijas'!$S:$S,">="&DATE(YEAR(E2),MONTH(E2),1),'VSAOI transakcijas'!$S:$S,"<="&'Sakuma lapa'!$F$16,'VSAOI transakcijas'!$O:$O,YEAR(DATE(YEAR(E2),MONTH(E2)+1,0)),'VSAOI transakcijas'!$P:$P,RIGHT("0"&MONTH(DATE(YEAR(E2),MONTH(E2)+1,0)),2),'VSAOI transakcijas'!$Q:$Q,"VSAOI",'VSAOI transakcijas'!$K:$K,"Iemaksas atbrīvošana") -SUMIFS('VSAOI transakcijas'!$R:$R,'VSAOI transakcijas'!$H:$H,"Nokavējuma nauda",'VSAOI transakcijas'!$S:$S,">="&DATE(YEAR(E2),MONTH(E2),1),'VSAOI transakcijas'!$S:$S,"<="&'Sakuma lapa'!$F$16,'VSAOI transakcijas'!$O:$O,YEAR(DATE(YEAR(E2),MONTH(E2)+1,0)),'VSAOI transakcijas'!$P:$P,RIGHT("0"&MONTH(DATE(YEAR(E2),MONTH(E2)+1,0)),2),'VSAOI transakcijas'!$Q:$Q,"VSAOI") -> 0 | F39: =-SUMIFS('VSAOI transakcijas'!$R:$R,'VSAOI transakcijas'!$D:$D,"Iemaksa",'VSAOI transakcijas'!$H:$H,"Pamatsumma",'VSAOI transakcijas'!$S:$S,">="&DATE(YEAR(F2),MONTH(F2),1),'VSAOI transakcijas'!$S:$S,"<="&'Sakuma lapa'!$F$16,'VSAOI transakcijas'!$O:$O,YEAR(DATE(YEAR(F2),MONTH(F2)+1,0)),'VSAOI transakcijas'!$P:$P,RIGHT("0"&MONTH(DATE(YEAR(F2),MONTH(F2)+1,0)),2),'VSAOI transakcijas'!$Q:$Q,"VSAOI") -SUMIFS('VSAOI transakcijas'!$R:$R,'VSAOI transakcijas'!$D:$D,"Atmaksa",'VSAOI transakcijas'!$H:$H,"Pamatsumma",'VSAOI transakcijas'!$S:$S,">="&DATE(YEAR(F2),MONTH(F2),1),'VSAOI transakcijas'!$S:$S,"<="&'Sakuma lapa'!$F$16,'VSAOI transakcijas'!$O:$O,YEAR(DATE(YEAR(F2),MONTH(F2)+1,0)),'VSAOI transakcijas'!$P:$P,RIGHT("0"&MONTH(DATE(YEAR(F2),MONTH(F2)+1,0)),2),'VSAOI transakcijas'!$Q:$Q,"VSAOI") -SUMIFS('VSAOI transakcijas'!$R:$R,'VSAOI transakcijas'!$D:$D,"Aprēķins",'VSAOI transakcijas'!$H:$H,"Pamatsumma",'VSAOI transakcijas'!$S:$S,">="&DATE(YEAR(F2),MONTH(F2),1),'VSAOI transakcijas'!$S:$S,"<="&'Sakuma lapa'!$F$16,'VSAOI transakcijas'!$O:$O,YEAR(DATE(YEAR(F2),MONTH(F2)+1,0)),'VSAOI transakcijas'!$P:$P,RIGHT("0"&MONTH(DATE(YEAR(F2),MONTH(F2)+1,0)),2),'VSAOI transakcijas'!$Q:$Q,"VSAOI",'VSAOI transakcijas'!$K:$K,"FIFO*") -SUMIFS('VSAOI transakcijas'!$R:$R,'VSAOI transakcijas'!$D:$D,"Aprēķins",'VSAOI transakcijas'!$H:$H,"Pamatsumma",'VSAOI transakcijas'!$S:$S,">="&DATE(YEAR(F2),MONTH(F2),1),'VSAOI transakcijas'!$S:$S,"<="&'Sakuma lapa'!$F$16,'VSAOI transakcijas'!$O:$O,YEAR(DATE(YEAR(F2),MONTH(F2)+1,0)),'VSAOI transakcijas'!$P:$P,RIGHT("0"&MONTH(DATE(YEAR(F2),MONTH(F2)+1,0)),2),'VSAOI transakcijas'!$Q:$Q,"VSAOI",'VSAOI transakcijas'!$K:$K,"Iemaksas atbrīvošana") -SUMIFS('VSAOI transakcijas'!$R:$R,'VSAOI transakcijas'!$H:$H,"Nokavējuma nauda",'VSAOI transakcijas'!$S:$S,">="&DATE(YEAR(F2),MONTH(F2),1),'VSAOI transakcijas'!$S:$S,"<="&'Sakuma lapa'!$F$16,'VSAOI transakcijas'!$O:$O,YEAR(DATE(YEAR(F2),MONTH(F2)+1,0)),'VSAOI transakcijas'!$P:$P,RIGHT("0"&MONTH(DATE(YEAR(F2),MONTH(F2)+1,0)),2),'VSAOI transakcijas'!$Q:$Q,"VSAOI") -> 0 | G39: =-SUMIFS('VSAOI transakcijas'!$R:$R,'VSAOI transakcijas'!$D:$D,"Iemaksa",'VSAOI transakcijas'!$H:$H,"Pamatsumma",'VSAOI transakcijas'!$S:$S,">="&DATE(YEAR(G2),MONTH(G2),1),'VSAOI transakcijas'!$S:$S,"<="&'Sakuma lapa'!$F$16,'VSAOI transakcijas'!$O:$O,YEAR(DATE(YEAR(G2),MONTH(G2)+1,0)),'VSAOI transakcijas'!$P:$P,RIGHT("0"&MONTH(DATE(YEAR(G2),MONTH(G2)+1,0)),2),'VSAOI transakcijas'!$Q:$Q,"VSAOI") -SUMIFS('VSAOI transakcijas'!$R:$R,'VSAOI transakcijas'!$D:$D,"Atmaksa",'VSAOI transakcijas'!$H:$H,"Pamatsumma",'VSAOI transakcijas'!$S:$S,">="&DATE(YEAR(G2),MONTH(G2),1),'VSAOI transakcijas'!$S:$S,"<="&'Sakuma lapa'!$F$16,'VSAOI transakcijas'!$O:$O,YEAR(DATE(YEAR(G2),MONTH(G2)+1,0)),'VSAOI transakcijas'!$P:$P,RIGHT("0"&MONTH(DATE(YEAR(G2),MONTH(G2)+1,0)),2),'VSAOI transakcijas'!$Q:$Q,"VSAOI") -SUMIFS('VSAOI transakcijas'!$R:$R,'VSAOI transakcijas'!$D:$D,"Aprēķins",'VSAOI transakcijas'!$H:$H,"Pamatsumma",'VSAOI transakcijas'!$S:$S,">="&DATE(YEAR(G2),MONTH(G2),1),'VSAOI transakcijas'!$S:$S,"<="&'Sakuma lapa'!$F$16,'VSAOI transakcijas'!$O:$O,YEAR(DATE(YEAR(G2),MONTH(G2)+1,0)),'VSAOI transakcijas'!$P:$P,RIGHT("0"&MONTH(DATE(YEAR(G2),MONTH(G2)+1,0)),2),'VSAOI transakcijas'!$Q:$Q,"VSAOI",'VSAOI transakcijas'!$K:$K,"FIFO*") -SUMIFS('VSAOI transakcijas'!$R:$R,'VSAOI transakcijas'!$D:$D,"Aprēķins",'VSAOI transakcijas'!$H:$H,"Pamatsumma",'VSAOI transakcijas'!$S:$S,">="&DATE(YEAR(G2),MONTH(G2),1),'VSAOI transakcijas'!$S:$S,"<="&'Sakuma lapa'!$F$16,'VSAOI transakcijas'!$O:$O,YEAR(DATE(YEAR(G2),MONTH(G2)+1,0)),'VSAOI transakcijas'!$P:$P,RIGHT("0"&MONTH(DATE(YEAR(G2),MONTH(G2)+1,0)),2),'VSAOI transakcijas'!$Q:$Q,"VSAOI",'VSAOI transakcijas'!$K:$K,"Iemaksas atbrīvošana") -SUMIFS('VSAOI transakcijas'!$R:$R,'VSAOI transakcijas'!$H:$H,"Nokavējuma nauda",'VSAOI transakcijas'!$S:$S,">="&DATE(YEAR(G2),MONTH(G2),1),'VSAOI transakcijas'!$S:$S,"<="&'Sakuma lapa'!$F$16,'VSAOI transakcijas'!$O:$O,YEAR(DATE(YEAR(G2),MONTH(G2)+1,0)),'VSAOI transakcijas'!$P:$P,RIGHT("0"&MONTH(DATE(YEAR(G2),MONTH(G2)+1,0)),2),'VSAOI transakcijas'!$Q:$Q,"VSAOI") -> 0 | H39: =-SUMIFS('VSAOI transakcijas'!$R:$R,'VSAOI transakcijas'!$D:$D,"Iemaksa",'VSAOI transakcijas'!$H:$H,"Pamatsumma",'VSAOI transakcijas'!$S:$S,">="&DATE(YEAR(H2),MONTH(H2),1),'VSAOI transakcijas'!$S:$S,"<="&'Sakuma lapa'!$F$16,'VSAOI transakcijas'!$O:$O,YEAR(DATE(YEAR(H2),MONTH(H2)+1,0)),'VSAOI transakcijas'!$P:$P,RIGHT("0"&MONTH(DATE(YEAR(H2),MONTH(H2)+1,0)),2),'VSAOI transakcijas'!$Q:$Q,"VSAOI") -SUMIFS('VSAOI transakcijas'!$R:$R,'VSAOI transakcijas'!$D:$D,"Atmaksa",'VSAOI transakcijas'!$H:$H,"Pamatsumma",'VSAOI transakcijas'!$S:$S,">="&DATE(YEAR(H2),MONTH(H2),1),'VSAOI transakcijas'!$S:$S,"<="&'Sakuma lapa'!$F$16,'VSAOI transakcijas'!$O:$O,YEAR(DATE(YEAR(H2),MONTH(H2)+1,0)),'VSAOI transakcijas'!$P:$P,RIGHT("0"&MONTH(DATE(YEAR(H2),MONTH(H2)+1,0)),2),'VSAOI transakcijas'!$Q:$Q,"VSAOI") -SUMIFS('VSAOI transakcijas'!$R:$R,'VSAOI transakcijas'!$D:$D,"Aprēķins",'VSAOI transakcijas'!$H:$H,"Pamatsumma",'VSAOI transakcijas'!$S:$S,">="&DATE(YEAR(H2),MONTH(H2),1),'VSAOI transakcijas'!$S:$S,"<="&'Sakuma lapa'!$F$16,'VSAOI transakcijas'!$O:$O,YEAR(DATE(YEAR(H2),MONTH(H2)+1,0)),'VSAOI transakcijas'!$P:$P,RIGHT("0"&MONTH(DATE(YEAR(H2),MONTH(H2)+1,0)),2),'VSAOI transakcijas'!$Q:$Q,"VSAOI",'VSAOI transakcijas'!$K:$K,"FIFO*") -SUMIFS('VSAOI transakcijas'!$R:$R,'VSAOI transakcijas'!$D:$D,"Aprēķins",'VSAOI transakcijas'!$H:$H,"Pamatsumma",'VSAOI transakcijas'!$S:$S,">="&DATE(YEAR(H2),MONTH(H2),1),'VSAOI transakcijas'!$S:$S,"<="&'Sakuma lapa'!$F$16,'VSAOI transakcijas'!$O:$O,YEAR(DATE(YEAR(H2),MONTH(H2)+1,0)),'VSAOI transakcijas'!$P:$P,RIGHT("0"&MONTH(DATE(YEAR(H2),MONTH(H2)+1,0)),2),'VSAOI transakcijas'!$Q:$Q,"VSAOI",'VSAOI transakcijas'!$K:$K,"Iemaksas atbrīvošana") -SUMIFS('VSAOI transakcijas'!$R:$R,'VSAOI transakcijas'!$H:$H,"Nokavējuma nauda",'VSAOI transakcijas'!$S:$S,">="&DATE(YEAR(H2),MONTH(H2),1),'VSAOI transakcijas'!$S:$S,"<="&'Sakuma lapa'!$F$16,'VSAOI transakcijas'!$O:$O,YEAR(DATE(YEAR(H2),MONTH(H2)+1,0)),'VSAOI transakcijas'!$P:$P,RIGHT("0"&MONTH(DATE(YEAR(H2),MONTH(H2)+1,0)),2),'VSAOI transakcijas'!$Q:$Q,"VSAOI") -> 0 | I39: =-SUMIFS('VSAOI transakcijas'!$R:$R,'VSAOI transakcijas'!$D:$D,"Iemaksa",'VSAOI transakcijas'!$H:$H,"Pamatsumma",'VSAOI transakcijas'!$S:$S,">="&DATE(YEAR(I2),MONTH(I2),1),'VSAOI transakcijas'!$S:$S,"<="&'Sakuma lapa'!$F$16,'VSAOI transakcijas'!$O:$O,YEAR(DATE(YEAR(I2),MONTH(I2)+1,0)),'VSAOI transakcijas'!$P:$P,RIGHT("0"&MONTH(DATE(YEAR(I2),MONTH(I2)+1,0)),2),'VSAOI transakcijas'!$Q:$Q,"VSAOI") -SUMIFS('VSAOI transakcijas'!$R:$R,'VSAOI transakcijas'!$D:$D,"Atmaksa",'VSAOI transakcijas'!$H:$H,"Pamatsumma",'VSAOI transakcijas'!$S:$S,">="&DATE(YEAR(I2),MONTH(I2),1),'VSAOI transakcijas'!$S:$S,"<="&'Sakuma lapa'!$F$16,'VSAOI transakcijas'!$O:$O,YEAR(DATE(YEAR(I2),MONTH(I2)+1,0)),'VSAOI transakcijas'!$P:$P,RIGHT("0"&MONTH(DATE(YEAR(I2),MONTH(I2)+1,0)),2),'VSAOI transakcijas'!$Q:$Q,"VSAOI") -SUMIFS('VSAOI transakcijas'!$R:$R,'VSAOI transakcijas'!$D:$D,"Aprēķins",'VSAOI transakcijas'!$H:$H,"Pamatsumma",'VSAOI transakcijas'!$S:$S,">="&DATE(YEAR(I2),MONTH(I2),1),'VSAOI transakcijas'!$S:$S,"<="&'Sakuma lapa'!$F$16,'VSAOI transakcijas'!$O:$O,YEAR(DATE(YEAR(I2),MONTH(I2)+1,0)),'VSAOI transakcijas'!$P:$P,RIGHT("0"&MONTH(DATE(YEAR(I2),MONTH(I2)+1,0)),2),'VSAOI transakcijas'!$Q:$Q,"VSAOI",'VSAOI transakcijas'!$K:$K,"FIFO*") -SUMIFS('VSAOI transakcijas'!$R:$R,'VSAOI transakcijas'!$D:$D,"Aprēķins",'VSAOI transakcijas'!$H:$H,"Pamatsumma",'VSAOI transakcijas'!$S:$S,">="&DATE(YEAR(I2),MONTH(I2),1),'VSAOI transakcijas'!$S:$S,"<="&'Sakuma lapa'!$F$16,'VSAOI transakcijas'!$O:$O,YEAR(DATE(YEAR(I2),MONTH(I2)+1,0)),'VSAOI transakcijas'!$P:$P,RIGHT("0"&MONTH(DATE(YEAR(I2),MONTH(I2)+1,0)),2),'VSAOI transakcijas'!$Q:$Q,"VSAOI",'VSAOI transakcijas'!$K:$K,"Iemaksas atbrīvošana") -SUMIFS('VSAOI transakcijas'!$R:$R,'VSAOI transakcijas'!$H:$H,"Nokavējuma nauda",'VSAOI transakcijas'!$S:$S,">="&DATE(YEAR(I2),MONTH(I2),1),'VSAOI transakcijas'!$S:$S,"<="&'Sakuma lapa'!$F$16,'VSAOI transakcijas'!$O:$O,YEAR(DATE(YEAR(I2),MONTH(I2)+1,0)),'VSAOI transakcijas'!$P:$P,RIGHT("0"&MONTH(DATE(YEAR(I2),MONTH(I2)+1,0)),2),'VSAOI transakcijas'!$Q:$Q,"VSAOI") -> 0 | J39: =-SUMIFS('VSAOI transakcijas'!$R:$R,'VSAOI transakcijas'!$D:$D,"Iemaksa",'VSAOI transakcijas'!$H:$H,"Pamatsumma",'VSAOI transakcijas'!$S:$S,">="&DATE(YEAR(J2),MONTH(J2),1),'VSAOI transakcijas'!$S:$S,"<="&'Sakuma lapa'!$F$16,'VSAOI transakcijas'!$O:$O,YEAR(DATE(YEAR(J2),MONTH(J2)+1,0)),'VSAOI transakcijas'!$P:$P,RIGHT("0"&MONTH(DATE(YEAR(J2),MONTH(J2)+1,0)),2),'VSAOI transakcijas'!$Q:$Q,"VSAOI") -SUMIFS('VSAOI transakcijas'!$R:$R,'VSAOI transakcijas'!$D:$D,"Atmaksa",'VSAOI transakcijas'!$H:$H,"Pamatsumma",'VSAOI transakcijas'!$S:$S,">="&DATE(YEAR(J2),MONTH(J2),1),'VSAOI transakcijas'!$S:$S,"<="&'Sakuma lapa'!$F$16,'VSAOI transakcijas'!$O:$O,YEAR(DATE(YEAR(J2),MONTH(J2)+1,0)),'VSAOI transakcijas'!$P:$P,RIGHT("0"&MONTH(DATE(YEAR(J2),MONTH(J2)+1,0)),2),'VSAOI transakcijas'!$Q:$Q,"VSAOI") -SUMIFS('VSAOI transakcijas'!$R:$R,'VSAOI transakcijas'!$D:$D,"Aprēķins",'VSAOI transakcijas'!$H:$H,"Pamatsumma",'VSAOI transakcijas'!$S:$S,">="&DATE(YEAR(J2),MONTH(J2),1),'VSAOI transakcijas'!$S:$S,"<="&'Sakuma lapa'!$F$16,'VSAOI transakcijas'!$O:$O,YEAR(DATE(YEAR(J2),MONTH(J2)+1,0)),'VSAOI transakcijas'!$P:$P,RIGHT("0"&MONTH(DATE(YEAR(J2),MONTH(J2)+1,0)),2),'VSAOI transakcijas'!$Q:$Q,"VSAOI",'VSAOI transakcijas'!$K:$K,"FIFO*") -SUMIFS('VSAOI transakcijas'!$R:$R,'VSAOI transakcijas'!$D:$D,"Aprēķins",'VSAOI transakcijas'!$H:$H,"Pamatsumma",'VSAOI transakcijas'!$S:$S,">="&DATE(YEAR(J2),MONTH(J2),1),'VSAOI transakcijas'!$S:$S,"<="&'Sakuma lapa'!$F$16,'VSAOI transakcijas'!$O:$O,YEAR(DATE(YEAR(J2),MONTH(J2)+1,0)),'VSAOI transakcijas'!$P:$P,RIGHT("0"&MONTH(DATE(YEAR(J2),MONTH(J2)+1,0)),2),'VSAOI transakcijas'!$Q:$Q,"VSAOI",'VSAOI transakcijas'!$K:$K,"Iemaksas atbrīvošana") -SUMIFS('VSAOI transakcijas'!$R:$R,'VSAOI transakcijas'!$H:$H,"Nokavējuma nauda",'VSAOI transakcijas'!$S:$S,">="&DATE(YEAR(J2),MONTH(J2),1),'VSAOI transakcijas'!$S:$S,"<="&'Sakuma lapa'!$F$16,'VSAOI transakcijas'!$O:$O,YEAR(DATE(YEAR(J2),MONTH(J2)+1,0)),'VSAOI transakcijas'!$P:$P,RIGHT("0"&MONTH(DATE(YEAR(J2),MONTH(J2)+1,0)),2),'VSAOI transakcijas'!$Q:$Q,"VSAOI") -> 0 | K39: =-SUMIFS('VSAOI transakcijas'!$R:$R,'VSAOI transakcijas'!$D:$D,"Iemaksa",'VSAOI transakcijas'!$H:$H,"Pamatsumma",'VSAOI transakcijas'!$S:$S,">="&DATE(YEAR(K2),MONTH(K2),1),'VSAOI transakcijas'!$S:$S,"<="&'Sakuma lapa'!$F$16,'VSAOI transakcijas'!$O:$O,YEAR(DATE(YEAR(K2),MONTH(K2)+1,0)),'VSAOI transakcijas'!$P:$P,RIGHT("0"&MONTH(DATE(YEAR(K2),MONTH(K2)+1,0)),2),'VSAOI transakcijas'!$Q:$Q,"VSAOI") -SUMIFS('VSAOI transakcijas'!$R:$R,'VSAOI transakcijas'!$D:$D,"Atmaksa",'VSAOI transakcijas'!$H:$H,"Pamatsumma",'VSAOI transakcijas'!$S:$S,">="&DATE(YEAR(K2),MONTH(K2),1),'VSAOI transakcijas'!$S:$S,"<="&'Sakuma lapa'!$F$16,'VSAOI transakcijas'!$O:$O,YEAR(DATE(YEAR(K2),MONTH(K2)+1,0)),'VSAOI transakcijas'!$P:$P,RIGHT("0"&MONTH(DATE(YEAR(K2),MONTH(K2)+1,0)),2),'VSAOI transakcijas'!$Q:$Q,"VSAOI") -SUMIFS('VSAOI transakcijas'!$R:$R,'VSAOI transakcijas'!$D:$D,"Aprēķins",'VSAOI transakcijas'!$H:$H,"Pamatsumma",'VSAOI transakcijas'!$S:$S,">="&DATE(YEAR(K2),MONTH(K2),1),'VSAOI transakcijas'!$S:$S,"<="&'Sakuma lapa'!$F$16,'VSAOI transakcijas'!$O:$O,YEAR(DATE(YEAR(K2),MONTH(K2)+1,0)),'VSAOI transakcijas'!$P:$P,RIGHT("0"&MONTH(DATE(YEAR(K2),MONTH(K2)+1,0)),2),'VSAOI transakcijas'!$Q:$Q,"VSAOI",'VSAOI transakcijas'!$K:$K,"FIFO*") -SUMIFS('VSAOI transakcijas'!$R:$R,'VSAOI transakcijas'!$D:$D,"Aprēķins",'VSAOI transakcijas'!$H:$H,"Pamatsumma",'VSAOI transakcijas'!$S:$S,">="&DATE(YEAR(K2),MONTH(K2),1),'VSAOI transakcijas'!$S:$S,"<="&'Sakuma lapa'!$F$16,'VSAOI transakcijas'!$O:$O,YEAR(DATE(YEAR(K2),MONTH(K2)+1,0)),'VSAOI transakcijas'!$P:$P,RIGHT("0"&MONTH(DATE(YEAR(K2),MONTH(K2)+1,0)),2),'VSAOI transakcijas'!$Q:$Q,"VSAOI",'VSAOI transakcijas'!$K:$K,"Iemaksas atbrīvošana") -SUMIFS('VSAOI transakcijas'!$R:$R,'VSAOI transakcijas'!$H:$H,"Nokavējuma nauda",'VSAOI transakcijas'!$S:$S,">="&DATE(YEAR(K2),MONTH(K2),1),'VSAOI transakcijas'!$S:$S,"<="&'Sakuma lapa'!$F$16,'VSAOI transakcijas'!$O:$O,YEAR(DATE(YEAR(K2),MONTH(K2)+1,0)),'VSAOI transakcijas'!$P:$P,RIGHT("0"&MONTH(DATE(YEAR(K2),MONTH(K2)+1,0)),2),'VSAOI transakcijas'!$Q:$Q,"VSAOI") -> 0 | L39: =-SUMIFS('VSAOI transakcijas'!$R:$R,'VSAOI transakcijas'!$D:$D,"Iemaksa",'VSAOI transakcijas'!$H:$H,"Pamatsumma",'VSAOI transakcijas'!$S:$S,">="&DATE(YEAR(L2),MONTH(L2),1),'VSAOI transakcijas'!$S:$S,"<="&'Sakuma lapa'!$F$16,'VSAOI transakcijas'!$O:$O,YEAR(DATE(YEAR(L2),MONTH(L2)+1,0)),'VSAOI transakcijas'!$P:$P,RIGHT("0"&MONTH(DATE(YEAR(L2),MONTH(L2)+1,0)),2),'VSAOI transakcijas'!$Q:$Q,"VSAOI") -SUMIFS('VSAOI transakcijas'!$R:$R,'VSAOI transakcijas'!$D:$D,"Atmaksa",'VSAOI transakcijas'!$H:$H,"Pamatsumma",'VSAOI transakcijas'!$S:$S,">="&DATE(YEAR(L2),MONTH(L2),1),'VSAOI transakcijas'!$S:$S,"<="&'Sakuma lapa'!$F$16,'VSAOI transakcijas'!$O:$O,YEAR(DATE(YEAR(L2),MONTH(L2)+1,0)),'VSAOI transakcijas'!$P:$P,RIGHT("0"&MONTH(DATE(YEAR(L2),MONTH(L2)+1,0)),2),'VSAOI transakcijas'!$Q:$Q,"VSAOI") -SUMIFS('VSAOI transakcijas'!$R:$R,'VSAOI transakcijas'!$D:$D,"Aprēķins",'VSAOI transakcijas'!$H:$H,"Pamatsumma",'VSAOI transakcijas'!$S:$S,">="&DATE(YEAR(L2),MONTH(L2),1),'VSAOI transakcijas'!$S:$S,"<="&'Sakuma lapa'!$F$16,'VSAOI transakcijas'!$O:$O,YEAR(DATE(YEAR(L2),MONTH(L2)+1,0)),'VSAOI transakcijas'!$P:$P,RIGHT("0"&MONTH(DATE(YEAR(L2),MONTH(L2)+1,0)),2),'VSAOI transakcijas'!$Q:$Q,"VSAOI",'VSAOI transakcijas'!$K:$K,"FIFO*") -SUMIFS('VSAOI transakcijas'!$R:$R,'VSAOI transakcijas'!$D:$D,"Aprēķins",'VSAOI transakcijas'!$H:$H,"Pamatsumma",'VSAOI transakcijas'!$S:$S,">="&DATE(YEAR(L2),MONTH(L2),1),'VSAOI transakcijas'!$S:$S,"<="&'Sakuma lapa'!$F$16,'VSAOI transakcijas'!$O:$O,YEAR(DATE(YEAR(L2),MONTH(L2)+1,0)),'VSAOI transakcijas'!$P:$P,RIGHT("0"&MONTH(DATE(YEAR(L2),MONTH(L2)+1,0)),2),'VSAOI transakcijas'!$Q:$Q,"VSAOI",'VSAOI transakcijas'!$K:$K,"Iemaksas atbrīvošana") -SUMIFS('VSAOI transakcijas'!$R:$R,'VSAOI transakcijas'!$H:$H,"Nokavējuma nauda",'VSAOI transakcijas'!$S:$S,">="&DATE(YEAR(L2),MONTH(L2),1),'VSAOI transakcijas'!$S:$S,"<="&'Sakuma lapa'!$F$16,'VSAOI transakcijas'!$O:$O,YEAR(DATE(YEAR(L2),MONTH(L2)+1,0)),'VSAOI transakcijas'!$P:$P,RIGHT("0"&MONTH(DATE(YEAR(L2),MONTH(L2)+1,0)),2),'VSAOI transakcijas'!$Q:$Q,"VSAOI") -> 0 | M39: =-SUMIFS('VSAOI transakcijas'!$R:$R,'VSAOI transakcijas'!$D:$D,"Iemaksa",'VSAOI transakcijas'!$H:$H,"Pamatsumma",'VSAOI transakcijas'!$S:$S,">="&DATE(YEAR(M2),MONTH(M2),1),'VSAOI transakcijas'!$S:$S,"<="&'Sakuma lapa'!$F$16,'VSAOI transakcijas'!$O:$O,YEAR(DATE(YEAR(M2),MONTH(M2)+1,0)),'VSAOI transakcijas'!$P:$P,RIGHT("0"&MONTH(DATE(YEAR(M2),MONTH(M2)+1,0)),2),'VSAOI transakcijas'!$Q:$Q,"VSAOI") -SUMIFS('VSAOI transakcijas'!$R:$R,'VSAOI transakcijas'!$D:$D,"Atmaksa",'VSAOI transakcijas'!$H:$H,"Pamatsumma",'VSAOI transakcijas'!$S:$S,">="&DATE(YEAR(M2),MONTH(M2),1),'VSAOI transakcijas'!$S:$S,"<="&'Sakuma lapa'!$F$16,'VSAOI transakcijas'!$O:$O,YEAR(DATE(YEAR(M2),MONTH(M2)+1,0)),'VSAOI transakcijas'!$P:$P,RIGHT("0"&MONTH(DATE(YEAR(M2),MONTH(M2)+1,0)),2),'VSAOI transakcijas'!$Q:$Q,"VSAOI") -SUMIFS('VSAOI transakcijas'!$R:$R,'VSAOI transakcijas'!$D:$D,"Aprēķins",'VSAOI transakcijas'!$H:$H,"Pamatsumma",'VSAOI transakcijas'!$S:$S,">="&DATE(YEAR(M2),MONTH(M2),1),'VSAOI transakcijas'!$S:$S,"<="&'Sakuma lapa'!$F$16,'VSAOI transakcijas'!$O:$O,YEAR(DATE(YEAR(M2),MONTH(M2)+1,0)),'VSAOI transakcijas'!$P:$P,RIGHT("0"&MONTH(DATE(YEAR(M2),MONTH(M2)+1,0)),2),'VSAOI transakcijas'!$Q:$Q,"VSAOI",'VSAOI transakcijas'!$K:$K,"FIFO*") -SUMIFS('VSAOI transakcijas'!$R:$R,'VSAOI transakcijas'!$D:$D,"Aprēķins",'VSAOI transakcijas'!$H:$H,"Pamatsumma",'VSAOI transakcijas'!$S:$S,">="&DATE(YEAR(M2),MONTH(M2),1),'VSAOI transakcijas'!$S:$S,"<="&'Sakuma lapa'!$F$16,'VSAOI transakcijas'!$O:$O,YEAR(DATE(YEAR(M2),MONTH(M2)+1,0)),'VSAOI transakcijas'!$P:$P,RIGHT("0"&MONTH(DATE(YEAR(M2),MONTH(M2)+1,0)),2),'VSAOI transakcijas'!$Q:$Q,"VSAOI",'VSAOI transakcijas'!$K:$K,"Iemaksas atbrīvošana") -SUMIFS('VSAOI transakcijas'!$R:$R,'VSAOI transakcijas'!$H:$H,"Nokavējuma nauda",'VSAOI transakcijas'!$S:$S,">="&DATE(YEAR(M2),MONTH(M2),1),'VSAOI transakcijas'!$S:$S,"<="&'Sakuma lapa'!$F$16,'VSAOI transakcijas'!$O:$O,YEAR(DATE(YEAR(M2),MONTH(M2)+1,0)),'VSAOI transakcijas'!$P:$P,RIGHT("0"&MONTH(DATE(YEAR(M2),MONTH(M2)+1,0)),2),'VSAOI transakcijas'!$Q:$Q,"VSAOI") -> 0 | N39: =-SUMIFS('VSAOI transakcijas'!$R:$R,'VSAOI transakcijas'!$D:$D,"Iemaksa",'VSAOI transakcijas'!$H:$H,"Pamatsumma",'VSAOI transakcijas'!$S:$S,">="&DATE(YEAR(N2),MONTH(N2),1),'VSAOI transakcijas'!$S:$S,"<="&'Sakuma lapa'!$F$16,'VSAOI transakcijas'!$O:$O,YEAR(DATE(YEAR(N2),MONTH(N2)+1,0)),'VSAOI transakcijas'!$P:$P,RIGHT("0"&MONTH(DATE(YEAR(N2),MONTH(N2)+1,0)),2),'VSAOI transakcijas'!$Q:$Q,"VSAOI") -SUMIFS('VSAOI transakcijas'!$R:$R,'VSAOI transakcijas'!$D:$D,"Atmaksa",'VSAOI transakcijas'!$H:$H,"Pamatsumma",'VSAOI transakcijas'!$S:$S,">="&DATE(YEAR(N2),MONTH(N2),1),'VSAOI transakcijas'!$S:$S,"<="&'Sakuma lapa'!$F$16,'VSAOI transakcijas'!$O:$O,YEAR(DATE(YEAR(N2),MONTH(N2)+1,0)),'VSAOI transakcijas'!$P:$P,RIGHT("0"&MONTH(DATE(YEAR(N2),MONTH(N2)+1,0)),2),'VSAOI transakcijas'!$Q:$Q,"VSAOI") -SUMIFS('VSAOI transakcijas'!$R:$R,'VSAOI transakcijas'!$D:$D,"Aprēķins",'VSAOI transakcijas'!$H:$H,"Pamatsumma",'VSAOI transakcijas'!$S:$S,">="&DATE(YEAR(N2),MONTH(N2),1),'VSAOI transakcijas'!$S:$S,"<="&'Sakuma lapa'!$F$16,'VSAOI transakcijas'!$O:$O,YEAR(DATE(YEAR(N2),MONTH(N2)+1,0)),'VSAOI transakcijas'!$P:$P,RIGHT("0"&MONTH(DATE(YEAR(N2),MONTH(N2)+1,0)),2),'VSAOI transakcijas'!$Q:$Q,"VSAOI",'VSAOI transakcijas'!$K:$K,"FIFO*") -SUMIFS('VSAOI transakcijas'!$R:$R,'VSAOI transakcijas'!$D:$D,"Aprēķins",'VSAOI transakcijas'!$H:$H,"Pamatsumma",'VSAOI transakcijas'!$S:$S,">="&DATE(YEAR(N2),MONTH(N2),1),'VSAOI transakcijas'!$S:$S,"<="&'Sakuma lapa'!$F$16,'VSAOI transakcijas'!$O:$O,YEAR(DATE(YEAR(N2),MONTH(N2)+1,0)),'VSAOI transakcijas'!$P:$P,RIGHT("0"&MONTH(DATE(YEAR(N2),MONTH(N2)+1,0)),2),'VSAOI transakcijas'!$Q:$Q,"VSAOI",'VSAOI transakcijas'!$K:$K,"Iemaksas atbrīvošana") -SUMIFS('VSAOI transakcijas'!$R:$R,'VSAOI transakcijas'!$H:$H,"Nokavējuma nauda",'VSAOI transakcijas'!$S:$S,">="&DATE(YEAR(N2),MONTH(N2),1),'VSAOI transakcijas'!$S:$S,"<="&'Sakuma lapa'!$F$16,'VSAOI transakcijas'!$O:$O,YEAR(DATE(YEAR(N2),MONTH(N2)+1,0)),'VSAOI transakcijas'!$P:$P,RIGHT("0"&MONTH(DATE(YEAR(N2),MONTH(N2)+1,0)),2),'VSAOI transakcijas'!$Q:$Q,"VSAOI") -> 0 | O39: =SUM(C39:N39) -> 0
B40: VG beigu atlikums
B41: VG beigu atlikuma starpība | C41: =IF(C40="","-",C40-D36) -> - | D41: - | E41: - | F41: - | G41: - | H41: - | I41: - | J41: - | K41: - | L41: - | M41: - | N41: -
B42: Starpība starp deklarācijām un TransParsk | C42: =C7-C37 -> 0 | D42: 0 | E42: 0 | F42: 0 | G42: 0 | H42: 0 | I42: 0 | J42: 0 | K42: 0 | L42: 0 | M42: 0 | N42: 0 | O42: =SUM(C42:N42) -> 0
B44: IIN - VG sakuma atlikums | D44: =SUM(C44:C47) -> 0 | E44: 0 | F44: 0 | G44: 0 | H44: 0 | I44: 0 | J44: 0 | K44: 0 | L44: 0 | M44: 0 | N44: 0 | O44: =SUM(N44:N47) -> 0
B45: Aprēķins - Deklarācijas | C45: =-SUMIFS('VSAOI transakcijas'!$R:$R,'VSAOI transakcijas'!$D:$D,"Aprēķins",'VSAOI transakcijas'!$H:$H,"Pamatsumma",'VSAOI transakcijas'!$S:$S,">="&DATE(YEAR(C2),MONTH(C2),1),'VSAOI transakcijas'!$S:$S,"<="&'Sakuma lapa'!$F$16,'VSAOI transakcijas'!$O:$O,YEAR(DATE(YEAR(C2),MONTH(C2)+2,0)),'VSAOI transakcijas'!$P:$P,RIGHT("0"&MONTH(DATE(YEAR(C2),MONTH(C2)+2,0)),2),'VSAOI transakcijas'!$Q:$Q,"IIN",'VSAOI transakcijas'!$K:$K,"<>"&"FIFO*",'VSAOI transakcijas'!$K:$K,"<>"&"Iemaksas atbrīvošana",'VSAOI transakcijas'!$E:$E,"Deklarācija/pārskats") -> 0 | D45: =-SUMIFS('VSAOI transakcijas'!$R:$R,'VSAOI transakcijas'!$D:$D,"Aprēķins",'VSAOI transakcijas'!$H:$H,"Pamatsumma",'VSAOI transakcijas'!$S:$S,">="&DATE(YEAR(D2),MONTH(D2),1),'VSAOI transakcijas'!$S:$S,"<="&'Sakuma lapa'!$F$16,'VSAOI transakcijas'!$O:$O,YEAR(DATE(YEAR(D2),MONTH(D2)+2,0)),'VSAOI transakcijas'!$P:$P,RIGHT("0"&MONTH(DATE(YEAR(D2),MONTH(D2)+2,0)),2),'VSAOI transakcijas'!$Q:$Q,"IIN",'VSAOI transakcijas'!$K:$K,"<>"&"FIFO*",'VSAOI transakcijas'!$K:$K,"<>"&"Iemaksas atbrīvošana") -> 0 | E45: =-SUMIFS('VSAOI transakcijas'!$R:$R,'VSAOI transakcijas'!$D:$D,"Aprēķins",'VSAOI transakcijas'!$H:$H,"Pamatsumma",'VSAOI transakcijas'!$S:$S,">="&DATE(YEAR(E2),MONTH(E2),1),'VSAOI transakcijas'!$S:$S,"<="&'Sakuma lapa'!$F$16,'VSAOI transakcijas'!$O:$O,YEAR(DATE(YEAR(E2),MONTH(E2)+2,0)),'VSAOI transakcijas'!$P:$P,RIGHT("0"&MONTH(DATE(YEAR(E2),MONTH(E2)+2,0)),2),'VSAOI transakcijas'!$Q:$Q,"IIN",'VSAOI transakcijas'!$K:$K,"<>"&"FIFO*",'VSAOI transakcijas'!$K:$K,"<>"&"Iemaksas atbrīvošana") -> 0 | F45: =-SUMIFS('VSAOI transakcijas'!$R:$R,'VSAOI transakcijas'!$D:$D,"Aprēķins",'VSAOI transakcijas'!$H:$H,"Pamatsumma",'VSAOI transakcijas'!$S:$S,">="&DATE(YEAR(F2),MONTH(F2),1),'VSAOI transakcijas'!$S:$S,"<="&'Sakuma lapa'!$F$16,'VSAOI transakcijas'!$O:$O,YEAR(DATE(YEAR(F2),MONTH(F2)+2,0)),'VSAOI transakcijas'!$P:$P,RIGHT("0"&MONTH(DATE(YEAR(F2),MONTH(F2)+2,0)),2),'VSAOI transakcijas'!$Q:$Q,"IIN",'VSAOI transakcijas'!$K:$K,"<>"&"FIFO*",'VSAOI transakcijas'!$K:$K,"<>"&"Iemaksas atbrīvošana") -> 0 | G45: =-SUMIFS('VSAOI transakcijas'!$R:$R,'VSAOI transakcijas'!$D:$D,"Aprēķins",'VSAOI transakcijas'!$H:$H,"Pamatsumma",'VSAOI transakcijas'!$S:$S,">="&DATE(YEAR(G2),MONTH(G2),1),'VSAOI transakcijas'!$S:$S,"<="&'Sakuma lapa'!$F$16,'VSAOI transakcijas'!$O:$O,YEAR(DATE(YEAR(G2),MONTH(G2)+2,0)),'VSAOI transakcijas'!$P:$P,RIGHT("0"&MONTH(DATE(YEAR(G2),MONTH(G2)+2,0)),2),'VSAOI transakcijas'!$Q:$Q,"IIN",'VSAOI transakcijas'!$K:$K,"<>"&"FIFO*",'VSAOI transakcijas'!$K:$K,"<>"&"Iemaksas atbrīvošana") -> 0 | H45: =-SUMIFS('VSAOI transakcijas'!$R:$R,'VSAOI transakcijas'!$D:$D,"Aprēķins",'VSAOI transakcijas'!$H:$H,"Pamatsumma",'VSAOI transakcijas'!$S:$S,">="&DATE(YEAR(H2),MONTH(H2),1),'VSAOI transakcijas'!$S:$S,"<="&'Sakuma lapa'!$F$16,'VSAOI transakcijas'!$O:$O,YEAR(DATE(YEAR(H2),MONTH(H2)+2,0)),'VSAOI transakcijas'!$P:$P,RIGHT("0"&MONTH(DATE(YEAR(H2),MONTH(H2)+2,0)),2),'VSAOI transakcijas'!$Q:$Q,"IIN",'VSAOI transakcijas'!$K:$K,"<>"&"FIFO*",'VSAOI transakcijas'!$K:$K,"<>"&"Iemaksas atbrīvošana") -> 0 | I45: =-SUMIFS('VSAOI transakcijas'!$R:$R,'VSAOI transakcijas'!$D:$D,"Aprēķins",'VSAOI transakcijas'!$H:$H,"Pamatsumma",'VSAOI transakcijas'!$S:$S,">="&DATE(YEAR(I2),MONTH(I2),1),'VSAOI transakcijas'!$S:$S,"<="&'Sakuma lapa'!$F$16,'VSAOI transakcijas'!$O:$O,YEAR(DATE(YEAR(I2),MONTH(I2)+2,0)),'VSAOI transakcijas'!$P:$P,RIGHT("0"&MONTH(DATE(YEAR(I2),MONTH(I2)+2,0)),2),'VSAOI transakcijas'!$Q:$Q,"IIN",'VSAOI transakcijas'!$K:$K,"<>"&"FIFO*",'VSAOI transakcijas'!$K:$K,"<>"&"Iemaksas atbrīvošana") -> 0 | J45: =-SUMIFS('VSAOI transakcijas'!$R:$R,'VSAOI transakcijas'!$D:$D,"Aprēķins",'VSAOI transakcijas'!$H:$H,"Pamatsumma",'VSAOI transakcijas'!$S:$S,">="&DATE(YEAR(J2),MONTH(J2),1),'VSAOI transakcijas'!$S:$S,"<="&'Sakuma lapa'!$F$16,'VSAOI transakcijas'!$O:$O,YEAR(DATE(YEAR(J2),MONTH(J2)+2,0)),'VSAOI transakcijas'!$P:$P,RIGHT("0"&MONTH(DATE(YEAR(J2),MONTH(J2)+2,0)),2),'VSAOI transakcijas'!$Q:$Q,"IIN",'VSAOI transakcijas'!$K:$K,"<>"&"FIFO*",'VSAOI transakcijas'!$K:$K,"<>"&"Iemaksas atbrīvošana") -> 0 | K45: =-SUMIFS('VSAOI transakcijas'!$R:$R,'VSAOI transakcijas'!$D:$D,"Aprēķins",'VSAOI transakcijas'!$H:$H,"Pamatsumma",'VSAOI transakcijas'!$S:$S,">="&DATE(YEAR(K2),MONTH(K2),1),'VSAOI transakcijas'!$S:$S,"<="&'Sakuma lapa'!$F$16,'VSAOI transakcijas'!$O:$O,YEAR(DATE(YEAR(K2),MONTH(K2)+2,0)),'VSAOI transakcijas'!$P:$P,RIGHT("0"&MONTH(DATE(YEAR(K2),MONTH(K2)+2,0)),2),'VSAOI transakcijas'!$Q:$Q,"IIN",'VSAOI transakcijas'!$K:$K,"<>"&"FIFO*",'VSAOI transakcijas'!$K:$K,"<>"&"Iemaksas atbrīvošana") -> 0 | L45: =-SUMIFS('VSAOI transakcijas'!$R:$R,'VSAOI transakcijas'!$D:$D,"Aprēķins",'VSAOI transakcijas'!$H:$H,"Pamatsumma",'VSAOI transakcijas'!$S:$S,">="&DATE(YEAR(L2),MONTH(L2),1),'VSAOI transakcijas'!$S:$S,"<="&'Sakuma lapa'!$F$16,'VSAOI transakcijas'!$O:$O,YEAR(DATE(YEAR(L2),MONTH(L2)+2,0)),'VSAOI transakcijas'!$P:$P,RIGHT("0"&MONTH(DATE(YEAR(L2),MONTH(L2)+2,0)),2),'VSAOI transakcijas'!$Q:$Q,"IIN",'VSAOI transakcijas'!$K:$K,"<>"&"FIFO*",'VSAOI transakcijas'!$K:$K,"<>"&"Iemaksas atbrīvošana") -> 0 | M45: =-SUMIFS('VSAOI transakcijas'!$R:$R,'VSAOI transakcijas'!$D:$D,"Aprēķins",'VSAOI transakcijas'!$H:$H,"Pamatsumma",'VSAOI transakcijas'!$S:$S,">="&DATE(YEAR(M2),MONTH(M2),1),'VSAOI transakcijas'!$S:$S,"<="&'Sakuma lapa'!$F$16,'VSAOI transakcijas'!$O:$O,YEAR(DATE(YEAR(M2),MONTH(M2)+2,0)),'VSAOI transakcijas'!$P:$P,RIGHT("0"&MONTH(DATE(YEAR(M2),MONTH(M2)+2,0)),2),'VSAOI transakcijas'!$Q:$Q,"IIN",'VSAOI transakcijas'!$K:$K,"<>"&"FIFO*",'VSAOI transakcijas'!$K:$K,"<>"&"Iemaksas atbrīvošana") -> 0 | N45: =-SUMIFS('VSAOI transakcijas'!$R:$R,'VSAOI transakcijas'!$D:$D,"Aprēķins",'VSAOI transakcijas'!$H:$H,"Pamatsumma",'VSAOI transakcijas'!$S:$S,">="&DATE(YEAR(N2),MONTH(N2),1),'VSAOI transakcijas'!$S:$S,"<="&'Sakuma lapa'!$F$16,'VSAOI transakcijas'!$O:$O,YEAR(DATE(YEAR(N2),MONTH(N2)+2,0)),'VSAOI transakcijas'!$P:$P,RIGHT("0"&MONTH(DATE(YEAR(N2),MONTH(N2)+2,0)),2),'VSAOI transakcijas'!$Q:$Q,"IIN",'VSAOI transakcijas'!$K:$K,"<>"&"FIFO*",'VSAOI transakcijas'!$K:$K,"<>"&"Iemaksas atbrīvošana") -> 0 | O45: =SUM(C45:N45) -> 0
B46: Aprēķins - Citi | C46: =-SUMIFS('VSAOI transakcijas'!$R:$R,'VSAOI transakcijas'!$D:$D,"Aprēķins",'VSAOI transakcijas'!$H:$H,"Pamatsumma",'VSAOI transakcijas'!$S:$S,">="&DATE(YEAR(C2),MONTH(C2),1),'VSAOI transakcijas'!$S:$S,"<="&'Sakuma lapa'!$F$16,'VSAOI transakcijas'!$O:$O,YEAR(DATE(YEAR(C2),MONTH(C2)+2,0)),'VSAOI transakcijas'!$P:$P,RIGHT("0"&MONTH(DATE(YEAR(C2),MONTH(C2)+2,0)),2),'VSAOI transakcijas'!$Q:$Q,"IIN",'VSAOI transakcijas'!$K:$K,"<>"&"FIFO*",'VSAOI transakcijas'!$K:$K,"<>"&"Iemaksas atbrīvošana",'VSAOI transakcijas'!$E:$E,"<>"&"Deklarācija/pārskats") -> 0 | D46: =-SUMIFS('VSAOI transakcijas'!$R:$R,'VSAOI transakcijas'!$D:$D,"Aprēķins",'VSAOI transakcijas'!$H:$H,"Pamatsumma",'VSAOI transakcijas'!$S:$S,">="&DATE(YEAR(D2),MONTH(D2),1),'VSAOI transakcijas'!$S:$S,"<="&'Sakuma lapa'!$F$16,'VSAOI transakcijas'!$O:$O,YEAR(DATE(YEAR(D2),MONTH(D2)+2,0)),'VSAOI transakcijas'!$P:$P,RIGHT("0"&MONTH(DATE(YEAR(D2),MONTH(D2)+2,0)),2),'VSAOI transakcijas'!$Q:$Q,"IIN",'VSAOI transakcijas'!$K:$K,"<>"&"FIFO*",'VSAOI transakcijas'!$K:$K,"<>"&"Iemaksas atbrīvošana",'VSAOI transakcijas'!$E:$E,"<>"&"Deklarācija/pārskats") -> 0 | E46: =-SUMIFS('VSAOI transakcijas'!$R:$R,'VSAOI transakcijas'!$D:$D,"Aprēķins",'VSAOI transakcijas'!$H:$H,"Pamatsumma",'VSAOI transakcijas'!$S:$S,">="&DATE(YEAR(E2),MONTH(E2),1),'VSAOI transakcijas'!$S:$S,"<="&'Sakuma lapa'!$F$16,'VSAOI transakcijas'!$O:$O,YEAR(DATE(YEAR(E2),MONTH(E2)+2,0)),'VSAOI transakcijas'!$P:$P,RIGHT("0"&MONTH(DATE(YEAR(E2),MONTH(E2)+2,0)),2),'VSAOI transakcijas'!$Q:$Q,"IIN",'VSAOI transakcijas'!$K:$K,"<>"&"FIFO*",'VSAOI transakcijas'!$K:$K,"<>"&"Iemaksas atbrīvošana",'VSAOI transakcijas'!$E:$E,"<>"&"Deklarācija/pārskats") -> 0 | F46: =-SUMIFS('VSAOI transakcijas'!$R:$R,'VSAOI transakcijas'!$D:$D,"Aprēķins",'VSAOI transakcijas'!$H:$H,"Pamatsumma",'VSAOI transakcijas'!$S:$S,">="&DATE(YEAR(F2),MONTH(F2),1),'VSAOI transakcijas'!$S:$S,"<="&'Sakuma lapa'!$F$16,'VSAOI transakcijas'!$O:$O,YEAR(DATE(YEAR(F2),MONTH(F2)+2,0)),'VSAOI transakcijas'!$P:$P,RIGHT("0"&MONTH(DATE(YEAR(F2),MONTH(F2)+2,0)),2),'VSAOI transakcijas'!$Q:$Q,"IIN",'VSAOI transakcijas'!$K:$K,"<>"&"FIFO*",'VSAOI transakcijas'!$K:$K,"<>"&"Iemaksas atbrīvošana",'VSAOI transakcijas'!$E:$E,"<>"&"Deklarācija/pārskats") -> 0 | G46: =-SUMIFS('VSAOI transakcijas'!$R:$R,'VSAOI transakcijas'!$D:$D,"Aprēķins",'VSAOI transakcijas'!$H:$H,"Pamatsumma",'VSAOI transakcijas'!$S:$S,">="&DATE(YEAR(G2),MONTH(G2),1),'VSAOI transakcijas'!$S:$S,"<="&'Sakuma lapa'!$F$16,'VSAOI transakcijas'!$O:$O,YEAR(DATE(YEAR(G2),MONTH(G2)+2,0)),'VSAOI transakcijas'!$P:$P,RIGHT("0"&MONTH(DATE(YEAR(G2),MONTH(G2)+2,0)),2),'VSAOI transakcijas'!$Q:$Q,"IIN",'VSAOI transakcijas'!$K:$K,"<>"&"FIFO*",'VSAOI transakcijas'!$K:$K,"<>"&"Iemaksas atbrīvošana",'VSAOI transakcijas'!$E:$E,"<>"&"Deklarācija/pārskats") -> 0 | H46: =-SUMIFS('VSAOI transakcijas'!$R:$R,'VSAOI transakcijas'!$D:$D,"Aprēķins",'VSAOI transakcijas'!$H:$H,"Pamatsumma",'VSAOI transakcijas'!$S:$S,">="&DATE(YEAR(H2),MONTH(H2),1),'VSAOI transakcijas'!$S:$S,"<="&'Sakuma lapa'!$F$16,'VSAOI transakcijas'!$O:$O,YEAR(DATE(YEAR(H2),MONTH(H2)+2,0)),'VSAOI transakcijas'!$P:$P,RIGHT("0"&MONTH(DATE(YEAR(H2),MONTH(H2)+2,0)),2),'VSAOI transakcijas'!$Q:$Q,"IIN",'VSAOI transakcijas'!$K:$K,"<>"&"FIFO*",'VSAOI transakcijas'!$K:$K,"<>"&"Iemaksas atbrīvošana",'VSAOI transakcijas'!$E:$E,"<>"&"Deklarācija/pārskats") -> 0 | I46: =-SUMIFS('VSAOI transakcijas'!$R:$R,'VSAOI transakcijas'!$D:$D,"Aprēķins",'VSAOI transakcijas'!$H:$H,"Pamatsumma",'VSAOI transakcijas'!$S:$S,">="&DATE(YEAR(I2),MONTH(I2),1),'VSAOI transakcijas'!$S:$S,"<="&'Sakuma lapa'!$F$16,'VSAOI transakcijas'!$O:$O,YEAR(DATE(YEAR(I2),MONTH(I2)+2,0)),'VSAOI transakcijas'!$P:$P,RIGHT("0"&MONTH(DATE(YEAR(I2),MONTH(I2)+2,0)),2),'VSAOI transakcijas'!$Q:$Q,"IIN",'VSAOI transakcijas'!$K:$K,"<>"&"FIFO*",'VSAOI transakcijas'!$K:$K,"<>"&"Iemaksas atbrīvošana",'VSAOI transakcijas'!$E:$E,"<>"&"Deklarācija/pārskats") -> 0 | J46: =-SUMIFS('VSAOI transakcijas'!$R:$R,'VSAOI transakcijas'!$D:$D,"Aprēķins",'VSAOI transakcijas'!$H:$H,"Pamatsumma",'VSAOI transakcijas'!$S:$S,">="&DATE(YEAR(J2),MONTH(J2),1),'VSAOI transakcijas'!$S:$S,"<="&'Sakuma lapa'!$F$16,'VSAOI transakcijas'!$O:$O,YEAR(DATE(YEAR(J2),MONTH(J2)+2,0)),'VSAOI transakcijas'!$P:$P,RIGHT("0"&MONTH(DATE(YEAR(J2),MONTH(J2)+2,0)),2),'VSAOI transakcijas'!$Q:$Q,"IIN",'VSAOI transakcijas'!$K:$K,"<>"&"FIFO*",'VSAOI transakcijas'!$K:$K,"<>"&"Iemaksas atbrīvošana",'VSAOI transakcijas'!$E:$E,"<>"&"Deklarācija/pārskats") -> 0 | K46: =-SUMIFS('VSAOI transakcijas'!$R:$R,'VSAOI transakcijas'!$D:$D,"Aprēķins",'VSAOI transakcijas'!$H:$H,"Pamatsumma",'VSAOI transakcijas'!$S:$S,">="&DATE(YEAR(K2),MONTH(K2),1),'VSAOI transakcijas'!$S:$S,"<="&'Sakuma lapa'!$F$16,'VSAOI transakcijas'!$O:$O,YEAR(DATE(YEAR(K2),MONTH(K2)+2,0)),'VSAOI transakcijas'!$P:$P,RIGHT("0"&MONTH(DATE(YEAR(K2),MONTH(K2)+2,0)),2),'VSAOI transakcijas'!$Q:$Q,"IIN",'VSAOI transakcijas'!$K:$K,"<>"&"FIFO*",'VSAOI transakcijas'!$K:$K,"<>"&"Iemaksas atbrīvošana",'VSAOI transakcijas'!$E:$E,"<>"&"Deklarācija/pārskats") -> 0 | L46: =-SUMIFS('VSAOI transakcijas'!$R:$R,'VSAOI transakcijas'!$D:$D,"Aprēķins",'VSAOI transakcijas'!$H:$H,"Pamatsumma",'VSAOI transakcijas'!$S:$S,">="&DATE(YEAR(L2),MONTH(L2),1),'VSAOI transakcijas'!$S:$S,"<="&'Sakuma lapa'!$F$16,'VSAOI transakcijas'!$O:$O,YEAR(DATE(YEAR(L2),MONTH(L2)+2,0)),'VSAOI transakcijas'!$P:$P,RIGHT("0"&MONTH(DATE(YEAR(L2),MONTH(L2)+2,0)),2),'VSAOI transakcijas'!$Q:$Q,"IIN",'VSAOI transakcijas'!$K:$K,"<>"&"FIFO*",'VSAOI transakcijas'!$K:$K,"<>"&"Iemaksas atbrīvošana",'VSAOI transakcijas'!$E:$E,"<>"&"Deklarācija/pārskats") -> 0 | M46: =-SUMIFS('VSAOI transakcijas'!$R:$R,'VSAOI transakcijas'!$D:$D,"Aprēķins",'VSAOI transakcijas'!$H:$H,"Pamatsumma",'VSAOI transakcijas'!$S:$S,">="&DATE(YEAR(M2),MONTH(M2),1),'VSAOI transakcijas'!$S:$S,"<="&'Sakuma lapa'!$F$16,'VSAOI transakcijas'!$O:$O,YEAR(DATE(YEAR(M2),MONTH(M2)+2,0)),'VSAOI transakcijas'!$P:$P,RIGHT("0"&MONTH(DATE(YEAR(M2),MONTH(M2)+2,0)),2),'VSAOI transakcijas'!$Q:$Q,"IIN",'VSAOI transakcijas'!$K:$K,"<>"&"FIFO*",'VSAOI transakcijas'!$K:$K,"<>"&"Iemaksas atbrīvošana",'VSAOI transakcijas'!$E:$E,"<>"&"Deklarācija/pārskats") -> 0 | N46: =-SUMIFS('VSAOI transakcijas'!$R:$R,'VSAOI transakcijas'!$D:$D,"Aprēķins",'VSAOI transakcijas'!$H:$H,"Pamatsumma",'VSAOI transakcijas'!$S:$S,">="&DATE(YEAR(N2),MONTH(N2),1),'VSAOI transakcijas'!$S:$S,"<="&'Sakuma lapa'!$F$16,'VSAOI transakcijas'!$O:$O,YEAR(DATE(YEAR(N2),MONTH(N2)+2,0)),'VSAOI transakcijas'!$P:$P,RIGHT("0"&MONTH(DATE(YEAR(N2),MONTH(N2)+2,0)),2),'VSAOI transakcijas'!$Q:$Q,"IIN",'VSAOI transakcijas'!$K:$K,"<>"&"FIFO*",'VSAOI transakcijas'!$K:$K,"<>"&"Iemaksas atbrīvošana",'VSAOI transakcijas'!$E:$E,"<>"&"Deklarācija/pārskats") -> 0 | O46: =SUM(C46:N46) -> 0
B47: Iemaksa/Atmaksa/Pārvietošana | C47: =-SUMIFS('VSAOI transakcijas'!$R:$R,'VSAOI transakcijas'!$D:$D,"Iemaksa",'VSAOI transakcijas'!$H:$H,"Pamatsumma",'VSAOI transakcijas'!$S:$S,">="&DATE(YEAR(C2),MONTH(C2),1),'VSAOI transakcijas'!$S:$S,"<="&'Sakuma lapa'!$F$16,'VSAOI transakcijas'!$O:$O,YEAR(DATE(YEAR(C2),MONTH(C2)+1,0)),'VSAOI transakcijas'!$P:$P,RIGHT("0"&MONTH(DATE(YEAR(C2),MONTH(C2)+1,0)),2),'VSAOI transakcijas'!$Q:$Q,"IIN") -SUMIFS('VSAOI transakcijas'!$R:$R,'VSAOI transakcijas'!$D:$D,"Atmaksa",'VSAOI transakcijas'!$H:$H,"Pamatsumma",'VSAOI transakcijas'!$S:$S,">="&DATE(YEAR(C2),MONTH(C2),1),'VSAOI transakcijas'!$S:$S,"<="&'Sakuma lapa'!$F$16,'VSAOI transakcijas'!$O:$O,YEAR(DATE(YEAR(C2),MONTH(C2)+1,0)),'VSAOI transakcijas'!$P:$P,RIGHT("0"&MONTH(DATE(YEAR(C2),MONTH(C2)+1,0)),2),'VSAOI transakcijas'!$Q:$Q,"IIN") -SUMIFS('VSAOI transakcijas'!$R:$R,'VSAOI transakcijas'!$D:$D,"Aprēķins",'VSAOI transakcijas'!$H:$H,"Pamatsumma",'VSAOI transakcijas'!$S:$S,">="&DATE(YEAR(C2),MONTH(C2),1),'VSAOI transakcijas'!$S:$S,"<="&'Sakuma lapa'!$F$16,'VSAOI transakcijas'!$O:$O,YEAR(DATE(YEAR(C2),MONTH(C2)+1,0)),'VSAOI transakcijas'!$P:$P,RIGHT("0"&MONTH(DATE(YEAR(C2),MONTH(C2)+1,0)),2),'VSAOI transakcijas'!$Q:$Q,"IIN",'VSAOI transakcijas'!$K:$K,"FIFO*") -SUMIFS('VSAOI transakcijas'!$R:$R,'VSAOI transakcijas'!$D:$D,"Aprēķins",'VSAOI transakcijas'!$H:$H,"Pamatsumma",'VSAOI transakcijas'!$S:$S,">="&DATE(YEAR(C2),MONTH(C2),1),'VSAOI transakcijas'!$S:$S,"<="&'Sakuma lapa'!$F$16,'VSAOI transakcijas'!$O:$O,YEAR(DATE(YEAR(C2),MONTH(C2)+1,0)),'VSAOI transakcijas'!$P:$P,RIGHT("0"&MONTH(DATE(YEAR(C2),MONTH(C2)+1,0)),2),'VSAOI transakcijas'!$Q:$Q,"IIN",'VSAOI transakcijas'!$K:$K,"Iemaksas atbrīvošana") -SUMIFS('VSAOI transakcijas'!$R:$R,'VSAOI transakcijas'!$H:$H,"Nokavējuma nauda",'VSAOI transakcijas'!$S:$S,">="&DATE(YEAR(C2),MONTH(C2),1),'VSAOI transakcijas'!$S:$S,"<="&'Sakuma lapa'!$F$16,'VSAOI transakcijas'!$O:$O,YEAR(DATE(YEAR(C2),MONTH(C2)+1,0)),'VSAOI transakcijas'!$P:$P,RIGHT("0"&MONTH(DATE(YEAR(C2),MONTH(C2)+1,0)),2),'VSAOI transakcijas'!$Q:$Q,"IIN") -> 0 | D47: =-SUMIFS('VSAOI transakcijas'!$R:$R,'VSAOI transakcijas'!$D:$D,"Iemaksa",'VSAOI transakcijas'!$H:$H,"Pamatsumma",'VSAOI transakcijas'!$S:$S,">="&DATE(YEAR(D2),MONTH(D2),1),'VSAOI transakcijas'!$S:$S,"<="&'Sakuma lapa'!$F$16,'VSAOI transakcijas'!$O:$O,YEAR(DATE(YEAR(D2),MONTH(D2)+1,0)),'VSAOI transakcijas'!$P:$P,RIGHT("0"&MONTH(DATE(YEAR(D2),MONTH(D2)+1,0)),2),'VSAOI transakcijas'!$Q:$Q,"IIN") -SUMIFS('VSAOI transakcijas'!$R:$R,'VSAOI transakcijas'!$D:$D,"Atmaksa",'VSAOI transakcijas'!$H:$H,"Pamatsumma",'VSAOI transakcijas'!$S:$S,">="&DATE(YEAR(D2),MONTH(D2),1),'VSAOI transakcijas'!$S:$S,"<="&'Sakuma lapa'!$F$16,'VSAOI transakcijas'!$O:$O,YEAR(DATE(YEAR(D2),MONTH(D2)+1,0)),'VSAOI transakcijas'!$P:$P,RIGHT("0"&MONTH(DATE(YEAR(D2),MONTH(D2)+1,0)),2),'VSAOI transakcijas'!$Q:$Q,"IIN") -SUMIFS('VSAOI transakcijas'!$R:$R,'VSAOI transakcijas'!$D:$D,"Aprēķins",'VSAOI transakcijas'!$H:$H,"Pamatsumma",'VSAOI transakcijas'!$S:$S,">="&DATE(YEAR(D2),MONTH(D2),1),'VSAOI transakcijas'!$S:$S,"<="&'Sakuma lapa'!$F$16,'VSAOI transakcijas'!$O:$O,YEAR(DATE(YEAR(D2),MONTH(D2)+1,0)),'VSAOI transakcijas'!$P:$P,RIGHT("0"&MONTH(DATE(YEAR(D2),MONTH(D2)+1,0)),2),'VSAOI transakcijas'!$Q:$Q,"IIN",'VSAOI transakcijas'!$K:$K,"FIFO*") -SUMIFS('VSAOI transakcijas'!$R:$R,'VSAOI transakcijas'!$D:$D,"Aprēķins",'VSAOI transakcijas'!$H:$H,"Pamatsumma",'VSAOI transakcijas'!$S:$S,">="&DATE(YEAR(D2),MONTH(D2),1),'VSAOI transakcijas'!$S:$S,"<="&'Sakuma lapa'!$F$16,'VSAOI transakcijas'!$O:$O,YEAR(DATE(YEAR(D2),MONTH(D2)+1,0)),'VSAOI transakcijas'!$P:$P,RIGHT("0"&MONTH(DATE(YEAR(D2),MONTH(D2)+1,0)),2),'VSAOI transakcijas'!$Q:$Q,"IIN",'VSAOI transakcijas'!$K:$K,"Iemaksas atbrīvošana") -SUMIFS('VSAOI transakcijas'!$R:$R,'VSAOI transakcijas'!$H:$H,"Nokavējuma nauda",'VSAOI transakcijas'!$S:$S,">="&DATE(YEAR(D2),MONTH(D2),1),'VSAOI transakcijas'!$S:$S,"<="&'Sakuma lapa'!$F$16,'VSAOI transakcijas'!$O:$O,YEAR(DATE(YEAR(D2),MONTH(D2)+1,0)),'VSAOI transakcijas'!$P:$P,RIGHT("0"&MONTH(DATE(YEAR(D2),MONTH(D2)+1,0)),2),'VSAOI transakcijas'!$Q:$Q,"IIN") -> 0 | E47: =-SUMIFS('VSAOI transakcijas'!$R:$R,'VSAOI transakcijas'!$D:$D,"Iemaksa",'VSAOI transakcijas'!$H:$H,"Pamatsumma",'VSAOI transakcijas'!$S:$S,">="&DATE(YEAR(E2),MONTH(E2),1),'VSAOI transakcijas'!$S:$S,"<="&'Sakuma lapa'!$F$16,'VSAOI transakcijas'!$O:$O,YEAR(DATE(YEAR(E2),MONTH(E2)+1,0)),'VSAOI transakcijas'!$P:$P,RIGHT("0"&MONTH(DATE(YEAR(E2),MONTH(E2)+1,0)),2),'VSAOI transakcijas'!$Q:$Q,"IIN") -SUMIFS('VSAOI transakcijas'!$R:$R,'VSAOI transakcijas'!$D:$D,"Atmaksa",'VSAOI transakcijas'!$H:$H,"Pamatsumma",'VSAOI transakcijas'!$S:$S,">="&DATE(YEAR(E2),MONTH(E2),1),'VSAOI transakcijas'!$S:$S,"<="&'Sakuma lapa'!$F$16,'VSAOI transakcijas'!$O:$O,YEAR(DATE(YEAR(E2),MONTH(E2)+1,0)),'VSAOI transakcijas'!$P:$P,RIGHT("0"&MONTH(DATE(YEAR(E2),MONTH(E2)+1,0)),2),'VSAOI transakcijas'!$Q:$Q,"IIN") -SUMIFS('VSAOI transakcijas'!$R:$R,'VSAOI transakcijas'!$D:$D,"Aprēķins",'VSAOI transakcijas'!$H:$H,"Pamatsumma",'VSAOI transakcijas'!$S:$S,">="&DATE(YEAR(E2),MONTH(E2),1),'VSAOI transakcijas'!$S:$S,"<="&'Sakuma lapa'!$F$16,'VSAOI transakcijas'!$O:$O,YEAR(DATE(YEAR(E2),MONTH(E2)+1,0)),'VSAOI transakcijas'!$P:$P,RIGHT("0"&MONTH(DATE(YEAR(E2),MONTH(E2)+1,0)),2),'VSAOI transakcijas'!$Q:$Q,"IIN",'VSAOI transakcijas'!$K:$K,"FIFO*") -SUMIFS('VSAOI transakcijas'!$R:$R,'VSAOI transakcijas'!$D:$D,"Aprēķins",'VSAOI transakcijas'!$H:$H,"Pamatsumma",'VSAOI transakcijas'!$S:$S,">="&DATE(YEAR(E2),MONTH(E2),1),'VSAOI transakcijas'!$S:$S,"<="&'Sakuma lapa'!$F$16,'VSAOI transakcijas'!$O:$O,YEAR(DATE(YEAR(E2),MONTH(E2)+1,0)),'VSAOI transakcijas'!$P:$P,RIGHT("0"&MONTH(DATE(YEAR(E2),MONTH(E2)+1,0)),2),'VSAOI transakcijas'!$Q:$Q,"IIN",'VSAOI transakcijas'!$K:$K,"Iemaksas atbrīvošana") -SUMIFS('VSAOI transakcijas'!$R:$R,'VSAOI transakcijas'!$H:$H,"Nokavējuma nauda",'VSAOI transakcijas'!$S:$S,">="&DATE(YEAR(E2),MONTH(E2),1),'VSAOI transakcijas'!$S:$S,"<="&'Sakuma lapa'!$F$16,'VSAOI transakcijas'!$O:$O,YEAR(DATE(YEAR(E2),MONTH(E2)+1,0)),'VSAOI transakcijas'!$P:$P,RIGHT("0"&MONTH(DATE(YEAR(E2),MONTH(E2)+1,0)),2),'VSAOI transakcijas'!$Q:$Q,"IIN") -> 0 | F47: =-SUMIFS('VSAOI transakcijas'!$R:$R,'VSAOI transakcijas'!$D:$D,"Iemaksa",'VSAOI transakcijas'!$H:$H,"Pamatsumma",'VSAOI transakcijas'!$S:$S,">="&DATE(YEAR(F2),MONTH(F2),1),'VSAOI transakcijas'!$S:$S,"<="&'Sakuma lapa'!$F$16,'VSAOI transakcijas'!$O:$O,YEAR(DATE(YEAR(F2),MONTH(F2)+1,0)),'VSAOI transakcijas'!$P:$P,RIGHT("0"&MONTH(DATE(YEAR(F2),MONTH(F2)+1,0)),2),'VSAOI transakcijas'!$Q:$Q,"IIN") -SUMIFS('VSAOI transakcijas'!$R:$R,'VSAOI transakcijas'!$D:$D,"Atmaksa",'VSAOI transakcijas'!$H:$H,"Pamatsumma",'VSAOI transakcijas'!$S:$S,">="&DATE(YEAR(F2),MONTH(F2),1),'VSAOI transakcijas'!$S:$S,"<="&'Sakuma lapa'!$F$16,'VSAOI transakcijas'!$O:$O,YEAR(DATE(YEAR(F2),MONTH(F2)+1,0)),'VSAOI transakcijas'!$P:$P,RIGHT("0"&MONTH(DATE(YEAR(F2),MONTH(F2)+1,0)),2),'VSAOI transakcijas'!$Q:$Q,"IIN") -SUMIFS('VSAOI transakcijas'!$R:$R,'VSAOI transakcijas'!$D:$D,"Aprēķins",'VSAOI transakcijas'!$H:$H,"Pamatsumma",'VSAOI transakcijas'!$S:$S,">="&DATE(YEAR(F2),MONTH(F2),1),'VSAOI transakcijas'!$S:$S,"<="&'Sakuma lapa'!$F$16,'VSAOI transakcijas'!$O:$O,YEAR(DATE(YEAR(F2),MONTH(F2)+1,0)),'VSAOI transakcijas'!$P:$P,RIGHT("0"&MONTH(DATE(YEAR(F2),MONTH(F2)+1,0)),2),'VSAOI transakcijas'!$Q:$Q,"IIN",'VSAOI transakcijas'!$K:$K,"FIFO*") -SUMIFS('VSAOI transakcijas'!$R:$R,'VSAOI transakcijas'!$D:$D,"Aprēķins",'VSAOI transakcijas'!$H:$H,"Pamatsumma",'VSAOI transakcijas'!$S:$S,">="&DATE(YEAR(F2),MONTH(F2),1),'VSAOI transakcijas'!$S:$S,"<="&'Sakuma lapa'!$F$16,'VSAOI transakcijas'!$O:$O,YEAR(DATE(YEAR(F2),MONTH(F2)+1,0)),'VSAOI transakcijas'!$P:$P,RIGHT("0"&MONTH(DATE(YEAR(F2),MONTH(F2)+1,0)),2),'VSAOI transakcijas'!$Q:$Q,"IIN",'VSAOI transakcijas'!$K:$K,"Iemaksas atbrīvošana") -SUMIFS('VSAOI transakcijas'!$R:$R,'VSAOI transakcijas'!$H:$H,"Nokavējuma nauda",'VSAOI transakcijas'!$S:$S,">="&DATE(YEAR(F2),MONTH(F2),1),'VSAOI transakcijas'!$S:$S,"<="&'Sakuma lapa'!$F$16,'VSAOI transakcijas'!$O:$O,YEAR(DATE(YEAR(F2),MONTH(F2)+1,0)),'VSAOI transakcijas'!$P:$P,RIGHT("0"&MONTH(DATE(YEAR(F2),MONTH(F2)+1,0)),2),'VSAOI transakcijas'!$Q:$Q,"IIN") -> 0 | G47: =-SUMIFS('VSAOI transakcijas'!$R:$R,'VSAOI transakcijas'!$D:$D,"Iemaksa",'VSAOI transakcijas'!$H:$H,"Pamatsumma",'VSAOI transakcijas'!$S:$S,">="&DATE(YEAR(G2),MONTH(G2),1),'VSAOI transakcijas'!$S:$S,"<="&'Sakuma lapa'!$F$16,'VSAOI transakcijas'!$O:$O,YEAR(DATE(YEAR(G2),MONTH(G2)+1,0)),'VSAOI transakcijas'!$P:$P,RIGHT("0"&MONTH(DATE(YEAR(G2),MONTH(G2)+1,0)),2),'VSAOI transakcijas'!$Q:$Q,"IIN") -SUMIFS('VSAOI transakcijas'!$R:$R,'VSAOI transakcijas'!$D:$D,"Atmaksa",'VSAOI transakcijas'!$H:$H,"Pamatsumma",'VSAOI transakcijas'!$S:$S,">="&DATE(YEAR(G2),MONTH(G2),1),'VSAOI transakcijas'!$S:$S,"<="&'Sakuma lapa'!$F$16,'VSAOI transakcijas'!$O:$O,YEAR(DATE(YEAR(G2),MONTH(G2)+1,0)),'VSAOI transakcijas'!$P:$P,RIGHT("0"&MONTH(DATE(YEAR(G2),MONTH(G2)+1,0)),2),'VSAOI transakcijas'!$Q:$Q,"IIN") -SUMIFS('VSAOI transakcijas'!$R:$R,'VSAOI transakcijas'!$D:$D,"Aprēķins",'VSAOI transakcijas'!$H:$H,"Pamatsumma",'VSAOI transakcijas'!$S:$S,">="&DATE(YEAR(G2),MONTH(G2),1),'VSAOI transakcijas'!$S:$S,"<="&'Sakuma lapa'!$F$16,'VSAOI transakcijas'!$O:$O,YEAR(DATE(YEAR(G2),MONTH(G2)+1,0)),'VSAOI transakcijas'!$P:$P,RIGHT("0"&MONTH(DATE(YEAR(G2),MONTH(G2)+1,0)),2),'VSAOI transakcijas'!$Q:$Q,"IIN",'VSAOI transakcijas'!$K:$K,"FIFO*") -SUMIFS('VSAOI transakcijas'!$R:$R,'VSAOI transakcijas'!$D:$D,"Aprēķins",'VSAOI transakcijas'!$H:$H,"Pamatsumma",'VSAOI transakcijas'!$S:$S,">="&DATE(YEAR(G2),MONTH(G2),1),'VSAOI transakcijas'!$S:$S,"<="&'Sakuma lapa'!$F$16,'VSAOI transakcijas'!$O:$O,YEAR(DATE(YEAR(G2),MONTH(G2)+1,0)),'VSAOI transakcijas'!$P:$P,RIGHT("0"&MONTH(DATE(YEAR(G2),MONTH(G2)+1,0)),2),'VSAOI transakcijas'!$Q:$Q,"IIN",'VSAOI transakcijas'!$K:$K,"Iemaksas atbrīvošana") -SUMIFS('VSAOI transakcijas'!$R:$R,'VSAOI transakcijas'!$H:$H,"Nokavējuma nauda",'VSAOI transakcijas'!$S:$S,">="&DATE(YEAR(G2),MONTH(G2),1),'VSAOI transakcijas'!$S:$S,"<="&'Sakuma lapa'!$F$16,'VSAOI transakcijas'!$O:$O,YEAR(DATE(YEAR(G2),MONTH(G2)+1,0)),'VSAOI transakcijas'!$P:$P,RIGHT("0"&MONTH(DATE(YEAR(G2),MONTH(G2)+1,0)),2),'VSAOI transakcijas'!$Q:$Q,"IIN") -> 0 | H47: =-SUMIFS('VSAOI transakcijas'!$R:$R,'VSAOI transakcijas'!$D:$D,"Iemaksa",'VSAOI transakcijas'!$H:$H,"Pamatsumma",'VSAOI transakcijas'!$S:$S,">="&DATE(YEAR(H2),MONTH(H2),1),'VSAOI transakcijas'!$S:$S,"<="&'Sakuma lapa'!$F$16,'VSAOI transakcijas'!$O:$O,YEAR(DATE(YEAR(H2),MONTH(H2)+1,0)),'VSAOI transakcijas'!$P:$P,RIGHT("0"&MONTH(DATE(YEAR(H2),MONTH(H2)+1,0)),2),'VSAOI transakcijas'!$Q:$Q,"IIN") -SUMIFS('VSAOI transakcijas'!$R:$R,'VSAOI transakcijas'!$D:$D,"Atmaksa",'VSAOI transakcijas'!$H:$H,"Pamatsumma",'VSAOI transakcijas'!$S:$S,">="&DATE(YEAR(H2),MONTH(H2),1),'VSAOI transakcijas'!$S:$S,"<="&'Sakuma lapa'!$F$16,'VSAOI transakcijas'!$O:$O,YEAR(DATE(YEAR(H2),MONTH(H2)+1,0)),'VSAOI transakcijas'!$P:$P,RIGHT("0"&MONTH(DATE(YEAR(H2),MONTH(H2)+1,0)),2),'VSAOI transakcijas'!$Q:$Q,"IIN") -SUMIFS('VSAOI transakcijas'!$R:$R,'VSAOI transakcijas'!$D:$D,"Aprēķins",'VSAOI transakcijas'!$H:$H,"Pamatsumma",'VSAOI transakcijas'!$S:$S,">="&DATE(YEAR(H2),MONTH(H2),1),'VSAOI transakcijas'!$S:$S,"<="&'Sakuma lapa'!$F$16,'VSAOI transakcijas'!$O:$O,YEAR(DATE(YEAR(H2),MONTH(H2)+1,0)),'VSAOI transakcijas'!$P:$P,RIGHT("0"&MONTH(DATE(YEAR(H2),MONTH(H2)+1,0)),2),'VSAOI transakcijas'!$Q:$Q,"IIN",'VSAOI transakcijas'!$K:$K,"FIFO*") -SUMIFS('VSAOI transakcijas'!$R:$R,'VSAOI transakcijas'!$D:$D,"Aprēķins",'VSAOI transakcijas'!$H:$H,"Pamatsumma",'VSAOI transakcijas'!$S:$S,">="&DATE(YEAR(H2),MONTH(H2),1),'VSAOI transakcijas'!$S:$S,"<="&'Sakuma lapa'!$F$16,'VSAOI transakcijas'!$O:$O,YEAR(DATE(YEAR(H2),MONTH(H2)+1,0)),'VSAOI transakcijas'!$P:$P,RIGHT("0"&MONTH(DATE(YEAR(H2),MONTH(H2)+1,0)),2),'VSAOI transakcijas'!$Q:$Q,"IIN",'VSAOI transakcijas'!$K:$K,"Iemaksas atbrīvošana") -SUMIFS('VSAOI transakcijas'!$R:$R,'VSAOI transakcijas'!$H:$H,"Nokavējuma nauda",'VSAOI transakcijas'!$S:$S,">="&DATE(YEAR(H2),MONTH(H2),1),'VSAOI transakcijas'!$S:$S,"<="&'Sakuma lapa'!$F$16,'VSAOI transakcijas'!$O:$O,YEAR(DATE(YEAR(H2),MONTH(H2)+1,0)),'VSAOI transakcijas'!$P:$P,RIGHT("0"&MONTH(DATE(YEAR(H2),MONTH(H2)+1,0)),2),'VSAOI transakcijas'!$Q:$Q,"IIN") -> 0 | I47: =-SUMIFS('VSAOI transakcijas'!$R:$R,'VSAOI transakcijas'!$D:$D,"Iemaksa",'VSAOI transakcijas'!$H:$H,"Pamatsumma",'VSAOI transakcijas'!$S:$S,">="&DATE(YEAR(I2),MONTH(I2),1),'VSAOI transakcijas'!$S:$S,"<="&'Sakuma lapa'!$F$16,'VSAOI transakcijas'!$O:$O,YEAR(DATE(YEAR(I2),MONTH(I2)+1,0)),'VSAOI transakcijas'!$P:$P,RIGHT("0"&MONTH(DATE(YEAR(I2),MONTH(I2)+1,0)),2),'VSAOI transakcijas'!$Q:$Q,"IIN") -SUMIFS('VSAOI transakcijas'!$R:$R,'VSAOI transakcijas'!$D:$D,"Atmaksa",'VSAOI transakcijas'!$H:$H,"Pamatsumma",'VSAOI transakcijas'!$S:$S,">="&DATE(YEAR(I2),MONTH(I2),1),'VSAOI transakcijas'!$S:$S,"<="&'Sakuma lapa'!$F$16,'VSAOI transakcijas'!$O:$O,YEAR(DATE(YEAR(I2),MONTH(I2)+1,0)),'VSAOI transakcijas'!$P:$P,RIGHT("0"&MONTH(DATE(YEAR(I2),MONTH(I2)+1,0)),2),'VSAOI transakcijas'!$Q:$Q,"IIN") -SUMIFS('VSAOI transakcijas'!$R:$R,'VSAOI transakcijas'!$D:$D,"Aprēķins",'VSAOI transakcijas'!$H:$H,"Pamatsumma",'VSAOI transakcijas'!$S:$S,">="&DATE(YEAR(I2),MONTH(I2),1),'VSAOI transakcijas'!$S:$S,"<="&'Sakuma lapa'!$F$16,'VSAOI transakcijas'!$O:$O,YEAR(DATE(YEAR(I2),MONTH(I2)+1,0)),'VSAOI transakcijas'!$P:$P,RIGHT("0"&MONTH(DATE(YEAR(I2),MONTH(I2)+1,0)),2),'VSAOI transakcijas'!$Q:$Q,"IIN",'VSAOI transakcijas'!$K:$K,"FIFO*") -SUMIFS('VSAOI transakcijas'!$R:$R,'VSAOI transakcijas'!$D:$D,"Aprēķins",'VSAOI transakcijas'!$H:$H,"Pamatsumma",'VSAOI transakcijas'!$S:$S,">="&DATE(YEAR(I2),MONTH(I2),1),'VSAOI transakcijas'!$S:$S,"<="&'Sakuma lapa'!$F$16,'VSAOI transakcijas'!$O:$O,YEAR(DATE(YEAR(I2),MONTH(I2)+1,0)),'VSAOI transakcijas'!$P:$P,RIGHT("0"&MONTH(DATE(YEAR(I2),MONTH(I2)+1,0)),2),'VSAOI transakcijas'!$Q:$Q,"IIN",'VSAOI transakcijas'!$K:$K,"Iemaksas atbrīvošana") -SUMIFS('VSAOI transakcijas'!$R:$R,'VSAOI transakcijas'!$H:$H,"Nokavējuma nauda",'VSAOI transakcijas'!$S:$S,">="&DATE(YEAR(I2),MONTH(I2),1),'VSAOI transakcijas'!$S:$S,"<="&'Sakuma lapa'!$F$16,'VSAOI transakcijas'!$O:$O,YEAR(DATE(YEAR(I2),MONTH(I2)+1,0)),'VSAOI transakcijas'!$P:$P,RIGHT("0"&MONTH(DATE(YEAR(I2),MONTH(I2)+1,0)),2),'VSAOI transakcijas'!$Q:$Q,"IIN") -> 0 | J47: =-SUMIFS('VSAOI transakcijas'!$R:$R,'VSAOI transakcijas'!$D:$D,"Iemaksa",'VSAOI transakcijas'!$H:$H,"Pamatsumma",'VSAOI transakcijas'!$S:$S,">="&DATE(YEAR(J2),MONTH(J2),1),'VSAOI transakcijas'!$S:$S,"<="&'Sakuma lapa'!$F$16,'VSAOI transakcijas'!$O:$O,YEAR(DATE(YEAR(J2),MONTH(J2)+1,0)),'VSAOI transakcijas'!$P:$P,RIGHT("0"&MONTH(DATE(YEAR(J2),MONTH(J2)+1,0)),2),'VSAOI transakcijas'!$Q:$Q,"IIN") -SUMIFS('VSAOI transakcijas'!$R:$R,'VSAOI transakcijas'!$D:$D,"Atmaksa",'VSAOI transakcijas'!$H:$H,"Pamatsumma",'VSAOI transakcijas'!$S:$S,">="&DATE(YEAR(J2),MONTH(J2),1),'VSAOI transakcijas'!$S:$S,"<="&'Sakuma lapa'!$F$16,'VSAOI transakcijas'!$O:$O,YEAR(DATE(YEAR(J2),MONTH(J2)+1,0)),'VSAOI transakcijas'!$P:$P,RIGHT("0"&MONTH(DATE(YEAR(J2),MONTH(J2)+1,0)),2),'VSAOI transakcijas'!$Q:$Q,"IIN") -SUMIFS('VSAOI transakcijas'!$R:$R,'VSAOI transakcijas'!$D:$D,"Aprēķins",'VSAOI transakcijas'!$H:$H,"Pamatsumma",'VSAOI transakcijas'!$S:$S,">="&DATE(YEAR(J2),MONTH(J2),1),'VSAOI transakcijas'!$S:$S,"<="&'Sakuma lapa'!$F$16,'VSAOI transakcijas'!$O:$O,YEAR(DATE(YEAR(J2),MONTH(J2)+1,0)),'VSAOI transakcijas'!$P:$P,RIGHT("0"&MONTH(DATE(YEAR(J2),MONTH(J2)+1,0)),2),'VSAOI transakcijas'!$Q:$Q,"IIN",'VSAOI transakcijas'!$K:$K,"FIFO*") -SUMIFS('VSAOI transakcijas'!$R:$R,'VSAOI transakcijas'!$D:$D,"Aprēķins",'VSAOI transakcijas'!$H:$H,"Pamatsumma",'VSAOI transakcijas'!$S:$S,">="&DATE(YEAR(J2),MONTH(J2),1),'VSAOI transakcijas'!$S:$S,"<="&'Sakuma lapa'!$F$16,'VSAOI transakcijas'!$O:$O,YEAR(DATE(YEAR(J2),MONTH(J2)+1,0)),'VSAOI transakcijas'!$P:$P,RIGHT("0"&MONTH(DATE(YEAR(J2),MONTH(J2)+1,0)),2),'VSAOI transakcijas'!$Q:$Q,"IIN",'VSAOI transakcijas'!$K:$K,"Iemaksas atbrīvošana") -SUMIFS('VSAOI transakcijas'!$R:$R,'VSAOI transakcijas'!$H:$H,"Nokavējuma nauda",'VSAOI transakcijas'!$S:$S,">="&DATE(YEAR(J2),MONTH(J2),1),'VSAOI transakcijas'!$S:$S,"<="&'Sakuma lapa'!$F$16,'VSAOI transakcijas'!$O:$O,YEAR(DATE(YEAR(J2),MONTH(J2)+1,0)),'VSAOI transakcijas'!$P:$P,RIGHT("0"&MONTH(DATE(YEAR(J2),MONTH(J2)+1,0)),2),'VSAOI transakcijas'!$Q:$Q,"IIN") -> 0 | K47: =-SUMIFS('VSAOI transakcijas'!$R:$R,'VSAOI transakcijas'!$D:$D,"Iemaksa",'VSAOI transakcijas'!$H:$H,"Pamatsumma",'VSAOI transakcijas'!$S:$S,">="&DATE(YEAR(K2),MONTH(K2),1),'VSAOI transakcijas'!$S:$S,"<="&'Sakuma lapa'!$F$16,'VSAOI transakcijas'!$O:$O,YEAR(DATE(YEAR(K2),MONTH(K2)+1,0)),'VSAOI transakcijas'!$P:$P,RIGHT("0"&MONTH(DATE(YEAR(K2),MONTH(K2)+1,0)),2),'VSAOI transakcijas'!$Q:$Q,"IIN") -SUMIFS('VSAOI transakcijas'!$R:$R,'VSAOI transakcijas'!$D:$D,"Atmaksa",'VSAOI transakcijas'!$H:$H,"Pamatsumma",'VSAOI transakcijas'!$S:$S,">="&DATE(YEAR(K2),MONTH(K2),1),'VSAOI transakcijas'!$S:$S,"<="&'Sakuma lapa'!$F$16,'VSAOI transakcijas'!$O:$O,YEAR(DATE(YEAR(K2),MONTH(K2)+1,0)),'VSAOI transakcijas'!$P:$P,RIGHT("0"&MONTH(DATE(YEAR(K2),MONTH(K2)+1,0)),2),'VSAOI transakcijas'!$Q:$Q,"IIN") -SUMIFS('VSAOI transakcijas'!$R:$R,'VSAOI transakcijas'!$D:$D,"Aprēķins",'VSAOI transakcijas'!$H:$H,"Pamatsumma",'VSAOI transakcijas'!$S:$S,">="&DATE(YEAR(K2),MONTH(K2),1),'VSAOI transakcijas'!$S:$S,"<="&'Sakuma lapa'!$F$16,'VSAOI transakcijas'!$O:$O,YEAR(DATE(YEAR(K2),MONTH(K2)+1,0)),'VSAOI transakcijas'!$P:$P,RIGHT("0"&MONTH(DATE(YEAR(K2),MONTH(K2)+1,0)),2),'VSAOI transakcijas'!$Q:$Q,"IIN",'VSAOI transakcijas'!$K:$K,"FIFO*") -SUMIFS('VSAOI transakcijas'!$R:$R,'VSAOI transakcijas'!$D:$D,"Aprēķins",'VSAOI transakcijas'!$H:$H,"Pamatsumma",'VSAOI transakcijas'!$S:$S,">="&DATE(YEAR(K2),MONTH(K2),1),'VSAOI transakcijas'!$S:$S,"<="&'Sakuma lapa'!$F$16,'VSAOI transakcijas'!$O:$O,YEAR(DATE(YEAR(K2),MONTH(K2)+1,0)),'VSAOI transakcijas'!$P:$P,RIGHT("0"&MONTH(DATE(YEAR(K2),MONTH(K2)+1,0)),2),'VSAOI transakcijas'!$Q:$Q,"IIN",'VSAOI transakcijas'!$K:$K,"Iemaksas atbrīvošana") -SUMIFS('VSAOI transakcijas'!$R:$R,'VSAOI transakcijas'!$H:$H,"Nokavējuma nauda",'VSAOI transakcijas'!$S:$S,">="&DATE(YEAR(K2),MONTH(K2),1),'VSAOI transakcijas'!$S:$S,"<="&'Sakuma lapa'!$F$16,'VSAOI transakcijas'!$O:$O,YEAR(DATE(YEAR(K2),MONTH(K2)+1,0)),'VSAOI transakcijas'!$P:$P,RIGHT("0"&MONTH(DATE(YEAR(K2),MONTH(K2)+1,0)),2),'VSAOI transakcijas'!$Q:$Q,"IIN") -> 0 | L47: =-SUMIFS('VSAOI transakcijas'!$R:$R,'VSAOI transakcijas'!$D:$D,"Iemaksa",'VSAOI transakcijas'!$H:$H,"Pamatsumma",'VSAOI transakcijas'!$S:$S,">="&DATE(YEAR(L2),MONTH(L2),1),'VSAOI transakcijas'!$S:$S,"<="&'Sakuma lapa'!$F$16,'VSAOI transakcijas'!$O:$O,YEAR(DATE(YEAR(L2),MONTH(L2)+1,0)),'VSAOI transakcijas'!$P:$P,RIGHT("0"&MONTH(DATE(YEAR(L2),MONTH(L2)+1,0)),2),'VSAOI transakcijas'!$Q:$Q,"IIN") -SUMIFS('VSAOI transakcijas'!$R:$R,'VSAOI transakcijas'!$D:$D,"Atmaksa",'VSAOI transakcijas'!$H:$H,"Pamatsumma",'VSAOI transakcijas'!$S:$S,">="&DATE(YEAR(L2),MONTH(L2),1),'VSAOI transakcijas'!$S:$S,"<="&'Sakuma lapa'!$F$16,'VSAOI transakcijas'!$O:$O,YEAR(DATE(YEAR(L2),MONTH(L2)+1,0)),'VSAOI transakcijas'!$P:$P,RIGHT("0"&MONTH(DATE(YEAR(L2),MONTH(L2)+1,0)),2),'VSAOI transakcijas'!$Q:$Q,"IIN") -SUMIFS('VSAOI transakcijas'!$R:$R,'VSAOI transakcijas'!$D:$D,"Aprēķins",'VSAOI transakcijas'!$H:$H,"Pamatsumma",'VSAOI transakcijas'!$S:$S,">="&DATE(YEAR(L2),MONTH(L2),1),'VSAOI transakcijas'!$S:$S,"<="&'Sakuma lapa'!$F$16,'VSAOI transakcijas'!$O:$O,YEAR(DATE(YEAR(L2),MONTH(L2)+1,0)),'VSAOI transakcijas'!$P:$P,RIGHT("0"&MONTH(DATE(YEAR(L2),MONTH(L2)+1,0)),2),'VSAOI transakcijas'!$Q:$Q,"IIN",'VSAOI transakcijas'!$K:$K,"FIFO*") -SUMIFS('VSAOI transakcijas'!$R:$R,'VSAOI transakcijas'!$D:$D,"Aprēķins",'VSAOI transakcijas'!$H:$H,"Pamatsumma",'VSAOI transakcijas'!$S:$S,">="&DATE(YEAR(L2),MONTH(L2),1),'VSAOI transakcijas'!$S:$S,"<="&'Sakuma lapa'!$F$16,'VSAOI transakcijas'!$O:$O,YEAR(DATE(YEAR(L2),MONTH(L2)+1,0)),'VSAOI transakcijas'!$P:$P,RIGHT("0"&MONTH(DATE(YEAR(L2),MONTH(L2)+1,0)),2),'VSAOI transakcijas'!$Q:$Q,"IIN",'VSAOI transakcijas'!$K:$K,"Iemaksas atbrīvošana") -SUMIFS('VSAOI transakcijas'!$R:$R,'VSAOI transakcijas'!$H:$H,"Nokavējuma nauda",'VSAOI transakcijas'!$S:$S,">="&DATE(YEAR(L2),MONTH(L2),1),'VSAOI transakcijas'!$S:$S,"<="&'Sakuma lapa'!$F$16,'VSAOI transakcijas'!$O:$O,YEAR(DATE(YEAR(L2),MONTH(L2)+1,0)),'VSAOI transakcijas'!$P:$P,RIGHT("0"&MONTH(DATE(YEAR(L2),MONTH(L2)+1,0)),2),'VSAOI transakcijas'!$Q:$Q,"IIN") -> 0 | M47: =-SUMIFS('VSAOI transakcijas'!$R:$R,'VSAOI transakcijas'!$D:$D,"Iemaksa",'VSAOI transakcijas'!$H:$H,"Pamatsumma",'VSAOI transakcijas'!$S:$S,">="&DATE(YEAR(M2),MONTH(M2),1),'VSAOI transakcijas'!$S:$S,"<="&'Sakuma lapa'!$F$16,'VSAOI transakcijas'!$O:$O,YEAR(DATE(YEAR(M2),MONTH(M2)+1,0)),'VSAOI transakcijas'!$P:$P,RIGHT("0"&MONTH(DATE(YEAR(M2),MONTH(M2)+1,0)),2),'VSAOI transakcijas'!$Q:$Q,"IIN") -SUMIFS('VSAOI transakcijas'!$R:$R,'VSAOI transakcijas'!$D:$D,"Atmaksa",'VSAOI transakcijas'!$H:$H,"Pamatsumma",'VSAOI transakcijas'!$S:$S,">="&DATE(YEAR(M2),MONTH(M2),1),'VSAOI transakcijas'!$S:$S,"<="&'Sakuma lapa'!$F$16,'VSAOI transakcijas'!$O:$O,YEAR(DATE(YEAR(M2),MONTH(M2)+1,0)),'VSAOI transakcijas'!$P:$P,RIGHT("0"&MONTH(DATE(YEAR(M2),MONTH(M2)+1,0)),2),'VSAOI transakcijas'!$Q:$Q,"IIN") -SUMIFS('VSAOI transakcijas'!$R:$R,'VSAOI transakcijas'!$D:$D,"Aprēķins",'VSAOI transakcijas'!$H:$H,"Pamatsumma",'VSAOI transakcijas'!$S:$S,">="&DATE(YEAR(M2),MONTH(M2),1),'VSAOI transakcijas'!$S:$S,"<="&'Sakuma lapa'!$F$16,'VSAOI transakcijas'!$O:$O,YEAR(DATE(YEAR(M2),MONTH(M2)+1,0)),'VSAOI transakcijas'!$P:$P,RIGHT("0"&MONTH(DATE(YEAR(M2),MONTH(M2)+1,0)),2),'VSAOI transakcijas'!$Q:$Q,"IIN",'VSAOI transakcijas'!$K:$K,"FIFO*") -SUMIFS('VSAOI transakcijas'!$R:$R,'VSAOI transakcijas'!$D:$D,"Aprēķins",'VSAOI transakcijas'!$H:$H,"Pamatsumma",'VSAOI transakcijas'!$S:$S,">="&DATE(YEAR(M2),MONTH(M2),1),'VSAOI transakcijas'!$S:$S,"<="&'Sakuma lapa'!$F$16,'VSAOI transakcijas'!$O:$O,YEAR(DATE(YEAR(M2),MONTH(M2)+1,0)),'VSAOI transakcijas'!$P:$P,RIGHT("0"&MONTH(DATE(YEAR(M2),MONTH(M2)+1,0)),2),'VSAOI transakcijas'!$Q:$Q,"IIN",'VSAOI transakcijas'!$K:$K,"Iemaksas atbrīvošana") -SUMIFS('VSAOI transakcijas'!$R:$R,'VSAOI transakcijas'!$H:$H,"Nokavējuma nauda",'VSAOI transakcijas'!$S:$S,">="&DATE(YEAR(M2),MONTH(M2),1),'VSAOI transakcijas'!$S:$S,"<="&'Sakuma lapa'!$F$16,'VSAOI transakcijas'!$O:$O,YEAR(DATE(YEAR(M2),MONTH(M2)+1,0)),'VSAOI transakcijas'!$P:$P,RIGHT("0"&MONTH(DATE(YEAR(M2),MONTH(M2)+1,0)),2),'VSAOI transakcijas'!$Q:$Q,"IIN") -> 0 | N47: =-SUMIFS('VSAOI transakcijas'!$R:$R,'VSAOI transakcijas'!$D:$D,"Iemaksa",'VSAOI transakcijas'!$H:$H,"Pamatsumma",'VSAOI transakcijas'!$S:$S,">="&DATE(YEAR(N2),MONTH(N2),1),'VSAOI transakcijas'!$S:$S,"<="&'Sakuma lapa'!$F$16,'VSAOI transakcijas'!$O:$O,YEAR(DATE(YEAR(N2),MONTH(N2)+1,0)),'VSAOI transakcijas'!$P:$P,RIGHT("0"&MONTH(DATE(YEAR(N2),MONTH(N2)+1,0)),2),'VSAOI transakcijas'!$Q:$Q,"IIN") -SUMIFS('VSAOI transakcijas'!$R:$R,'VSAOI transakcijas'!$D:$D,"Atmaksa",'VSAOI transakcijas'!$H:$H,"Pamatsumma",'VSAOI transakcijas'!$S:$S,">="&DATE(YEAR(N2),MONTH(N2),1),'VSAOI transakcijas'!$S:$S,"<="&'Sakuma lapa'!$F$16,'VSAOI transakcijas'!$O:$O,YEAR(DATE(YEAR(N2),MONTH(N2)+1,0)),'VSAOI transakcijas'!$P:$P,RIGHT("0"&MONTH(DATE(YEAR(N2),MONTH(N2)+1,0)),2),'VSAOI transakcijas'!$Q:$Q,"IIN") -SUMIFS('VSAOI transakcijas'!$R:$R,'VSAOI transakcijas'!$D:$D,"Aprēķins",'VSAOI transakcijas'!$H:$H,"Pamatsumma",'VSAOI transakcijas'!$S:$S,">="&DATE(YEAR(N2),MONTH(N2),1),'VSAOI transakcijas'!$S:$S,"<="&'Sakuma lapa'!$F$16,'VSAOI transakcijas'!$O:$O,YEAR(DATE(YEAR(N2),MONTH(N2)+1,0)),'VSAOI transakcijas'!$P:$P,RIGHT("0"&MONTH(DATE(YEAR(N2),MONTH(N2)+1,0)),2),'VSAOI transakcijas'!$Q:$Q,"IIN",'VSAOI transakcijas'!$K:$K,"FIFO*") -SUMIFS('VSAOI transakcijas'!$R:$R,'VSAOI transakcijas'!$D:$D,"Aprēķins",'VSAOI transakcijas'!$H:$H,"Pamatsumma",'VSAOI transakcijas'!$S:$S,">="&DATE(YEAR(N2),MONTH(N2),1),'VSAOI transakcijas'!$S:$S,"<="&'Sakuma lapa'!$F$16,'VSAOI transakcijas'!$O:$O,YEAR(DATE(YEAR(N2),MONTH(N2)+1,0)),'VSAOI transakcijas'!$P:$P,RIGHT("0"&MONTH(DATE(YEAR(N2),MONTH(N2)+1,0)),2),'VSAOI transakcijas'!$Q:$Q,"IIN",'VSAOI transakcijas'!$K:$K,"Iemaksas atbrīvošana") -SUMIFS('VSAOI transakcijas'!$R:$R,'VSAOI transakcijas'!$H:$H,"Nokavējuma nauda",'VSAOI transakcijas'!$S:$S,">="&DATE(YEAR(N2),MONTH(N2),1),'VSAOI transakcijas'!$S:$S,"<="&'Sakuma lapa'!$F$16,'VSAOI transakcijas'!$O:$O,YEAR(DATE(YEAR(N2),MONTH(N2)+1,0)),'VSAOI transakcijas'!$P:$P,RIGHT("0"&MONTH(DATE(YEAR(N2),MONTH(N2)+1,0)),2),'VSAOI transakcijas'!$Q:$Q,"IIN") -> 0 | O47: =SUM(C47:N47) -> 0
B48: VG beigu atlikums
B49: VG beigu atlikuma starpība | C49: =IF(C48="","-",C48-D44) -> - | D49: - | E49: - | F49: - | G49: - | H49: - | I49: - | J49: - | K49: - | L49: - | M49: - | N49: -
B50: Starpība starp deklarācijām un TransParsk | C50: =C12-C45 -> 0 | D50: 0 | E50: 0 | F50: 0 | G50: 0 | H50: 0 | I50: 0 | J50: 0 | K50: 0 | L50: 0 | M50: 0 | N50: 0 | O50: =SUM(C50:N50) -> 0
B52: RN - VG sakuma atlikums | D52: =SUM(C52:C55) -> 0 | E52: =SUM(D52:D55) -> 0 | F52: 0 | G52: 0 | H52: 0 | I52: 0 | J52: 0 | K52: 0 | L52: 0 | M52: 0 | N52: 0 | O52: =SUM(N52:N55) -> 0
B53: Aprēķins - Deklarācijas | C53: =-SUMIFS('VSAOI transakcijas'!$R:$R,'VSAOI transakcijas'!$D:$D,"Aprēķins",'VSAOI transakcijas'!$H:$H,"Pamatsumma",'VSAOI transakcijas'!$S:$S,">="&DATE(YEAR(C2),MONTH(C2),1),'VSAOI transakcijas'!$S:$S,"<="&'Sakuma lapa'!$F$16,'VSAOI transakcijas'!$O:$O,YEAR(DATE(YEAR(C2),MONTH(C2)+2,0)),'VSAOI transakcijas'!$P:$P,RIGHT("0"&MONTH(DATE(YEAR(C2),MONTH(C2)+2,0)),2),'VSAOI transakcijas'!$Q:$Q,"Riska nodeva",'VSAOI transakcijas'!$K:$K,"<>"&"FIFO*",'VSAOI transakcijas'!$K:$K,"<>"&"Iemaksas atbrīvošana",'VSAOI transakcijas'!$E:$E,"Deklarācija/pārskats") -> 0 | D53: =-SUMIFS('VSAOI transakcijas'!$R:$R,'VSAOI transakcijas'!$D:$D,"Aprēķins",'VSAOI transakcijas'!$H:$H,"Pamatsumma",'VSAOI transakcijas'!$S:$S,">="&DATE(YEAR(D2),MONTH(D2),1),'VSAOI transakcijas'!$S:$S,"<="&'Sakuma lapa'!$F$16,'VSAOI transakcijas'!$O:$O,YEAR(DATE(YEAR(D2),MONTH(D2)+2,0)),'VSAOI transakcijas'!$P:$P,RIGHT("0"&MONTH(DATE(YEAR(D2),MONTH(D2)+2,0)),2),'VSAOI transakcijas'!$Q:$Q,"Riska nodeva",'VSAOI transakcijas'!$K:$K,"<>"&"FIFO*",'VSAOI transakcijas'!$K:$K,"<>"&"Iemaksas atbrīvošana",'VSAOI transakcijas'!$E:$E,"Deklarācija/pārskats") -> 0 | E53: =-SUMIFS('VSAOI transakcijas'!$R:$R,'VSAOI transakcijas'!$D:$D,"Aprēķins",'VSAOI transakcijas'!$H:$H,"Pamatsumma",'VSAOI transakcijas'!$S:$S,">="&DATE(YEAR(E2),MONTH(E2),1),'VSAOI transakcijas'!$S:$S,"<="&'Sakuma lapa'!$F$16,'VSAOI transakcijas'!$O:$O,YEAR(DATE(YEAR(E2),MONTH(E2)+2,0)),'VSAOI transakcijas'!$P:$P,RIGHT("0"&MONTH(DATE(YEAR(E2),MONTH(E2)+2,0)),2),'VSAOI transakcijas'!$Q:$Q,"Riska nodeva",'VSAOI transakcijas'!$K:$K,"<>"&"FIFO*",'VSAOI transakcijas'!$K:$K,"<>"&"Iemaksas atbrīvošana",'VSAOI transakcijas'!$E:$E,"Deklarācija/pārskats") -> 0 | F53: =-SUMIFS('VSAOI transakcijas'!$R:$R,'VSAOI transakcijas'!$D:$D,"Aprēķins",'VSAOI transakcijas'!$H:$H,"Pamatsumma",'VSAOI transakcijas'!$S:$S,">="&DATE(YEAR(F2),MONTH(F2),1),'VSAOI transakcijas'!$S:$S,"<="&'Sakuma lapa'!$F$16,'VSAOI transakcijas'!$O:$O,YEAR(DATE(YEAR(F2),MONTH(F2)+2,0)),'VSAOI transakcijas'!$P:$P,RIGHT("0"&MONTH(DATE(YEAR(F2),MONTH(F2)+2,0)),2),'VSAOI transakcijas'!$Q:$Q,"Riska nodeva",'VSAOI transakcijas'!$K:$K,"<>"&"FIFO*",'VSAOI transakcijas'!$K:$K,"<>"&"Iemaksas atbrīvošana",'VSAOI transakcijas'!$E:$E,"Deklarācija/pārskats") -> 0 | G53: =-SUMIFS('VSAOI transakcijas'!$R:$R,'VSAOI transakcijas'!$D:$D,"Aprēķins",'VSAOI transakcijas'!$H:$H,"Pamatsumma",'VSAOI transakcijas'!$S:$S,">="&DATE(YEAR(G2),MONTH(G2),1),'VSAOI transakcijas'!$S:$S,"<="&'Sakuma lapa'!$F$16,'VSAOI transakcijas'!$O:$O,YEAR(DATE(YEAR(G2),MONTH(G2)+2,0)),'VSAOI transakcijas'!$P:$P,RIGHT("0"&MONTH(DATE(YEAR(G2),MONTH(G2)+2,0)),2),'VSAOI transakcijas'!$Q:$Q,"Riska nodeva",'VSAOI transakcijas'!$K:$K,"<>"&"FIFO*",'VSAOI transakcijas'!$K:$K,"<>"&"Iemaksas atbrīvošana",'VSAOI transakcijas'!$E:$E,"Deklarācija/pārskats") -> 0 | H53: =-SUMIFS('VSAOI transakcijas'!$R:$R,'VSAOI transakcijas'!$D:$D,"Aprēķins",'VSAOI transakcijas'!$H:$H,"Pamatsumma",'VSAOI transakcijas'!$S:$S,">="&DATE(YEAR(H2),MONTH(H2),1),'VSAOI transakcijas'!$S:$S,"<="&'Sakuma lapa'!$F$16,'VSAOI transakcijas'!$O:$O,YEAR(DATE(YEAR(H2),MONTH(H2)+2,0)),'VSAOI transakcijas'!$P:$P,RIGHT("0"&MONTH(DATE(YEAR(H2),MONTH(H2)+2,0)),2),'VSAOI transakcijas'!$Q:$Q,"Riska nodeva",'VSAOI transakcijas'!$K:$K,"<>"&"FIFO*",'VSAOI transakcijas'!$K:$K,"<>"&"Iemaksas atbrīvošana",'VSAOI transakcijas'!$E:$E,"Deklarācija/pārskats") -> 0 | I53: =-SUMIFS('VSAOI transakcijas'!$R:$R,'VSAOI transakcijas'!$D:$D,"Aprēķins",'VSAOI transakcijas'!$H:$H,"Pamatsumma",'VSAOI transakcijas'!$S:$S,">="&DATE(YEAR(I2),MONTH(I2),1),'VSAOI transakcijas'!$S:$S,"<="&'Sakuma lapa'!$F$16,'VSAOI transakcijas'!$O:$O,YEAR(DATE(YEAR(I2),MONTH(I2)+2,0)),'VSAOI transakcijas'!$P:$P,RIGHT("0"&MONTH(DATE(YEAR(I2),MONTH(I2)+2,0)),2),'VSAOI transakcijas'!$Q:$Q,"Riska nodeva",'VSAOI transakcijas'!$K:$K,"<>"&"FIFO*",'VSAOI transakcijas'!$K:$K,"<>"&"Iemaksas atbrīvošana",'VSAOI transakcijas'!$E:$E,"Deklarācija/pārskats") -> 0 | J53: =-SUMIFS('VSAOI transakcijas'!$R:$R,'VSAOI transakcijas'!$D:$D,"Aprēķins",'VSAOI transakcijas'!$H:$H,"Pamatsumma",'VSAOI transakcijas'!$S:$S,">="&DATE(YEAR(J2),MONTH(J2),1),'VSAOI transakcijas'!$S:$S,"<="&'Sakuma lapa'!$F$16,'VSAOI transakcijas'!$O:$O,YEAR(DATE(YEAR(J2),MONTH(J2)+2,0)),'VSAOI transakcijas'!$P:$P,RIGHT("0"&MONTH(DATE(YEAR(J2),MONTH(J2)+2,0)),2),'VSAOI transakcijas'!$Q:$Q,"Riska nodeva",'VSAOI transakcijas'!$K:$K,"<>"&"FIFO*",'VSAOI transakcijas'!$K:$K,"<>"&"Iemaksas atbrīvošana",'VSAOI transakcijas'!$E:$E,"Deklarācija/pārskats") -> 0 | K53: =-SUMIFS('VSAOI transakcijas'!$R:$R,'VSAOI transakcijas'!$D:$D,"Aprēķins",'VSAOI transakcijas'!$H:$H,"Pamatsumma",'VSAOI transakcijas'!$S:$S,">="&DATE(YEAR(K2),MONTH(K2),1),'VSAOI transakcijas'!$S:$S,"<="&'Sakuma lapa'!$F$16,'VSAOI transakcijas'!$O:$O,YEAR(DATE(YEAR(K2),MONTH(K2)+2,0)),'VSAOI transakcijas'!$P:$P,RIGHT("0"&MONTH(DATE(YEAR(K2),MONTH(K2)+2,0)),2),'VSAOI transakcijas'!$Q:$Q,"Riska nodeva",'VSAOI transakcijas'!$K:$K,"<>"&"FIFO*",'VSAOI transakcijas'!$K:$K,"<>"&"Iemaksas atbrīvošana",'VSAOI transakcijas'!$E:$E,"Deklarācija/pārskats") -> 0 | L53: =-SUMIFS('VSAOI transakcijas'!$R:$R,'VSAOI transakcijas'!$D:$D,"Aprēķins",'VSAOI transakcijas'!$H:$H,"Pamatsumma",'VSAOI transakcijas'!$S:$S,">="&DATE(YEAR(L2),MONTH(L2),1),'VSAOI transakcijas'!$S:$S,"<="&'Sakuma lapa'!$F$16,'VSAOI transakcijas'!$O:$O,YEAR(DATE(YEAR(L2),MONTH(L2)+2,0)),'VSAOI transakcijas'!$P:$P,RIGHT("0"&MONTH(DATE(YEAR(L2),MONTH(L2)+2,0)),2),'VSAOI transakcijas'!$Q:$Q,"Riska nodeva",'VSAOI transakcijas'!$K:$K,"<>"&"FIFO*",'VSAOI transakcijas'!$K:$K,"<>"&"Iemaksas atbrīvošana",'VSAOI transakcijas'!$E:$E,"Deklarācija/pārskats") -> 0 | M53: =-SUMIFS('VSAOI transakcijas'!$R:$R,'VSAOI transakcijas'!$D:$D,"Aprēķins",'VSAOI transakcijas'!$H:$H,"Pamatsumma",'VSAOI transakcijas'!$S:$S,">="&DATE(YEAR(M2),MONTH(M2),1),'VSAOI transakcijas'!$S:$S,"<="&'Sakuma lapa'!$F$16,'VSAOI transakcijas'!$O:$O,YEAR(DATE(YEAR(M2),MONTH(M2)+2,0)),'VSAOI transakcijas'!$P:$P,RIGHT("0"&MONTH(DATE(YEAR(M2),MONTH(M2)+2,0)),2),'VSAOI transakcijas'!$Q:$Q,"Riska nodeva",'VSAOI transakcijas'!$K:$K,"<>"&"FIFO*",'VSAOI transakcijas'!$K:$K,"<>"&"Iemaksas atbrīvošana",'VSAOI transakcijas'!$E:$E,"Deklarācija/pārskats") -> 0 | N53: =-SUMIFS('VSAOI transakcijas'!$R:$R,'VSAOI transakcijas'!$D:$D,"Aprēķins",'VSAOI transakcijas'!$H:$H,"Pamatsumma",'VSAOI transakcijas'!$S:$S,">="&DATE(YEAR(N2),MONTH(N2),1),'VSAOI transakcijas'!$S:$S,"<="&'Sakuma lapa'!$F$16,'VSAOI transakcijas'!$O:$O,YEAR(DATE(YEAR(N2),MONTH(N2)+2,0)),'VSAOI transakcijas'!$P:$P,RIGHT("0"&MONTH(DATE(YEAR(N2),MONTH(N2)+2,0)),2),'VSAOI transakcijas'!$Q:$Q,"Riska nodeva",'VSAOI transakcijas'!$K:$K,"<>"&"FIFO*",'VSAOI transakcijas'!$K:$K,"<>"&"Iemaksas atbrīvošana",'VSAOI transakcijas'!$E:$E,"Deklarācija/pārskats") -> 0 | O53: =SUM(C53:N53) -> 0
B54: Aprēķins - Citi | C54: =-SUMIFS('VSAOI transakcijas'!$R:$R,'VSAOI transakcijas'!$D:$D,"Aprēķins",'VSAOI transakcijas'!$H:$H,"Pamatsumma",'VSAOI transakcijas'!$S:$S,">="&DATE(YEAR(C2),MONTH(C2),1),'VSAOI transakcijas'!$S:$S,"<="&'Sakuma lapa'!$F$16,'VSAOI transakcijas'!$O:$O,YEAR(DATE(YEAR(C2),MONTH(C2)+2,0)),'VSAOI transakcijas'!$P:$P,RIGHT("0"&MONTH(DATE(YEAR(C2),MONTH(C2)+2,0)),2),'VSAOI transakcijas'!$Q:$Q,"Riska nodeva",'VSAOI transakcijas'!$K:$K,"<>"&"FIFO*",'VSAOI transakcijas'!$K:$K,"<>"&"Iemaksas atbrīvošana",'VSAOI transakcijas'!$E:$E,"<>"&"Deklarācija/pārskats") -> 0 | D54: =-SUMIFS('VSAOI transakcijas'!$R:$R,'VSAOI transakcijas'!$D:$D,"Aprēķins",'VSAOI transakcijas'!$H:$H,"Pamatsumma",'VSAOI transakcijas'!$S:$S,">="&DATE(YEAR(D2),MONTH(D2),1),'VSAOI transakcijas'!$S:$S,"<="&'Sakuma lapa'!$F$16,'VSAOI transakcijas'!$O:$O,YEAR(DATE(YEAR(D2),MONTH(D2)+2,0)),'VSAOI transakcijas'!$P:$P,RIGHT("0"&MONTH(DATE(YEAR(D2),MONTH(D2)+2,0)),2),'VSAOI transakcijas'!$Q:$Q,"Riska nodeva",'VSAOI transakcijas'!$K:$K,"<>"&"FIFO*",'VSAOI transakcijas'!$K:$K,"<>"&"Iemaksas atbrīvošana",'VSAOI transakcijas'!$E:$E,"<>"&"Deklarācija/pārskats") -> 0 | E54: =-SUMIFS('VSAOI transakcijas'!$R:$R,'VSAOI transakcijas'!$D:$D,"Aprēķins",'VSAOI transakcijas'!$H:$H,"Pamatsumma",'VSAOI transakcijas'!$S:$S,">="&DATE(YEAR(E2),MONTH(E2),1),'VSAOI transakcijas'!$S:$S,"<="&'Sakuma lapa'!$F$16,'VSAOI transakcijas'!$O:$O,YEAR(DATE(YEAR(E2),MONTH(E2)+2,0)),'VSAOI transakcijas'!$P:$P,RIGHT("0"&MONTH(DATE(YEAR(E2),MONTH(E2)+2,0)),2),'VSAOI transakcijas'!$Q:$Q,"Riska nodeva",'VSAOI transakcijas'!$K:$K,"<>"&"FIFO*",'VSAOI transakcijas'!$K:$K,"<>"&"Iemaksas atbrīvošana",'VSAOI transakcijas'!$E:$E,"<>"&"Deklarācija/pārskats") -> 0 | F54: =-SUMIFS('VSAOI transakcijas'!$R:$R,'VSAOI transakcijas'!$D:$D,"Aprēķins",'VSAOI transakcijas'!$H:$H,"Pamatsumma",'VSAOI transakcijas'!$S:$S,">="&DATE(YEAR(F2),MONTH(F2),1),'VSAOI transakcijas'!$S:$S,"<="&'Sakuma lapa'!$F$16,'VSAOI transakcijas'!$O:$O,YEAR(DATE(YEAR(F2),MONTH(F2)+2,0)),'VSAOI transakcijas'!$P:$P,RIGHT("0"&MONTH(DATE(YEAR(F2),MONTH(F2)+2,0)),2),'VSAOI transakcijas'!$Q:$Q,"Riska nodeva",'VSAOI transakcijas'!$K:$K,"<>"&"FIFO*",'VSAOI transakcijas'!$K:$K,"<>"&"Iemaksas atbrīvošana",'VSAOI transakcijas'!$E:$E,"<>"&"Deklarācija/pārskats") -> 0 | G54: =-SUMIFS('VSAOI transakcijas'!$R:$R,'VSAOI transakcijas'!$D:$D,"Aprēķins",'VSAOI transakcijas'!$H:$H,"Pamatsumma",'VSAOI transakcijas'!$S:$S,">="&DATE(YEAR(G2),MONTH(G2),1),'VSAOI transakcijas'!$S:$S,"<="&'Sakuma lapa'!$F$16,'VSAOI transakcijas'!$O:$O,YEAR(DATE(YEAR(G2),MONTH(G2)+2,0)),'VSAOI transakcijas'!$P:$P,RIGHT("0"&MONTH(DATE(YEAR(G2),MONTH(G2)+2,0)),2),'VSAOI transakcijas'!$Q:$Q,"Riska nodeva",'VSAOI transakcijas'!$K:$K,"<>"&"FIFO*",'VSAOI transakcijas'!$K:$K,"<>"&"Iemaksas atbrīvošana",'VSAOI transakcijas'!$E:$E,"<>"&"Deklarācija/pārskats") -> 0 | H54: =-SUMIFS('VSAOI transakcijas'!$R:$R,'VSAOI transakcijas'!$D:$D,"Aprēķins",'VSAOI transakcijas'!$H:$H,"Pamatsumma",'VSAOI transakcijas'!$S:$S,">="&DATE(YEAR(H2),MONTH(H2),1),'VSAOI transakcijas'!$S:$S,"<="&'Sakuma lapa'!$F$16,'VSAOI transakcijas'!$O:$O,YEAR(DATE(YEAR(H2),MONTH(H2)+2,0)),'VSAOI transakcijas'!$P:$P,RIGHT("0"&MONTH(DATE(YEAR(H2),MONTH(H2)+2,0)),2),'VSAOI transakcijas'!$Q:$Q,"Riska nodeva",'VSAOI transakcijas'!$K:$K,"<>"&"FIFO*",'VSAOI transakcijas'!$K:$K,"<>"&"Iemaksas atbrīvošana",'VSAOI transakcijas'!$E:$E,"<>"&"Deklarācija/pārskats") -> 0 | I54: =-SUMIFS('VSAOI transakcijas'!$R:$R,'VSAOI transakcijas'!$D:$D,"Aprēķins",'VSAOI transakcijas'!$H:$H,"Pamatsumma",'VSAOI transakcijas'!$S:$S,">="&DATE(YEAR(I2),MONTH(I2),1),'VSAOI transakcijas'!$S:$S,"<="&'Sakuma lapa'!$F$16,'VSAOI transakcijas'!$O:$O,YEAR(DATE(YEAR(I2),MONTH(I2)+2,0)),'VSAOI transakcijas'!$P:$P,RIGHT("0"&MONTH(DATE(YEAR(I2),MONTH(I2)+2,0)),2),'VSAOI transakcijas'!$Q:$Q,"Riska nodeva",'VSAOI transakcijas'!$K:$K,"<>"&"FIFO*",'VSAOI transakcijas'!$K:$K,"<>"&"Iemaksas atbrīvošana",'VSAOI transakcijas'!$E:$E,"<>"&"Deklarācija/pārskats") -> 0 | J54: =-SUMIFS('VSAOI transakcijas'!$R:$R,'VSAOI transakcijas'!$D:$D,"Aprēķins",'VSAOI transakcijas'!$H:$H,"Pamatsumma",'VSAOI transakcijas'!$S:$S,">="&DATE(YEAR(J2),MONTH(J2),1),'VSAOI transakcijas'!$S:$S,"<="&'Sakuma lapa'!$F$16,'VSAOI transakcijas'!$O:$O,YEAR(DATE(YEAR(J2),MONTH(J2)+2,0)),'VSAOI transakcijas'!$P:$P,RIGHT("0"&MONTH(DATE(YEAR(J2),MONTH(J2)+2,0)),2),'VSAOI transakcijas'!$Q:$Q,"Riska nodeva",'VSAOI transakcijas'!$K:$K,"<>"&"FIFO*",'VSAOI transakcijas'!$K:$K,"<>"&"Iemaksas atbrīvošana",'VSAOI transakcijas'!$E:$E,"<>"&"Deklarācija/pārskats") -> 0 | K54: =-SUMIFS('VSAOI transakcijas'!$R:$R,'VSAOI transakcijas'!$D:$D,"Aprēķins",'VSAOI transakcijas'!$H:$H,"Pamatsumma",'VSAOI transakcijas'!$S:$S,">="&DATE(YEAR(K2),MONTH(K2),1),'VSAOI transakcijas'!$S:$S,"<="&'Sakuma lapa'!$F$16,'VSAOI transakcijas'!$O:$O,YEAR(DATE(YEAR(K2),MONTH(K2)+2,0)),'VSAOI transakcijas'!$P:$P,RIGHT("0"&MONTH(DATE(YEAR(K2),MONTH(K2)+2,0)),2),'VSAOI transakcijas'!$Q:$Q,"Riska nodeva",'VSAOI transakcijas'!$K:$K,"<>"&"FIFO*",'VSAOI transakcijas'!$K:$K,"<>"&"Iemaksas atbrīvošana",'VSAOI transakcijas'!$E:$E,"<>"&"Deklarācija/pārskats") -> 0 | L54: =-SUMIFS('VSAOI transakcijas'!$R:$R,'VSAOI transakcijas'!$D:$D,"Aprēķins",'VSAOI transakcijas'!$H:$H,"Pamatsumma",'VSAOI transakcijas'!$S:$S,">="&DATE(YEAR(L2),MONTH(L2),1),'VSAOI transakcijas'!$S:$S,"<="&'Sakuma lapa'!$F$16,'VSAOI transakcijas'!$O:$O,YEAR(DATE(YEAR(L2),MONTH(L2)+2,0)),'VSAOI transakcijas'!$P:$P,RIGHT("0"&MONTH(DATE(YEAR(L2),MONTH(L2)+2,0)),2),'VSAOI transakcijas'!$Q:$Q,"Riska nodeva",'VSAOI transakcijas'!$K:$K,"<>"&"FIFO*",'VSAOI transakcijas'!$K:$K,"<>"&"Iemaksas atbrīvošana",'VSAOI transakcijas'!$E:$E,"<>"&"Deklarācija/pārskats") -> 0 | M54: =-SUMIFS('VSAOI transakcijas'!$R:$R,'VSAOI transakcijas'!$D:$D,"Aprēķins",'VSAOI transakcijas'!$H:$H,"Pamatsumma",'VSAOI transakcijas'!$S:$S,">="&DATE(YEAR(M2),MONTH(M2),1),'VSAOI transakcijas'!$S:$S,"<="&'Sakuma lapa'!$F$16,'VSAOI transakcijas'!$O:$O,YEAR(DATE(YEAR(M2),MONTH(M2)+2,0)),'VSAOI transakcijas'!$P:$P,RIGHT("0"&MONTH(DATE(YEAR(M2),MONTH(M2)+2,0)),2),'VSAOI transakcijas'!$Q:$Q,"Riska nodeva",'VSAOI transakcijas'!$K:$K,"<>"&"FIFO*",'VSAOI transakcijas'!$K:$K,"<>"&"Iemaksas atbrīvošana",'VSAOI transakcijas'!$E:$E,"<>"&"Deklarācija/pārskats") -> 0 | N54: =-SUMIFS('VSAOI transakcijas'!$R:$R,'VSAOI transakcijas'!$D:$D,"Aprēķins",'VSAOI transakcijas'!$H:$H,"Pamatsumma",'VSAOI transakcijas'!$S:$S,">="&DATE(YEAR(N2),MONTH(N2),1),'VSAOI transakcijas'!$S:$S,"<="&'Sakuma lapa'!$F$16,'VSAOI transakcijas'!$O:$O,YEAR(DATE(YEAR(N2),MONTH(N2)+2,0)),'VSAOI transakcijas'!$P:$P,RIGHT("0"&MONTH(DATE(YEAR(N2),MONTH(N2)+2,0)),2),'VSAOI transakcijas'!$Q:$Q,"Riska nodeva",'VSAOI transakcijas'!$K:$K,"<>"&"FIFO*",'VSAOI transakcijas'!$K:$K,"<>"&"Iemaksas atbrīvošana",'VSAOI transakcijas'!$E:$E,"<>"&"Deklarācija/pārskats") -> 0 | O54: =SUM(C54:N54) -> 0
B55: Iemaksa/Atmaksa/Pārvietošana | C55: =-SUMIFS('VSAOI transakcijas'!$R:$R,'VSAOI transakcijas'!$D:$D,"Iemaksa",'VSAOI transakcijas'!$H:$H,"Pamatsumma",'VSAOI transakcijas'!$S:$S,">="&DATE(YEAR(C2),MONTH(C2),1),'VSAOI transakcijas'!$S:$S,"<="&'Sakuma lapa'!$F$16,'VSAOI transakcijas'!$O:$O,YEAR(DATE(YEAR(C2),MONTH(C2)+1,0)),'VSAOI transakcijas'!$P:$P,RIGHT("0"&MONTH(DATE(YEAR(C2),MONTH(C2)+1,0)),2),'VSAOI transakcijas'!$Q:$Q,"Riska nodeva") -SUMIFS('VSAOI transakcijas'!$R:$R,'VSAOI transakcijas'!$D:$D,"Atmaksa",'VSAOI transakcijas'!$H:$H,"Pamatsumma",'VSAOI transakcijas'!$S:$S,">="&DATE(YEAR(C2),MONTH(C2),1),'VSAOI transakcijas'!$S:$S,"<="&'Sakuma lapa'!$F$16,'VSAOI transakcijas'!$O:$O,YEAR(DATE(YEAR(C2),MONTH(C2)+1,0)),'VSAOI transakcijas'!$P:$P,RIGHT("0"&MONTH(DATE(YEAR(C2),MONTH(C2)+1,0)),2),'VSAOI transakcijas'!$Q:$Q,"Riska nodeva") -SUMIFS('VSAOI transakcijas'!$R:$R,'VSAOI transakcijas'!$D:$D,"Aprēķins",'VSAOI transakcijas'!$H:$H,"Pamatsumma",'VSAOI transakcijas'!$S:$S,">="&DATE(YEAR(C2),MONTH(C2),1),'VSAOI transakcijas'!$S:$S,"<="&'Sakuma lapa'!$F$16,'VSAOI transakcijas'!$O:$O,YEAR(DATE(YEAR(C2),MONTH(C2)+1,0)),'VSAOI transakcijas'!$P:$P,RIGHT("0"&MONTH(DATE(YEAR(C2),MONTH(C2)+1,0)),2),'VSAOI transakcijas'!$Q:$Q,"Riska nodeva",'VSAOI transakcijas'!$K:$K,"FIFO*") -SUMIFS('VSAOI transakcijas'!$R:$R,'VSAOI transakcijas'!$D:$D,"Aprēķins",'VSAOI transakcijas'!$H:$H,"Pamatsumma",'VSAOI transakcijas'!$S:$S,">="&DATE(YEAR(C2),MONTH(C2),1),'VSAOI transakcijas'!$S:$S,"<="&'Sakuma lapa'!$F$16,'VSAOI transakcijas'!$O:$O,YEAR(DATE(YEAR(C2),MONTH(C2)+1,0)),'VSAOI transakcijas'!$P:$P,RIGHT("0"&MONTH(DATE(YEAR(C2),MONTH(C2)+1,0)),2),'VSAOI transakcijas'!$Q:$Q,"Riska nodeva",'VSAOI transakcijas'!$K:$K,"Iemaksas atbrīvošana") -SUMIFS('VSAOI transakcijas'!$R:$R,'VSAOI transakcijas'!$H:$H,"Nokavējuma nauda",'VSAOI transakcijas'!$S:$S,">="&DATE(YEAR(C2),MONTH(C2),1),'VSAOI transakcijas'!$S:$S,"<="&'Sakuma lapa'!$F$16,'VSAOI transakcijas'!$O:$O,YEAR(DATE(YEAR(C2),MONTH(C2)+1,0)),'VSAOI transakcijas'!$P:$P,RIGHT("0"&MONTH(DATE(YEAR(C2),MONTH(C2)+1,0)),2),'VSAOI transakcijas'!$Q:$Q,"Riska nodeva") -> 0 | D55: =-SUMIFS('VSAOI transakcijas'!$R:$R,'VSAOI transakcijas'!$D:$D,"Iemaksa",'VSAOI transakcijas'!$H:$H,"Pamatsumma",'VSAOI transakcijas'!$S:$S,">="&DATE(YEAR(D2),MONTH(D2),1),'VSAOI transakcijas'!$S:$S,"<="&'Sakuma lapa'!$F$16,'VSAOI transakcijas'!$O:$O,YEAR(DATE(YEAR(D2),MONTH(D2)+1,0)),'VSAOI transakcijas'!$P:$P,RIGHT("0"&MONTH(DATE(YEAR(D2),MONTH(D2)+1,0)),2),'VSAOI transakcijas'!$Q:$Q,"Riska nodeva") -SUMIFS('VSAOI transakcijas'!$R:$R,'VSAOI transakcijas'!$D:$D,"Atmaksa",'VSAOI transakcijas'!$H:$H,"Pamatsumma",'VSAOI transakcijas'!$S:$S,">="&DATE(YEAR(D2),MONTH(D2),1),'VSAOI transakcijas'!$S:$S,"<="&'Sakuma lapa'!$F$16,'VSAOI transakcijas'!$O:$O,YEAR(DATE(YEAR(D2),MONTH(D2)+1,0)),'VSAOI transakcijas'!$P:$P,RIGHT("0"&MONTH(DATE(YEAR(D2),MONTH(D2)+1,0)),2),'VSAOI transakcijas'!$Q:$Q,"Riska nodeva") -SUMIFS('VSAOI transakcijas'!$R:$R,'VSAOI transakcijas'!$D:$D,"Aprēķins",'VSAOI transakcijas'!$H:$H,"Pamatsumma",'VSAOI transakcijas'!$S:$S,">="&DATE(YEAR(D2),MONTH(D2),1),'VSAOI transakcijas'!$S:$S,"<="&'Sakuma lapa'!$F$16,'VSAOI transakcijas'!$O:$O,YEAR(DATE(YEAR(D2),MONTH(D2)+1,0)),'VSAOI transakcijas'!$P:$P,RIGHT("0"&MONTH(DATE(YEAR(D2),MONTH(D2)+1,0)),2),'VSAOI transakcijas'!$Q:$Q,"Riska nodeva",'VSAOI transakcijas'!$K:$K,"FIFO*") -SUMIFS('VSAOI transakcijas'!$R:$R,'VSAOI transakcijas'!$D:$D,"Aprēķins",'VSAOI transakcijas'!$H:$H,"Pamatsumma",'VSAOI transakcijas'!$S:$S,">="&DATE(YEAR(D2),MONTH(D2),1),'VSAOI transakcijas'!$S:$S,"<="&'Sakuma lapa'!$F$16,'VSAOI transakcijas'!$O:$O,YEAR(DATE(YEAR(D2),MONTH(D2)+1,0)),'VSAOI transakcijas'!$P:$P,RIGHT("0"&MONTH(DATE(YEAR(D2),MONTH(D2)+1,0)),2),'VSAOI transakcijas'!$Q:$Q,"Riska nodeva",'VSAOI transakcijas'!$K:$K,"Iemaksas atbrīvošana") -SUMIFS('VSAOI transakcijas'!$R:$R,'VSAOI transakcijas'!$H:$H,"Nokavējuma nauda",'VSAOI transakcijas'!$S:$S,">="&DATE(YEAR(D2),MONTH(D2),1),'VSAOI transakcijas'!$S:$S,"<="&'Sakuma lapa'!$F$16,'VSAOI transakcijas'!$O:$O,YEAR(DATE(YEAR(D2),MONTH(D2)+1,0)),'VSAOI transakcijas'!$P:$P,RIGHT("0"&MONTH(DATE(YEAR(D2),MONTH(D2)+1,0)),2),'VSAOI transakcijas'!$Q:$Q,"Riska nodeva") -> 0 | E55: =-SUMIFS('VSAOI transakcijas'!$R:$R,'VSAOI transakcijas'!$D:$D,"Iemaksa",'VSAOI transakcijas'!$H:$H,"Pamatsumma",'VSAOI transakcijas'!$S:$S,">="&DATE(YEAR(E2),MONTH(E2),1),'VSAOI transakcijas'!$S:$S,"<="&'Sakuma lapa'!$F$16,'VSAOI transakcijas'!$O:$O,YEAR(DATE(YEAR(E2),MONTH(E2)+1,0)),'VSAOI transakcijas'!$P:$P,RIGHT("0"&MONTH(DATE(YEAR(E2),MONTH(E2)+1,0)),2),'VSAOI transakcijas'!$Q:$Q,"Riska nodeva") -SUMIFS('VSAOI transakcijas'!$R:$R,'VSAOI transakcijas'!$D:$D,"Atmaksa",'VSAOI transakcijas'!$H:$H,"Pamatsumma",'VSAOI transakcijas'!$S:$S,">="&DATE(YEAR(E2),MONTH(E2),1),'VSAOI transakcijas'!$S:$S,"<="&'Sakuma lapa'!$F$16,'VSAOI transakcijas'!$O:$O,YEAR(DATE(YEAR(E2),MONTH(E2)+1,0)),'VSAOI transakcijas'!$P:$P,RIGHT("0"&MONTH(DATE(YEAR(E2),MONTH(E2)+1,0)),2),'VSAOI transakcijas'!$Q:$Q,"Riska nodeva") -SUMIFS('VSAOI transakcijas'!$R:$R,'VSAOI transakcijas'!$D:$D,"Aprēķins",'VSAOI transakcijas'!$H:$H,"Pamatsumma",'VSAOI transakcijas'!$S:$S,">="&DATE(YEAR(E2),MONTH(E2),1),'VSAOI transakcijas'!$S:$S,"<="&'Sakuma lapa'!$F$16,'VSAOI transakcijas'!$O:$O,YEAR(DATE(YEAR(E2),MONTH(E2)+1,0)),'VSAOI transakcijas'!$P:$P,RIGHT("0"&MONTH(DATE(YEAR(E2),MONTH(E2)+1,0)),2),'VSAOI transakcijas'!$Q:$Q,"Riska nodeva",'VSAOI transakcijas'!$K:$K,"FIFO*") -SUMIFS('VSAOI transakcijas'!$R:$R,'VSAOI transakcijas'!$D:$D,"Aprēķins",'VSAOI transakcijas'!$H:$H,"Pamatsumma",'VSAOI transakcijas'!$S:$S,">="&DATE(YEAR(E2),MONTH(E2),1),'VSAOI transakcijas'!$S:$S,"<="&'Sakuma lapa'!$F$16,'VSAOI transakcijas'!$O:$O,YEAR(DATE(YEAR(E2),MONTH(E2)+1,0)),'VSAOI transakcijas'!$P:$P,RIGHT("0"&MONTH(DATE(YEAR(E2),MONTH(E2)+1,0)),2),'VSAOI transakcijas'!$Q:$Q,"Riska nodeva",'VSAOI transakcijas'!$K:$K,"Iemaksas atbrīvošana") -SUMIFS('VSAOI transakcijas'!$R:$R,'VSAOI transakcijas'!$H:$H,"Nokavējuma nauda",'VSAOI transakcijas'!$S:$S,">="&DATE(YEAR(E2),MONTH(E2),1),'VSAOI transakcijas'!$S:$S,"<="&'Sakuma lapa'!$F$16,'VSAOI transakcijas'!$O:$O,YEAR(DATE(YEAR(E2),MONTH(E2)+1,0)),'VSAOI transakcijas'!$P:$P,RIGHT("0"&MONTH(DATE(YEAR(E2),MONTH(E2)+1,0)),2),'VSAOI transakcijas'!$Q:$Q,"Riska nodeva") -> 0 | F55: =-SUMIFS('VSAOI transakcijas'!$R:$R,'VSAOI transakcijas'!$D:$D,"Iemaksa",'VSAOI transakcijas'!$H:$H,"Pamatsumma",'VSAOI transakcijas'!$S:$S,">="&DATE(YEAR(F2),MONTH(F2),1),'VSAOI transakcijas'!$S:$S,"<="&'Sakuma lapa'!$F$16,'VSAOI transakcijas'!$O:$O,YEAR(DATE(YEAR(F2),MONTH(F2)+1,0)),'VSAOI transakcijas'!$P:$P,RIGHT("0"&MONTH(DATE(YEAR(F2),MONTH(F2)+1,0)),2),'VSAOI transakcijas'!$Q:$Q,"Riska nodeva") -SUMIFS('VSAOI transakcijas'!$R:$R,'VSAOI transakcijas'!$D:$D,"Atmaksa",'VSAOI transakcijas'!$H:$H,"Pamatsumma",'VSAOI transakcijas'!$S:$S,">="&DATE(YEAR(F2),MONTH(F2),1),'VSAOI transakcijas'!$S:$S,"<="&'Sakuma lapa'!$F$16,'VSAOI transakcijas'!$O:$O,YEAR(DATE(YEAR(F2),MONTH(F2)+1,0)),'VSAOI transakcijas'!$P:$P,RIGHT("0"&MONTH(DATE(YEAR(F2),MONTH(F2)+1,0)),2),'VSAOI transakcijas'!$Q:$Q,"Riska nodeva") -SUMIFS('VSAOI transakcijas'!$R:$R,'VSAOI transakcijas'!$D:$D,"Aprēķins",'VSAOI transakcijas'!$H:$H,"Pamatsumma",'VSAOI transakcijas'!$S:$S,">="&DATE(YEAR(F2),MONTH(F2),1),'VSAOI transakcijas'!$S:$S,"<="&'Sakuma lapa'!$F$16,'VSAOI transakcijas'!$O:$O,YEAR(DATE(YEAR(F2),MONTH(F2)+1,0)),'VSAOI transakcijas'!$P:$P,RIGHT("0"&MONTH(DATE(YEAR(F2),MONTH(F2)+1,0)),2),'VSAOI transakcijas'!$Q:$Q,"Riska nodeva",'VSAOI transakcijas'!$K:$K,"FIFO*") -SUMIFS('VSAOI transakcijas'!$R:$R,'VSAOI transakcijas'!$D:$D,"Aprēķins",'VSAOI transakcijas'!$H:$H,"Pamatsumma",'VSAOI transakcijas'!$S:$S,">="&DATE(YEAR(F2),MONTH(F2),1),'VSAOI transakcijas'!$S:$S,"<="&'Sakuma lapa'!$F$16,'VSAOI transakcijas'!$O:$O,YEAR(DATE(YEAR(F2),MONTH(F2)+1,0)),'VSAOI transakcijas'!$P:$P,RIGHT("0"&MONTH(DATE(YEAR(F2),MONTH(F2)+1,0)),2),'VSAOI transakcijas'!$Q:$Q,"Riska nodeva",'VSAOI transakcijas'!$K:$K,"Iemaksas atbrīvošana") -SUMIFS('VSAOI transakcijas'!$R:$R,'VSAOI transakcijas'!$H:$H,"Nokavējuma nauda",'VSAOI transakcijas'!$S:$S,">="&DATE(YEAR(F2),MONTH(F2),1),'VSAOI transakcijas'!$S:$S,"<="&'Sakuma lapa'!$F$16,'VSAOI transakcijas'!$O:$O,YEAR(DATE(YEAR(F2),MONTH(F2)+1,0)),'VSAOI transakcijas'!$P:$P,RIGHT("0"&MONTH(DATE(YEAR(F2),MONTH(F2)+1,0)),2),'VSAOI transakcijas'!$Q:$Q,"Riska nodeva") -> 0 | G55: =-SUMIFS('VSAOI transakcijas'!$R:$R,'VSAOI transakcijas'!$D:$D,"Iemaksa",'VSAOI transakcijas'!$H:$H,"Pamatsumma",'VSAOI transakcijas'!$S:$S,">="&DATE(YEAR(G2),MONTH(G2),1),'VSAOI transakcijas'!$S:$S,"<="&'Sakuma lapa'!$F$16,'VSAOI transakcijas'!$O:$O,YEAR(DATE(YEAR(G2),MONTH(G2)+1,0)),'VSAOI transakcijas'!$P:$P,RIGHT("0"&MONTH(DATE(YEAR(G2),MONTH(G2)+1,0)),2),'VSAOI transakcijas'!$Q:$Q,"Riska nodeva") -SUMIFS('VSAOI transakcijas'!$R:$R,'VSAOI transakcijas'!$D:$D,"Atmaksa",'VSAOI transakcijas'!$H:$H,"Pamatsumma",'VSAOI transakcijas'!$S:$S,">="&DATE(YEAR(G2),MONTH(G2),1),'VSAOI transakcijas'!$S:$S,"<="&'Sakuma lapa'!$F$16,'VSAOI transakcijas'!$O:$O,YEAR(DATE(YEAR(G2),MONTH(G2)+1,0)),'VSAOI transakcijas'!$P:$P,RIGHT("0"&MONTH(DATE(YEAR(G2),MONTH(G2)+1,0)),2),'VSAOI transakcijas'!$Q:$Q,"Riska nodeva") -SUMIFS('VSAOI transakcijas'!$R:$R,'VSAOI transakcijas'!$D:$D,"Aprēķins",'VSAOI transakcijas'!$H:$H,"Pamatsumma",'VSAOI transakcijas'!$S:$S,">="&DATE(YEAR(G2),MONTH(G2),1),'VSAOI transakcijas'!$S:$S,"<="&'Sakuma lapa'!$F$16,'VSAOI transakcijas'!$O:$O,YEAR(DATE(YEAR(G2),MONTH(G2)+1,0)),'VSAOI transakcijas'!$P:$P,RIGHT("0"&MONTH(DATE(YEAR(G2),MONTH(G2)+1,0)),2),'VSAOI transakcijas'!$Q:$Q,"Riska nodeva",'VSAOI transakcijas'!$K:$K,"FIFO*") -SUMIFS('VSAOI transakcijas'!$R:$R,'VSAOI transakcijas'!$D:$D,"Aprēķins",'VSAOI transakcijas'!$H:$H,"Pamatsumma",'VSAOI transakcijas'!$S:$S,">="&DATE(YEAR(G2),MONTH(G2),1),'VSAOI transakcijas'!$S:$S,"<="&'Sakuma lapa'!$F$16,'VSAOI transakcijas'!$O:$O,YEAR(DATE(YEAR(G2),MONTH(G2)+1,0)),'VSAOI transakcijas'!$P:$P,RIGHT("0"&MONTH(DATE(YEAR(G2),MONTH(G2)+1,0)),2),'VSAOI transakcijas'!$Q:$Q,"Riska nodeva",'VSAOI transakcijas'!$K:$K,"Iemaksas atbrīvošana") -SUMIFS('VSAOI transakcijas'!$R:$R,'VSAOI transakcijas'!$H:$H,"Nokavējuma nauda",'VSAOI transakcijas'!$S:$S,">="&DATE(YEAR(G2),MONTH(G2),1),'VSAOI transakcijas'!$S:$S,"<="&'Sakuma lapa'!$F$16,'VSAOI transakcijas'!$O:$O,YEAR(DATE(YEAR(G2),MONTH(G2)+1,0)),'VSAOI transakcijas'!$P:$P,RIGHT("0"&MONTH(DATE(YEAR(G2),MONTH(G2)+1,0)),2),'VSAOI transakcijas'!$Q:$Q,"Riska nodeva") -> 0 | H55: =-SUMIFS('VSAOI transakcijas'!$R:$R,'VSAOI transakcijas'!$D:$D,"Iemaksa",'VSAOI transakcijas'!$H:$H,"Pamatsumma",'VSAOI transakcijas'!$S:$S,">="&DATE(YEAR(H2),MONTH(H2),1),'VSAOI transakcijas'!$S:$S,"<="&'Sakuma lapa'!$F$16,'VSAOI transakcijas'!$O:$O,YEAR(DATE(YEAR(H2),MONTH(H2)+1,0)),'VSAOI transakcijas'!$P:$P,RIGHT("0"&MONTH(DATE(YEAR(H2),MONTH(H2)+1,0)),2),'VSAOI transakcijas'!$Q:$Q,"Riska nodeva") -SUMIFS('VSAOI transakcijas'!$R:$R,'VSAOI transakcijas'!$D:$D,"Atmaksa",'VSAOI transakcijas'!$H:$H,"Pamatsumma",'VSAOI transakcijas'!$S:$S,">="&DATE(YEAR(H2),MONTH(H2),1),'VSAOI transakcijas'!$S:$S,"<="&'Sakuma lapa'!$F$16,'VSAOI transakcijas'!$O:$O,YEAR(DATE(YEAR(H2),MONTH(H2)+1,0)),'VSAOI transakcijas'!$P:$P,RIGHT("0"&MONTH(DATE(YEAR(H2),MONTH(H2)+1,0)),2),'VSAOI transakcijas'!$Q:$Q,"Riska nodeva") -SUMIFS('VSAOI transakcijas'!$R:$R,'VSAOI transakcijas'!$D:$D,"Aprēķins",'VSAOI transakcijas'!$H:$H,"Pamatsumma",'VSAOI transakcijas'!$S:$S,">="&DATE(YEAR(H2),MONTH(H2),1),'VSAOI transakcijas'!$S:$S,"<="&'Sakuma lapa'!$F$16,'VSAOI transakcijas'!$O:$O,YEAR(DATE(YEAR(H2),MONTH(H2)+1,0)),'VSAOI transakcijas'!$P:$P,RIGHT("0"&MONTH(DATE(YEAR(H2),MONTH(H2)+1,0)),2),'VSAOI transakcijas'!$Q:$Q,"Riska nodeva",'VSAOI transakcijas'!$K:$K,"FIFO*") -SUMIFS('VSAOI transakcijas'!$R:$R,'VSAOI transakcijas'!$D:$D,"Aprēķins",'VSAOI transakcijas'!$H:$H,"Pamatsumma",'VSAOI transakcijas'!$S:$S,">="&DATE(YEAR(H2),MONTH(H2),1),'VSAOI transakcijas'!$S:$S,"<="&'Sakuma lapa'!$F$16,'VSAOI transakcijas'!$O:$O,YEAR(DATE(YEAR(H2),MONTH(H2)+1,0)),'VSAOI transakcijas'!$P:$P,RIGHT("0"&MONTH(DATE(YEAR(H2),MONTH(H2)+1,0)),2),'VSAOI transakcijas'!$Q:$Q,"Riska nodeva",'VSAOI transakcijas'!$K:$K,"Iemaksas atbrīvošana") -SUMIFS('VSAOI transakcijas'!$R:$R,'VSAOI transakcijas'!$H:$H,"Nokavējuma nauda",'VSAOI transakcijas'!$S:$S,">="&DATE(YEAR(H2),MONTH(H2),1),'VSAOI transakcijas'!$S:$S,"<="&'Sakuma lapa'!$F$16,'VSAOI transakcijas'!$O:$O,YEAR(DATE(YEAR(H2),MONTH(H2)+1,0)),'VSAOI transakcijas'!$P:$P,RIGHT("0"&MONTH(DATE(YEAR(H2),MONTH(H2)+1,0)),2),'VSAOI transakcijas'!$Q:$Q,"Riska nodeva") -> 0 | I55: =-SUMIFS('VSAOI transakcijas'!$R:$R,'VSAOI transakcijas'!$D:$D,"Iemaksa",'VSAOI transakcijas'!$H:$H,"Pamatsumma",'VSAOI transakcijas'!$S:$S,">="&DATE(YEAR(I2),MONTH(I2),1),'VSAOI transakcijas'!$S:$S,"<="&'Sakuma lapa'!$F$16,'VSAOI transakcijas'!$O:$O,YEAR(DATE(YEAR(I2),MONTH(I2)+1,0)),'VSAOI transakcijas'!$P:$P,RIGHT("0"&MONTH(DATE(YEAR(I2),MONTH(I2)+1,0)),2),'VSAOI transakcijas'!$Q:$Q,"Riska nodeva") -SUMIFS('VSAOI transakcijas'!$R:$R,'VSAOI transakcijas'!$D:$D,"Atmaksa",'VSAOI transakcijas'!$H:$H,"Pamatsumma",'VSAOI transakcijas'!$S:$S,">="&DATE(YEAR(I2),MONTH(I2),1),'VSAOI transakcijas'!$S:$S,"<="&'Sakuma lapa'!$F$16,'VSAOI transakcijas'!$O:$O,YEAR(DATE(YEAR(I2),MONTH(I2)+1,0)),'VSAOI transakcijas'!$P:$P,RIGHT("0"&MONTH(DATE(YEAR(I2),MONTH(I2)+1,0)),2),'VSAOI transakcijas'!$Q:$Q,"Riska nodeva") -SUMIFS('VSAOI transakcijas'!$R:$R,'VSAOI transakcijas'!$D:$D,"Aprēķins",'VSAOI transakcijas'!$H:$H,"Pamatsumma",'VSAOI transakcijas'!$S:$S,">="&DATE(YEAR(I2),MONTH(I2),1),'VSAOI transakcijas'!$S:$S,"<="&'Sakuma lapa'!$F$16,'VSAOI transakcijas'!$O:$O,YEAR(DATE(YEAR(I2),MONTH(I2)+1,0)),'VSAOI transakcijas'!$P:$P,RIGHT("0"&MONTH(DATE(YEAR(I2),MONTH(I2)+1,0)),2),'VSAOI transakcijas'!$Q:$Q,"Riska nodeva",'VSAOI transakcijas'!$K:$K,"FIFO*") -SUMIFS('VSAOI transakcijas'!$R:$R,'VSAOI transakcijas'!$D:$D,"Aprēķins",'VSAOI transakcijas'!$H:$H,"Pamatsumma",'VSAOI transakcijas'!$S:$S,">="&DATE(YEAR(I2),MONTH(I2),1),'VSAOI transakcijas'!$S:$S,"<="&'Sakuma lapa'!$F$16,'VSAOI transakcijas'!$O:$O,YEAR(DATE(YEAR(I2),MONTH(I2)+1,0)),'VSAOI transakcijas'!$P:$P,RIGHT("0"&MONTH(DATE(YEAR(I2),MONTH(I2)+1,0)),2),'VSAOI transakcijas'!$Q:$Q,"Riska nodeva",'VSAOI transakcijas'!$K:$K,"Iemaksas atbrīvošana") -SUMIFS('VSAOI transakcijas'!$R:$R,'VSAOI transakcijas'!$H:$H,"Nokavējuma nauda",'VSAOI transakcijas'!$S:$S,">="&DATE(YEAR(I2),MONTH(I2),1),'VSAOI transakcijas'!$S:$S,"<="&'Sakuma lapa'!$F$16,'VSAOI transakcijas'!$O:$O,YEAR(DATE(YEAR(I2),MONTH(I2)+1,0)),'VSAOI transakcijas'!$P:$P,RIGHT("0"&MONTH(DATE(YEAR(I2),MONTH(I2)+1,0)),2),'VSAOI transakcijas'!$Q:$Q,"Riska nodeva") -> 0 | J55: =-SUMIFS('VSAOI transakcijas'!$R:$R,'VSAOI transakcijas'!$D:$D,"Iemaksa",'VSAOI transakcijas'!$H:$H,"Pamatsumma",'VSAOI transakcijas'!$S:$S,">="&DATE(YEAR(J2),MONTH(J2),1),'VSAOI transakcijas'!$S:$S,"<="&'Sakuma lapa'!$F$16,'VSAOI transakcijas'!$O:$O,YEAR(DATE(YEAR(J2),MONTH(J2)+1,0)),'VSAOI transakcijas'!$P:$P,RIGHT("0"&MONTH(DATE(YEAR(J2),MONTH(J2)+1,0)),2),'VSAOI transakcijas'!$Q:$Q,"Riska nodeva") -SUMIFS('VSAOI transakcijas'!$R:$R,'VSAOI transakcijas'!$D:$D,"Atmaksa",'VSAOI transakcijas'!$H:$H,"Pamatsumma",'VSAOI transakcijas'!$S:$S,">="&DATE(YEAR(J2),MONTH(J2),1),'VSAOI transakcijas'!$S:$S,"<="&'Sakuma lapa'!$F$16,'VSAOI transakcijas'!$O:$O,YEAR(DATE(YEAR(J2),MONTH(J2)+1,0)),'VSAOI transakcijas'!$P:$P,RIGHT("0"&MONTH(DATE(YEAR(J2),MONTH(J2)+1,0)),2),'VSAOI transakcijas'!$Q:$Q,"Riska nodeva") -SUMIFS('VSAOI transakcijas'!$R:$R,'VSAOI transakcijas'!$D:$D,"Aprēķins",'VSAOI transakcijas'!$H:$H,"Pamatsumma",'VSAOI transakcijas'!$S:$S,">="&DATE(YEAR(J2),MONTH(J2),1),'VSAOI transakcijas'!$S:$S,"<="&'Sakuma lapa'!$F$16,'VSAOI transakcijas'!$O:$O,YEAR(DATE(YEAR(J2),MONTH(J2)+1,0)),'VSAOI transakcijas'!$P:$P,RIGHT("0"&MONTH(DATE(YEAR(J2),MONTH(J2)+1,0)),2),'VSAOI transakcijas'!$Q:$Q,"Riska nodeva",'VSAOI transakcijas'!$K:$K,"FIFO*") -SUMIFS('VSAOI transakcijas'!$R:$R,'VSAOI transakcijas'!$D:$D,"Aprēķins",'VSAOI transakcijas'!$H:$H,"Pamatsumma",'VSAOI transakcijas'!$S:$S,">="&DATE(YEAR(J2),MONTH(J2),1),'VSAOI transakcijas'!$S:$S,"<="&'Sakuma lapa'!$F$16,'VSAOI transakcijas'!$O:$O,YEAR(DATE(YEAR(J2),MONTH(J2)+1,0)),'VSAOI transakcijas'!$P:$P,RIGHT("0"&MONTH(DATE(YEAR(J2),MONTH(J2)+1,0)),2),'VSAOI transakcijas'!$Q:$Q,"Riska nodeva",'VSAOI transakcijas'!$K:$K,"Iemaksas atbrīvošana") -SUMIFS('VSAOI transakcijas'!$R:$R,'VSAOI transakcijas'!$H:$H,"Nokavējuma nauda",'VSAOI transakcijas'!$S:$S,">="&DATE(YEAR(J2),MONTH(J2),1),'VSAOI transakcijas'!$S:$S,"<="&'Sakuma lapa'!$F$16,'VSAOI transakcijas'!$O:$O,YEAR(DATE(YEAR(J2),MONTH(J2)+1,0)),'VSAOI transakcijas'!$P:$P,RIGHT("0"&MONTH(DATE(YEAR(J2),MONTH(J2)+1,0)),2),'VSAOI transakcijas'!$Q:$Q,"Riska nodeva") -> 0 | K55: =-SUMIFS('VSAOI transakcijas'!$R:$R,'VSAOI transakcijas'!$D:$D,"Iemaksa",'VSAOI transakcijas'!$H:$H,"Pamatsumma",'VSAOI transakcijas'!$S:$S,">="&DATE(YEAR(K2),MONTH(K2),1),'VSAOI transakcijas'!$S:$S,"<="&'Sakuma lapa'!$F$16,'VSAOI transakcijas'!$O:$O,YEAR(DATE(YEAR(K2),MONTH(K2)+1,0)),'VSAOI transakcijas'!$P:$P,RIGHT("0"&MONTH(DATE(YEAR(K2),MONTH(K2)+1,0)),2),'VSAOI transakcijas'!$Q:$Q,"Riska nodeva") -SUMIFS('VSAOI transakcijas'!$R:$R,'VSAOI transakcijas'!$D:$D,"Atmaksa",'VSAOI transakcijas'!$H:$H,"Pamatsumma",'VSAOI transakcijas'!$S:$S,">="&DATE(YEAR(K2),MONTH(K2),1),'VSAOI transakcijas'!$S:$S,"<="&'Sakuma lapa'!$F$16,'VSAOI transakcijas'!$O:$O,YEAR(DATE(YEAR(K2),MONTH(K2)+1,0)),'VSAOI transakcijas'!$P:$P,RIGHT("0"&MONTH(DATE(YEAR(K2),MONTH(K2)+1,0)),2),'VSAOI transakcijas'!$Q:$Q,"Riska nodeva") -SUMIFS('VSAOI transakcijas'!$R:$R,'VSAOI transakcijas'!$D:$D,"Aprēķins",'VSAOI transakcijas'!$H:$H,"Pamatsumma",'VSAOI transakcijas'!$S:$S,">="&DATE(YEAR(K2),MONTH(K2),1),'VSAOI transakcijas'!$S:$S,"<="&'Sakuma lapa'!$F$16,'VSAOI transakcijas'!$O:$O,YEAR(DATE(YEAR(K2),MONTH(K2)+1,0)),'VSAOI transakcijas'!$P:$P,RIGHT("0"&MONTH(DATE(YEAR(K2),MONTH(K2)+1,0)),2),'VSAOI transakcijas'!$Q:$Q,"Riska nodeva",'VSAOI transakcijas'!$K:$K,"FIFO*") -SUMIFS('VSAOI transakcijas'!$R:$R,'VSAOI transakcijas'!$D:$D,"Aprēķins",'VSAOI transakcijas'!$H:$H,"Pamatsumma",'VSAOI transakcijas'!$S:$S,">="&DATE(YEAR(K2),MONTH(K2),1),'VSAOI transakcijas'!$S:$S,"<="&'Sakuma lapa'!$F$16,'VSAOI transakcijas'!$O:$O,YEAR(DATE(YEAR(K2),MONTH(K2)+1,0)),'VSAOI transakcijas'!$P:$P,RIGHT("0"&MONTH(DATE(YEAR(K2),MONTH(K2)+1,0)),2),'VSAOI transakcijas'!$Q:$Q,"Riska nodeva",'VSAOI transakcijas'!$K:$K,"Iemaksas atbrīvošana") -SUMIFS('VSAOI transakcijas'!$R:$R,'VSAOI transakcijas'!$H:$H,"Nokavējuma nauda",'VSAOI transakcijas'!$S:$S,">="&DATE(YEAR(K2),MONTH(K2),1),'VSAOI transakcijas'!$S:$S,"<="&'Sakuma lapa'!$F$16,'VSAOI transakcijas'!$O:$O,YEAR(DATE(YEAR(K2),MONTH(K2)+1,0)),'VSAOI transakcijas'!$P:$P,RIGHT("0"&MONTH(DATE(YEAR(K2),MONTH(K2)+1,0)),2),'VSAOI transakcijas'!$Q:$Q,"Riska nodeva") -> 0 | L55: =-SUMIFS('VSAOI transakcijas'!$R:$R,'VSAOI transakcijas'!$D:$D,"Iemaksa",'VSAOI transakcijas'!$H:$H,"Pamatsumma",'VSAOI transakcijas'!$S:$S,">="&DATE(YEAR(L2),MONTH(L2),1),'VSAOI transakcijas'!$S:$S,"<="&'Sakuma lapa'!$F$16,'VSAOI transakcijas'!$O:$O,YEAR(DATE(YEAR(L2),MONTH(L2)+1,0)),'VSAOI transakcijas'!$P:$P,RIGHT("0"&MONTH(DATE(YEAR(L2),MONTH(L2)+1,0)),2),'VSAOI transakcijas'!$Q:$Q,"Riska nodeva") -SUMIFS('VSAOI transakcijas'!$R:$R,'VSAOI transakcijas'!$D:$D,"Atmaksa",'VSAOI transakcijas'!$H:$H,"Pamatsumma",'VSAOI transakcijas'!$S:$S,">="&DATE(YEAR(L2),MONTH(L2),1),'VSAOI transakcijas'!$S:$S,"<="&'Sakuma lapa'!$F$16,'VSAOI transakcijas'!$O:$O,YEAR(DATE(YEAR(L2),MONTH(L2)+1,0)),'VSAOI transakcijas'!$P:$P,RIGHT("0"&MONTH(DATE(YEAR(L2),MONTH(L2)+1,0)),2),'VSAOI transakcijas'!$Q:$Q,"Riska nodeva") -SUMIFS('VSAOI transakcijas'!$R:$R,'VSAOI transakcijas'!$D:$D,"Aprēķins",'VSAOI transakcijas'!$H:$H,"Pamatsumma",'VSAOI transakcijas'!$S:$S,">="&DATE(YEAR(L2),MONTH(L2),1),'VSAOI transakcijas'!$S:$S,"<="&'Sakuma lapa'!$F$16,'VSAOI transakcijas'!$O:$O,YEAR(DATE(YEAR(L2),MONTH(L2)+1,0)),'VSAOI transakcijas'!$P:$P,RIGHT("0"&MONTH(DATE(YEAR(L2),MONTH(L2)+1,0)),2),'VSAOI transakcijas'!$Q:$Q,"Riska nodeva",'VSAOI transakcijas'!$K:$K,"FIFO*") -SUMIFS('VSAOI transakcijas'!$R:$R,'VSAOI transakcijas'!$D:$D,"Aprēķins",'VSAOI transakcijas'!$H:$H,"Pamatsumma",'VSAOI transakcijas'!$S:$S,">="&DATE(YEAR(L2),MONTH(L2),1),'VSAOI transakcijas'!$S:$S,"<="&'Sakuma lapa'!$F$16,'VSAOI transakcijas'!$O:$O,YEAR(DATE(YEAR(L2),MONTH(L2)+1,0)),'VSAOI transakcijas'!$P:$P,RIGHT("0"&MONTH(DATE(YEAR(L2),MONTH(L2)+1,0)),2),'VSAOI transakcijas'!$Q:$Q,"Riska nodeva",'VSAOI transakcijas'!$K:$K,"Iemaksas atbrīvošana") -SUMIFS('VSAOI transakcijas'!$R:$R,'VSAOI transakcijas'!$H:$H,"Nokavējuma nauda",'VSAOI transakcijas'!$S:$S,">="&DATE(YEAR(L2),MONTH(L2),1),'VSAOI transakcijas'!$S:$S,"<="&'Sakuma lapa'!$F$16,'VSAOI transakcijas'!$O:$O,YEAR(DATE(YEAR(L2),MONTH(L2)+1,0)),'VSAOI transakcijas'!$P:$P,RIGHT("0"&MONTH(DATE(YEAR(L2),MONTH(L2)+1,0)),2),'VSAOI transakcijas'!$Q:$Q,"Riska nodeva") -> 0 | M55: =-SUMIFS('VSAOI transakcijas'!$R:$R,'VSAOI transakcijas'!$D:$D,"Iemaksa",'VSAOI transakcijas'!$H:$H,"Pamatsumma",'VSAOI transakcijas'!$S:$S,">="&DATE(YEAR(M2),MONTH(M2),1),'VSAOI transakcijas'!$S:$S,"<="&'Sakuma lapa'!$F$16,'VSAOI transakcijas'!$O:$O,YEAR(DATE(YEAR(M2),MONTH(M2)+1,0)),'VSAOI transakcijas'!$P:$P,RIGHT("0"&MONTH(DATE(YEAR(M2),MONTH(M2)+1,0)),2),'VSAOI transakcijas'!$Q:$Q,"Riska nodeva") -SUMIFS('VSAOI transakcijas'!$R:$R,'VSAOI transakcijas'!$D:$D,"Atmaksa",'VSAOI transakcijas'!$H:$H,"Pamatsumma",'VSAOI transakcijas'!$S:$S,">="&DATE(YEAR(M2),MONTH(M2),1),'VSAOI transakcijas'!$S:$S,"<="&'Sakuma lapa'!$F$16,'VSAOI transakcijas'!$O:$O,YEAR(DATE(YEAR(M2),MONTH(M2)+1,0)),'VSAOI transakcijas'!$P:$P,RIGHT("0"&MONTH(DATE(YEAR(M2),MONTH(M2)+1,0)),2),'VSAOI transakcijas'!$Q:$Q,"Riska nodeva") -SUMIFS('VSAOI transakcijas'!$R:$R,'VSAOI transakcijas'!$D:$D,"Aprēķins",'VSAOI transakcijas'!$H:$H,"Pamatsumma",'VSAOI transakcijas'!$S:$S,">="&DATE(YEAR(M2),MONTH(M2),1),'VSAOI transakcijas'!$S:$S,"<="&'Sakuma lapa'!$F$16,'VSAOI transakcijas'!$O:$O,YEAR(DATE(YEAR(M2),MONTH(M2)+1,0)),'VSAOI transakcijas'!$P:$P,RIGHT("0"&MONTH(DATE(YEAR(M2),MONTH(M2)+1,0)),2),'VSAOI transakcijas'!$Q:$Q,"Riska nodeva",'VSAOI transakcijas'!$K:$K,"FIFO*") -SUMIFS('VSAOI transakcijas'!$R:$R,'VSAOI transakcijas'!$D:$D,"Aprēķins",'VSAOI transakcijas'!$H:$H,"Pamatsumma",'VSAOI transakcijas'!$S:$S,">="&DATE(YEAR(M2),MONTH(M2),1),'VSAOI transakcijas'!$S:$S,"<="&'Sakuma lapa'!$F$16,'VSAOI transakcijas'!$O:$O,YEAR(DATE(YEAR(M2),MONTH(M2)+1,0)),'VSAOI transakcijas'!$P:$P,RIGHT("0"&MONTH(DATE(YEAR(M2),MONTH(M2)+1,0)),2),'VSAOI transakcijas'!$Q:$Q,"Riska nodeva",'VSAOI transakcijas'!$K:$K,"Iemaksas atbrīvošana") -SUMIFS('VSAOI transakcijas'!$R:$R,'VSAOI transakcijas'!$H:$H,"Nokavējuma nauda",'VSAOI transakcijas'!$S:$S,">="&DATE(YEAR(M2),MONTH(M2),1),'VSAOI transakcijas'!$S:$S,"<="&'Sakuma lapa'!$F$16,'VSAOI transakcijas'!$O:$O,YEAR(DATE(YEAR(M2),MONTH(M2)+1,0)),'VSAOI transakcijas'!$P:$P,RIGHT("0"&MONTH(DATE(YEAR(M2),MONTH(M2)+1,0)),2),'VSAOI transakcijas'!$Q:$Q,"Riska nodeva") -> 0 | N55: =-SUMIFS('VSAOI transakcijas'!$R:$R,'VSAOI transakcijas'!$D:$D,"Iemaksa",'VSAOI transakcijas'!$H:$H,"Pamatsumma",'VSAOI transakcijas'!$S:$S,">="&DATE(YEAR(N2),MONTH(N2),1),'VSAOI transakcijas'!$S:$S,"<="&'Sakuma lapa'!$F$16,'VSAOI transakcijas'!$O:$O,YEAR(DATE(YEAR(N2),MONTH(N2)+1,0)),'VSAOI transakcijas'!$P:$P,RIGHT("0"&MONTH(DATE(YEAR(N2),MONTH(N2)+1,0)),2),'VSAOI transakcijas'!$Q:$Q,"Riska nodeva") -SUMIFS('VSAOI transakcijas'!$R:$R,'VSAOI transakcijas'!$D:$D,"Atmaksa",'VSAOI transakcijas'!$H:$H,"Pamatsumma",'VSAOI transakcijas'!$S:$S,">="&DATE(YEAR(N2),MONTH(N2),1),'VSAOI transakcijas'!$S:$S,"<="&'Sakuma lapa'!$F$16,'VSAOI transakcijas'!$O:$O,YEAR(DATE(YEAR(N2),MONTH(N2)+1,0)),'VSAOI transakcijas'!$P:$P,RIGHT("0"&MONTH(DATE(YEAR(N2),MONTH(N2)+1,0)),2),'VSAOI transakcijas'!$Q:$Q,"Riska nodeva") -SUMIFS('VSAOI transakcijas'!$R:$R,'VSAOI transakcijas'!$D:$D,"Aprēķins",'VSAOI transakcijas'!$H:$H,"Pamatsumma",'VSAOI transakcijas'!$S:$S,">="&DATE(YEAR(N2),MONTH(N2),1),'VSAOI transakcijas'!$S:$S,"<="&'Sakuma lapa'!$F$16,'VSAOI transakcijas'!$O:$O,YEAR(DATE(YEAR(N2),MONTH(N2)+1,0)),'VSAOI transakcijas'!$P:$P,RIGHT("0"&MONTH(DATE(YEAR(N2),MONTH(N2)+1,0)),2),'VSAOI transakcijas'!$Q:$Q,"Riska nodeva",'VSAOI transakcijas'!$K:$K,"FIFO*") -SUMIFS('VSAOI transakcijas'!$R:$R,'VSAOI transakcijas'!$D:$D,"Aprēķins",'VSAOI transakcijas'!$H:$H,"Pamatsumma",'VSAOI transakcijas'!$S:$S,">="&DATE(YEAR(N2),MONTH(N2),1),'VSAOI transakcijas'!$S:$S,"<="&'Sakuma lapa'!$F$16,'VSAOI transakcijas'!$O:$O,YEAR(DATE(YEAR(N2),MONTH(N2)+1,0)),'VSAOI transakcijas'!$P:$P,RIGHT("0"&MONTH(DATE(YEAR(N2),MONTH(N2)+1,0)),2),'VSAOI transakcijas'!$Q:$Q,"Riska nodeva",'VSAOI transakcijas'!$K:$K,"Iemaksas atbrīvošana") -SUMIFS('VSAOI transakcijas'!$R:$R,'VSAOI transakcijas'!$H:$H,"Nokavējuma nauda",'VSAOI transakcijas'!$S:$S,">="&DATE(YEAR(N2),MONTH(N2),1),'VSAOI transakcijas'!$S:$S,"<="&'Sakuma lapa'!$F$16,'VSAOI transakcijas'!$O:$O,YEAR(DATE(YEAR(N2),MONTH(N2)+1,0)),'VSAOI transakcijas'!$P:$P,RIGHT("0"&MONTH(DATE(YEAR(N2),MONTH(N2)+1,0)),2),'VSAOI transakcijas'!$Q:$Q,"Riska nodeva") -> 0 | O55: =SUM(C55:N55) -> 0
B56: VG beigu atlikums
B57: VG beigu atlikuma starpība | C57: =IF(C56="","-",C56-D52) -> - | D57: - | E57: - | F57: - | G57: - | H57: - | I57: - | J57: - | K57: - | L57: - | M57: - | N57: -
B58: Starpība starp deklarācijām un TransParsk | C58: =C15-C53 -> 0 | D58: 0 | E58: 0 | F58: 0 | G58: 0 | H58: 0 | I58: 0 | J58: 0 | K58: 0 | L58: 0 | M58: 0 | N58: 0 | O58: =SUM(C58:N58) -> 0

Sheet VSAOI horizontāli
B1: ='Sakuma lapa'!O30 -> 0
B2: Mēnesis | C2: Bruto alga | D2: Revidenta aprēķinātās DD VSAOI | E2: Revidenta aprēķinātās DŅ VSAOI | F2: starpības | G2: KOPĀ VSAOI no VID EDS | H2: Darbinieku skaits | I2: ar nodokļu grāmatiņu | J2: bez nodokļu grāmatiņas | K2: Apgādājamo skaits | L2: ="Ieturētais IIN par "&'Sakuma lapa'!$J$8 -> Ieturētais IIN par pārskata mēnesi | M2: Revidenta pārrēķinātais IIN par tekošo mēnesi | N2: starpības | O2: Riska nodeva | P2: Nostrādātās stundas | Q2: Atlaistie | R2: Vidējā mēneša alga | S2: Vidējā stundas likme
B3: ='Sakuma lapa'!E16 -> 00:00:00 | C3: =SUMIF('VSAOI data'!$Y:$Y,YEAR($B3)&MONTH($B3),'VSAOI data'!$J:$J)+SUMIF('VSAOI data'!$Y:$Y,YEAR($B3)&MONTH($B3),'VSAOI data'!$L:$L) -> 0 | D3: =SUMIF('VSAOI data'!$Z:$Z,YEAR($B3)&MONTH($B3)&"D*",'VSAOI data'!$AP:$AP)+SUMIF('VSAOI data'!$Z:$Z,YEAR($B3)&MONTH($B3)&"C*",'VSAOI data'!$AP:$AP)+SUMIF('VSAOI data'!$Z:$Z,YEAR($B3)&MONTH($B3)&"A*",'VSAOI data'!$AP:$AP) -> 0 | E3: =SUMIF('VSAOI data'!$Z:$Z,YEAR($B3)&MONTH($B3)&"D*",'VSAOI data'!$AO:$AO)+SUMIF('VSAOI data'!$Z:$Z,YEAR($B3)&MONTH($B3)&"C*",'VSAOI data'!$AO:$AO)+SUMIF('VSAOI data'!$Z:$Z,YEAR($B3)&MONTH($B3)&"A*",'VSAOI data'!$AO:$AO) -> 0 | F3: =G3-SUM(D3:E3) -> 0 | G3: =SUMIF('VSAOI data'!$Y:$Y,YEAR($B3)&MONTH($B3),'VSAOI data'!$K:$K)+SUMIF('VSAOI data'!$Y:$Y,YEAR($B3)&MONTH($B3),'VSAOI data'!$M:$M) -> 0 | H3: =SUM(I3:J3) -> 0 | I3: =COUNTIF('VSAOI data'!$AA:$AA,YEAR($B3)&MONTH($B3)&"Tab*Ir")-COUNTIF('VSAOI data'!$AA:$AA,YEAR($B3)&MONTH($B3)&"Tab4*Ir") -> 0 | J3: =COUNTIF('VSAOI data'!$AA:$AA,YEAR($B3)&MONTH($B3)&"Tab*Nav")-COUNTIF('VSAOI data'!$AA:$AA,YEAR($B3)&MONTH($B3)&"Tab4*Nav") -> 0 | K3: =SUMIF('VSAOI data'!$Z:$Z,YEAR($B3)&MONTH($B3)&"D*",'VSAOI data'!$AI:$AI)+SUMIF('VSAOI data'!$Z:$Z,YEAR($B3)&MONTH($B3)&"C*",'VSAOI data'!$AI:$AI)+SUMIF('VSAOI data'!$Z:$Z,YEAR($B3)&MONTH($B3)&"A*",'VSAOI data'!$AI:$AI) -> 0 | L3: =SUMIF('VSAOI data'!$Y:$Y,YEAR($B3)&MONTH($B3),'VSAOI data'!$N:$N) -> 0 | M3: =SUMIF('VSAOI data'!$Z:$Z,YEAR($B3)&MONTH($B3)&"D*",'VSAOI data'!$AM:$AM)+SUMIF('VSAOI data'!$Z:$Z,YEAR($B3)&MONTH($B3)&"C*",'VSAOI data'!$AM:$AM)+SUMIF('VSAOI data'!$Z:$Z,YEAR($B3)&MONTH($B3)&"A*",'VSAOI data'!$AM:$AM) -> 0 | N3: =IF('Sakuma lapa'!$J$8="iepriekšējo mēnesi",IF(C4>0,M3-L4,0),IF(C3>0,M3-L3,0)) -> 0 | O3: =SUMIF('VSAOI data'!$Y:$Y,YEAR($B3)&MONTH($B3),'VSAOI data'!$P:$P) -> 0 | P3: =SUMIF('VSAOI data'!$Y:$Y,YEAR($B3)&MONTH($B3),'VSAOI data'!$Q:$Q) -> 0 | Q3: =COUNTIF('VSAOI data'!$AA:$AA,YEAR($B3)&MONTH($B3)&"Tab4G*") -> 0 | R3: =IFERROR((SUMIF('VSAOI data'!$AB:$AB,YEAR($B3)&MONTH($B3),'VSAOI data'!$J:$J)+SUMIF('VSAOI data'!$AB:$AB,YEAR($B3)&MONTH($B3),'VSAOI data'!$L:$L))/COUNTIF('VSAOI data'!$AB:$AB,YEAR($B3)&MONTH($B3)),"-") -> - | S3: =IFERROR((SUMIF('VSAOI data'!$AB:$AB,YEAR($B3)&MONTH($B3),'VSAOI data'!$J:$J)+SUMIF('VSAOI data'!$AB:$AB,YEAR($B3)&MONTH($B3),'VSAOI data'!$L:$L))/SUMIF('VSAOI data'!$AB:$AB,YEAR($B3)&MONTH($B3),'VSAOI data'!$Q:$Q),"-") -> -
B4: =DATE(YEAR(B3),MONTH(B3)+2,0) -> 60 | C4: =SUMIF('VSAOI data'!$Y:$Y,YEAR($B4)&MONTH($B4),'VSAOI data'!$J:$J)+SUMIF('VSAOI data'!$Y:$Y,YEAR($B4)&MONTH($B4),'VSAOI data'!$L:$L) -> 0 | D4: =SUMIF('VSAOI data'!$Z:$Z,YEAR($B4)&MONTH($B4)&"D*",'VSAOI data'!$AP:$AP)+SUMIF('VSAOI data'!$Z:$Z,YEAR($B4)&MONTH($B4)&"C*",'VSAOI data'!$AP:$AP)+SUMIF('VSAOI data'!$Z:$Z,YEAR($B4)&MONTH($B4)&"A*",'VSAOI data'!$AP:$AP) -> 0 | E4: =SUMIF('VSAOI data'!$Z:$Z,YEAR($B4)&MONTH($B4)&"D*",'VSAOI data'!$AO:$AO)+SUMIF('VSAOI data'!$Z:$Z,YEAR($B4)&MONTH($B4)&"C*",'VSAOI data'!$AO:$AO)+SUMIF('VSAOI data'!$Z:$Z,YEAR($B4)&MONTH($B4)&"A*",'VSAOI data'!$AO:$AO) -> 0 | F4: =G4-SUM(D4:E4) -> 0 | G4: =SUMIF('VSAOI data'!$Y:$Y,YEAR($B4)&MONTH($B4),'VSAOI data'!$K:$K)+SUMIF('VSAOI data'!$Y:$Y,YEAR($B4)&MONTH($B4),'VSAOI data'!$M:$M) -> 0 | H4: =SUM(I4:J4) -> 0 | I4: =COUNTIF('VSAOI data'!$AA:$AA,YEAR($B4)&MONTH($B4)&"Tab*Ir")-COUNTIF('VSAOI data'!$AA:$AA,YEAR($B4)&MONTH($B4)&"Tab4*Ir") -> 0 | J4: =COUNTIF('VSAOI data'!$AA:$AA,YEAR($B4)&MONTH($B4)&"Tab*Nav")-COUNTIF('VSAOI data'!$AA:$AA,YEAR($B4)&MONTH($B4)&"Tab4*Nav") -> 0 | K4: =SUMIF('VSAOI data'!$Z:$Z,YEAR($B4)&MONTH($B4)&"D*",'VSAOI data'!$AI:$AI)+SUMIF('VSAOI data'!$Z:$Z,YEAR($B4)&MONTH($B4)&"C*",'VSAOI data'!$AI:$AI)+SUMIF('VSAOI data'!$Z:$Z,YEAR($B4)&MONTH($B4)&"A*",'VSAOI data'!$AI:$AI) -> 0 | L4: =SUMIF('VSAOI data'!$Y:$Y,YEAR($B4)&MONTH($B4),'VSAOI data'!$N:$N) -> 0 | M4: =SUMIF('VSAOI data'!$Z:$Z,YEAR($B4)&MONTH($B4)&"D*",'VSAOI data'!$AM:$AM)+SUMIF('VSAOI data'!$Z:$Z,YEAR($B4)&MONTH($B4)&"C*",'VSAOI data'!$AM:$AM)+SUMIF('VSAOI data'!$Z:$Z,YEAR($B4)&MONTH($B4)&"A*",'VSAOI data'!$AM:$AM) -> 0 | N4: =IF('Sakuma lapa'!$J$8="iepriekšējo mēnesi",IF(C5>0,M4-L5,0),IF(C4>0,M4-L4,0)) -> 0 | O4: =SUMIF('VSAOI data'!$Y:$Y,YEAR($B4)&MONTH($B4),'VSAOI data'!$P:$P) -> 0 | P4: =SUMIF('VSAOI data'!$Y:$Y,YEAR($B4)&MONTH($B4),'VSAOI data'!$Q:$Q) -> 0 | Q4: =COUNTIF('VSAOI data'!$AA:$AA,YEAR($B4)&MONTH($B4)&"Tab4G*") -> 0 | R4: =IFERROR((SUMIF('VSAOI data'!$AB:$AB,YEAR($B4)&MONTH($B4),'VSAOI data'!$J:$J)+SUMIF('VSAOI data'!$AB:$AB,YEAR($B4)&MONTH($B4),'VSAOI data'!$L:$L))/COUNTIF('VSAOI data'!$AB:$AB,YEAR($B4)&MONTH($B4)),"-") -> - | S4: =IFERROR((SUMIF('VSAOI data'!$AB:$AB,YEAR($B4)&MONTH($B4),'VSAOI data'!$J:$J)+SUMIF('VSAOI data'!$AB:$AB,YEAR($B4)&MONTH($B4),'VSAOI data'!$L:$L))/SUMIF('VSAOI data'!$AB:$AB,YEAR($B4)&MONTH($B4),'VSAOI data'!$Q:$Q),"-") -> -
B5: =DATE(YEAR(B4),MONTH(B4)+2,0) -> 1900-03-31 | C5: =SUMIF('VSAOI data'!$Y:$Y,YEAR($B5)&MONTH($B5),'VSAOI data'!$J:$J)+SUMIF('VSAOI data'!$Y:$Y,YEAR($B5)&MONTH($B5),'VSAOI data'!$L:$L) -> 0 | D5: =SUMIF('VSAOI data'!$Z:$Z,YEAR($B5)&MONTH($B5)&"D*",'VSAOI data'!$AP:$AP)+SUMIF('VSAOI data'!$Z:$Z,YEAR($B5)&MONTH($B5)&"C*",'VSAOI data'!$AP:$AP)+SUMIF('VSAOI data'!$Z:$Z,YEAR($B5)&MONTH($B5)&"A*",'VSAOI data'!$AP:$AP) -> 0 | E5: =SUMIF('VSAOI data'!$Z:$Z,YEAR($B5)&MONTH($B5)&"D*",'VSAOI data'!$AO:$AO)+SUMIF('VSAOI data'!$Z:$Z,YEAR($B5)&MONTH($B5)&"C*",'VSAOI data'!$AO:$AO)+SUMIF('VSAOI data'!$Z:$Z,YEAR($B5)&MONTH($B5)&"A*",'VSAOI data'!$AO:$AO) -> 0 | F5: 0 | G5: =SUMIF('VSAOI data'!$Y:$Y,YEAR($B5)&MONTH($B5),'VSAOI data'!$K:$K)+SUMIF('VSAOI data'!$Y:$Y,YEAR($B5)&MONTH($B5),'VSAOI data'!$M:$M) -> 0 | H5: 0 | I5: =COUNTIF('VSAOI data'!$AA:$AA,YEAR($B5)&MONTH($B5)&"Tab*Ir")-COUNTIF('VSAOI data'!$AA:$AA,YEAR($B5)&MONTH($B5)&"Tab4*Ir") -> 0 | J5: =COUNTIF('VSAOI data'!$AA:$AA,YEAR($B5)&MONTH($B5)&"Tab*Nav")-COUNTIF('VSAOI data'!$AA:$AA,YEAR($B5)&MONTH($B5)&"Tab4*Nav") -> 0 | K5: =SUMIF('VSAOI data'!$Z:$Z,YEAR($B5)&MONTH($B5)&"D*",'VSAOI data'!$AI:$AI)+SUMIF('VSAOI data'!$Z:$Z,YEAR($B5)&MONTH($B5)&"C*",'VSAOI data'!$AI:$AI)+SUMIF('VSAOI data'!$Z:$Z,YEAR($B5)&MONTH($B5)&"A*",'VSAOI data'!$AI:$AI) -> 0 | L5: =SUMIF('VSAOI data'!$Y:$Y,YEAR($B5)&MONTH($B5),'VSAOI data'!$N:$N) -> 0 | M5: =SUMIF('VSAOI data'!$Z:$Z,YEAR($B5)&MONTH($B5)&"D*",'VSAOI data'!$AM:$AM)+SUMIF('VSAOI data'!$Z:$Z,YEAR($B5)&MONTH($B5)&"C*",'VSAOI data'!$AM:$AM)+SUMIF('VSAOI data'!$Z:$Z,YEAR($B5)&MONTH($B5)&"A*",'VSAOI data'!$AM:$AM) -> 0 | N5: =IF('Sakuma lapa'!$J$8="iepriekšējo mēnesi",IF(C6>0,M5-L6,0),IF(C5>0,M5-L5,0)) -> 0 | O5: =SUMIF('VSAOI data'!$Y:$Y,YEAR($B5)&MONTH($B5),'VSAOI data'!$P:$P) -> 0 | P5: =SUMIF('VSAOI data'!$Y:$Y,YEAR($B5)&MONTH($B5),'VSAOI data'!$Q:$Q) -> 0 | Q5: =COUNTIF('VSAOI data'!$AA:$AA,YEAR($B5)&MONTH($B5)&"Tab4G*") -> 0 | R5: =IFERROR((SUMIF('VSAOI data'!$AB:$AB,YEAR($B5)&MONTH($B5),'VSAOI data'!$J:$J)+SUMIF('VSAOI data'!$AB:$AB,YEAR($B5)&MONTH($B5),'VSAOI data'!$L:$L))/COUNTIF('VSAOI data'!$AB:$AB,YEAR($B5)&MONTH($B5)),"-") -> - | S5: =IFERROR((SUMIF('VSAOI data'!$AB:$AB,YEAR($B5)&MONTH($B5),'VSAOI data'!$J:$J)+SUMIF('VSAOI data'!$AB:$AB,YEAR($B5)&MONTH($B5),'VSAOI data'!$L:$L))/SUMIF('VSAOI data'!$AB:$AB,YEAR($B5)&MONTH($B5),'VSAOI data'!$Q:$Q),"-") -> -
B6: 1900-04-30 | C6: =SUMIF('VSAOI data'!$Y:$Y,YEAR($B6)&MONTH($B6),'VSAOI data'!$J:$J)+SUMIF('VSAOI data'!$Y:$Y,YEAR($B6)&MONTH($B6),'VSAOI data'!$L:$L) -> 0 | D6: =SUMIF('VSAOI data'!$Z:$Z,YEAR($B6)&MONTH($B6)&"D*",'VSAOI data'!$AP:$AP)+SUMIF('VSAOI data'!$Z:$Z,YEAR($B6)&MONTH($B6)&"C*",'VSAOI data'!$AP:$AP)+SUMIF('VSAOI data'!$Z:$Z,YEAR($B6)&MONTH($B6)&"A*",'VSAOI data'!$AP:$AP) -> 0 | E6: =SUMIF('VSAOI data'!$Z:$Z,YEAR($B6)&MONTH($B6)&"D*",'VSAOI data'!$AO:$AO)+SUMIF('VSAOI data'!$Z:$Z,YEAR($B6)&MONTH($B6)&"C*",'VSAOI data'!$AO:$AO)+SUMIF('VSAOI data'!$Z:$Z,YEAR($B6)&MONTH($B6)&"A*",'VSAOI data'!$AO:$AO) -> 0 | F6: 0 | G6: =SUMIF('VSAOI data'!$Y:$Y,YEAR($B6)&MONTH($B6),'VSAOI data'!$K:$K)+SUMIF('VSAOI data'!$Y:$Y,YEAR($B6)&MONTH($B6),'VSAOI data'!$M:$M) -> 0 | H6: 0 | I6: =COUNTIF('VSAOI data'!$AA:$AA,YEAR($B6)&MONTH($B6)&"Tab*Ir")-COUNTIF('VSAOI data'!$AA:$AA,YEAR($B6)&MONTH($B6)&"Tab4*Ir") -> 0 | J6: =COUNTIF('VSAOI data'!$AA:$AA,YEAR($B6)&MONTH($B6)&"Tab*Nav")-COUNTIF('VSAOI data'!$AA:$AA,YEAR($B6)&MONTH($B6)&"Tab4*Nav") -> 0 | K6: =SUMIF('VSAOI data'!$Z:$Z,YEAR($B6)&MONTH($B6)&"D*",'VSAOI data'!$AI:$AI)+SUMIF('VSAOI data'!$Z:$Z,YEAR($B6)&MONTH($B6)&"C*",'VSAOI data'!$AI:$AI)+SUMIF('VSAOI data'!$Z:$Z,YEAR($B6)&MONTH($B6)&"A*",'VSAOI data'!$AI:$AI) -> 0 | L6: =SUMIF('VSAOI data'!$Y:$Y,YEAR($B6)&MONTH($B6),'VSAOI data'!$N:$N) -> 0 | M6: =SUMIF('VSAOI data'!$Z:$Z,YEAR($B6)&MONTH($B6)&"D*",'VSAOI data'!$AM:$AM)+SUMIF('VSAOI data'!$Z:$Z,YEAR($B6)&MONTH($B6)&"C*",'VSAOI data'!$AM:$AM)+SUMIF('VSAOI data'!$Z:$Z,YEAR($B6)&MONTH($B6)&"A*",'VSAOI data'!$AM:$AM) -> 0 | N6: =IF('Sakuma lapa'!$J$8="iepriekšējo mēnesi",IF(C7>0,M6-L7,0),IF(C6>0,M6-L6,0)) -> 0 | O6: =SUMIF('VSAOI data'!$Y:$Y,YEAR($B6)&MONTH($B6),'VSAOI data'!$P:$P) -> 0 | P6: =SUMIF('VSAOI data'!$Y:$Y,YEAR($B6)&MONTH($B6),'VSAOI data'!$Q:$Q) -> 0 | Q6: =COUNTIF('VSAOI data'!$AA:$AA,YEAR($B6)&MONTH($B6)&"Tab4G*") -> 0 | R6: =IFERROR((SUMIF('VSAOI data'!$AB:$AB,YEAR($B6)&MONTH($B6),'VSAOI data'!$J:$J)+SUMIF('VSAOI data'!$AB:$AB,YEAR($B6)&MONTH($B6),'VSAOI data'!$L:$L))/COUNTIF('VSAOI data'!$AB:$AB,YEAR($B6)&MONTH($B6)),"-") -> - | S6: =IFERROR((SUMIF('VSAOI data'!$AB:$AB,YEAR($B6)&MONTH($B6),'VSAOI data'!$J:$J)+SUMIF('VSAOI data'!$AB:$AB,YEAR($B6)&MONTH($B6),'VSAOI data'!$L:$L))/SUMIF('VSAOI data'!$AB:$AB,YEAR($B6)&MONTH($B6),'VSAOI data'!$Q:$Q),"-") -> -
B7: 1900-05-31 | C7: =SUMIF('VSAOI data'!$Y:$Y,YEAR($B7)&MONTH($B7),'VSAOI data'!$J:$J)+SUMIF('VSAOI data'!$Y:$Y,YEAR($B7)&MONTH($B7),'VSAOI data'!$L:$L) -> 0 | D7: =SUMIF('VSAOI data'!$Z:$Z,YEAR($B7)&MONTH($B7)&"D*",'VSAOI data'!$AP:$AP)+SUMIF('VSAOI data'!$Z:$Z,YEAR($B7)&MONTH($B7)&"C*",'VSAOI data'!$AP:$AP)+SUMIF('VSAOI data'!$Z:$Z,YEAR($B7)&MONTH($B7)&"A*",'VSAOI data'!$AP:$AP) -> 0 | E7: =SUMIF('VSAOI data'!$Z:$Z,YEAR($B7)&MONTH($B7)&"D*",'VSAOI data'!$AO:$AO)+SUMIF('VSAOI data'!$Z:$Z,YEAR($B7)&MONTH($B7)&"C*",'VSAOI data'!$AO:$AO)+SUMIF('VSAOI data'!$Z:$Z,YEAR($B7)&MONTH($B7)&"A*",'VSAOI data'!$AO:$AO) -> 0 | F7: 0 | G7: =SUMIF('VSAOI data'!$Y:$Y,YEAR($B7)&MONTH($B7),'VSAOI data'!$K:$K)+SUMIF('VSAOI data'!$Y:$Y,YEAR($B7)&MONTH($B7),'VSAOI data'!$M:$M) -> 0 | H7: 0 | I7: =COUNTIF('VSAOI data'!$AA:$AA,YEAR($B7)&MONTH($B7)&"Tab*Ir")-COUNTIF('VSAOI data'!$AA:$AA,YEAR($B7)&MONTH($B7)&"Tab4*Ir") -> 0 | J7: =COUNTIF('VSAOI data'!$AA:$AA,YEAR($B7)&MONTH($B7)&"Tab*Nav")-COUNTIF('VSAOI data'!$AA:$AA,YEAR($B7)&MONTH($B7)&"Tab4*Nav") -> 0 | K7: =SUMIF('VSAOI data'!$Z:$Z,YEAR($B7)&MONTH($B7)&"D*",'VSAOI data'!$AI:$AI)+SUMIF('VSAOI data'!$Z:$Z,YEAR($B7)&MONTH($B7)&"C*",'VSAOI data'!$AI:$AI)+SUMIF('VSAOI data'!$Z:$Z,YEAR($B7)&MONTH($B7)&"A*",'VSAOI data'!$AI:$AI) -> 0 | L7: =SUMIF('VSAOI data'!$Y:$Y,YEAR($B7)&MONTH($B7),'VSAOI data'!$N:$N) -> 0 | M7: =SUMIF('VSAOI data'!$Z:$Z,YEAR($B7)&MONTH($B7)&"D*",'VSAOI data'!$AM:$AM)+SUMIF('VSAOI data'!$Z:$Z,YEAR($B7)&MONTH($B7)&"C*",'VSAOI data'!$AM:$AM)+SUMIF('VSAOI data'!$Z:$Z,YEAR($B7)&MONTH($B7)&"A*",'VSAOI data'!$AM:$AM) -> 0 | N7: =IF('Sakuma lapa'!$J$8="iepriekšējo mēnesi",IF(C8>0,M7-L8,0),IF(C7>0,M7-L7,0)) -> 0 | O7: =SUMIF('VSAOI data'!$Y:$Y,YEAR($B7)&MONTH($B7),'VSAOI data'!$P:$P) -> 0 | P7: =SUMIF('VSAOI data'!$Y:$Y,YEAR($B7)&MONTH($B7),'VSAOI data'!$Q:$Q) -> 0 | Q7: =COUNTIF('VSAOI data'!$AA:$AA,YEAR($B7)&MONTH($B7)&"Tab4G*") -> 0 | R7: =IFERROR((SUMIF('VSAOI data'!$AB:$AB,YEAR($B7)&MONTH($B7),'VSAOI data'!$J:$J)+SUMIF('VSAOI data'!$AB:$AB,YEAR($B7)&MONTH($B7),'VSAOI data'!$L:$L))/COUNTIF('VSAOI data'!$AB:$AB,YEAR($B7)&MONTH($B7)),"-") -> - | S7: =IFERROR((SUMIF('VSAOI data'!$AB:$AB,YEAR($B7)&MONTH($B7),'VSAOI data'!$J:$J)+SUMIF('VSAOI data'!$AB:$AB,YEAR($B7)&MONTH($B7),'VSAOI data'!$L:$L))/SUMIF('VSAOI data'!$AB:$AB,YEAR($B7)&MONTH($B7),'VSAOI data'!$Q:$Q),"-") -> -
B8: 1900-06-30 | C8: =SUMIF('VSAOI data'!$Y:$Y,YEAR($B8)&MONTH($B8),'VSAOI data'!$J:$J)+SUMIF('VSAOI data'!$Y:$Y,YEAR($B8)&MONTH($B8),'VSAOI data'!$L:$L) -> 0 | D8: =SUMIF('VSAOI data'!$Z:$Z,YEAR($B8)&MONTH($B8)&"D*",'VSAOI data'!$AP:$AP)+SUMIF('VSAOI data'!$Z:$Z,YEAR($B8)&MONTH($B8)&"C*",'VSAOI data'!$AP:$AP)+SUMIF('VSAOI data'!$Z:$Z,YEAR($B8)&MONTH($B8)&"A*",'VSAOI data'!$AP:$AP) -> 0 | E8: =SUMIF('VSAOI data'!$Z:$Z,YEAR($B8)&MONTH($B8)&"D*",'VSAOI data'!$AO:$AO)+SUMIF('VSAOI data'!$Z:$Z,YEAR($B8)&MONTH($B8)&"C*",'VSAOI data'!$AO:$AO)+SUMIF('VSAOI data'!$Z:$Z,YEAR($B8)&MONTH($B8)&"A*",'VSAOI data'!$AO:$AO) -> 0 | F8: 0 | G8: =SUMIF('VSAOI data'!$Y:$Y,YEAR($B8)&MONTH($B8),'VSAOI data'!$K:$K)+SUMIF('VSAOI data'!$Y:$Y,YEAR($B8)&MONTH($B8),'VSAOI data'!$M:$M) -> 0 | H8: 0 | I8: =COUNTIF('VSAOI data'!$AA:$AA,YEAR($B8)&MONTH($B8)&"Tab*Ir")-COUNTIF('VSAOI data'!$AA:$AA,YEAR($B8)&MONTH($B8)&"Tab4*Ir") -> 0 | J8: =COUNTIF('VSAOI data'!$AA:$AA,YEAR($B8)&MONTH($B8)&"Tab*Nav")-COUNTIF('VSAOI data'!$AA:$AA,YEAR($B8)&MONTH($B8)&"Tab4*Nav") -> 0 | K8: =SUMIF('VSAOI data'!$Z:$Z,YEAR($B8)&MONTH($B8)&"D*",'VSAOI data'!$AI:$AI)+SUMIF('VSAOI data'!$Z:$Z,YEAR($B8)&MONTH($B8)&"C*",'VSAOI data'!$AI:$AI)+SUMIF('VSAOI data'!$Z:$Z,YEAR($B8)&MONTH($B8)&"A*",'VSAOI data'!$AI:$AI) -> 0 | L8: =SUMIF('VSAOI data'!$Y:$Y,YEAR($B8)&MONTH($B8),'VSAOI data'!$N:$N) -> 0 | M8: =SUMIF('VSAOI data'!$Z:$Z,YEAR($B8)&MONTH($B8)&"D*",'VSAOI data'!$AM:$AM)+SUMIF('VSAOI data'!$Z:$Z,YEAR($B8)&MONTH($B8)&"C*",'VSAOI data'!$AM:$AM)+SUMIF('VSAOI data'!$Z:$Z,YEAR($B8)&MONTH($B8)&"A*",'VSAOI data'!$AM:$AM) -> 0 | N8: =IF('Sakuma lapa'!$J$8="iepriekšējo mēnesi",IF(C9>0,M8-L9,0),IF(C8>0,M8-L8,0)) -> 0 | O8: =SUMIF('VSAOI data'!$Y:$Y,YEAR($B8)&MONTH($B8),'VSAOI data'!$P:$P) -> 0 | P8: =SUMIF('VSAOI data'!$Y:$Y,YEAR($B8)&MONTH($B8),'VSAOI data'!$Q:$Q) -> 0 | Q8: =COUNTIF('VSAOI data'!$AA:$AA,YEAR($B8)&MONTH($B8)&"Tab4G*") -> 0 | R8: =IFERROR((SUMIF('VSAOI data'!$AB:$AB,YEAR($B8)&MONTH($B8),'VSAOI data'!$J:$J)+SUMIF('VSAOI data'!$AB:$AB,YEAR($B8)&MONTH($B8),'VSAOI data'!$L:$L))/COUNTIF('VSAOI data'!$AB:$AB,YEAR($B8)&MONTH($B8)),"-") -> - | S8: =IFERROR((SUMIF('VSAOI data'!$AB:$AB,YEAR($B8)&MONTH($B8),'VSAOI data'!$J:$J)+SUMIF('VSAOI data'!$AB:$AB,YEAR($B8)&MONTH($B8),'VSAOI data'!$L:$L))/SUMIF('VSAOI data'!$AB:$AB,YEAR($B8)&MONTH($B8),'VSAOI data'!$Q:$Q),"-") -> -
B9: 1900-07-31 | C9: =SUMIF('VSAOI data'!$Y:$Y,YEAR($B9)&MONTH($B9),'VSAOI data'!$J:$J)+SUMIF('VSAOI data'!$Y:$Y,YEAR($B9)&MONTH($B9),'VSAOI data'!$L:$L) -> 0 | D9: =SUMIF('VSAOI data'!$Z:$Z,YEAR($B9)&MONTH($B9)&"D*",'VSAOI data'!$AP:$AP)+SUMIF('VSAOI data'!$Z:$Z,YEAR($B9)&MONTH($B9)&"C*",'VSAOI data'!$AP:$AP)+SUMIF('VSAOI data'!$Z:$Z,YEAR($B9)&MONTH($B9)&"A*",'VSAOI data'!$AP:$AP) -> 0 | E9: =SUMIF('VSAOI data'!$Z:$Z,YEAR($B9)&MONTH($B9)&"D*",'VSAOI data'!$AO:$AO)+SUMIF('VSAOI data'!$Z:$Z,YEAR($B9)&MONTH($B9)&"C*",'VSAOI data'!$AO:$AO)+SUMIF('VSAOI data'!$Z:$Z,YEAR($B9)&MONTH($B9)&"A*",'VSAOI data'!$AO:$AO) -> 0 | F9: 0 | G9: =SUMIF('VSAOI data'!$Y:$Y,YEAR($B9)&MONTH($B9),'VSAOI data'!$K:$K)+SUMIF('VSAOI data'!$Y:$Y,YEAR($B9)&MONTH($B9),'VSAOI data'!$M:$M) -> 0 | H9: 0 | I9: =COUNTIF('VSAOI data'!$AA:$AA,YEAR($B9)&MONTH($B9)&"Tab*Ir")-COUNTIF('VSAOI data'!$AA:$AA,YEAR($B9)&MONTH($B9)&"Tab4*Ir") -> 0 | J9: =COUNTIF('VSAOI data'!$AA:$AA,YEAR($B9)&MONTH($B9)&"Tab*Nav")-COUNTIF('VSAOI data'!$AA:$AA,YEAR($B9)&MONTH($B9)&"Tab4*Nav") -> 0 | K9: =SUMIF('VSAOI data'!$Z:$Z,YEAR($B9)&MONTH($B9)&"D*",'VSAOI data'!$AI:$AI)+SUMIF('VSAOI data'!$Z:$Z,YEAR($B9)&MONTH($B9)&"C*",'VSAOI data'!$AI:$AI)+SUMIF('VSAOI data'!$Z:$Z,YEAR($B9)&MONTH($B9)&"A*",'VSAOI data'!$AI:$AI) -> 0 | L9: =SUMIF('VSAOI data'!$Y:$Y,YEAR($B9)&MONTH($B9),'VSAOI data'!$N:$N) -> 0 | M9: =SUMIF('VSAOI data'!$Z:$Z,YEAR($B9)&MONTH($B9)&"D*",'VSAOI data'!$AM:$AM)+SUMIF('VSAOI data'!$Z:$Z,YEAR($B9)&MONTH($B9)&"C*",'VSAOI data'!$AM:$AM)+SUMIF('VSAOI data'!$Z:$Z,YEAR($B9)&MONTH($B9)&"A*",'VSAOI data'!$AM:$AM) -> 0 | N9: =IF('Sakuma lapa'!$J$8="iepriekšējo mēnesi",IF(C10>0,M9-L10,0),IF(C9>0,M9-L9,0)) -> 0 | O9: =SUMIF('VSAOI data'!$Y:$Y,YEAR($B9)&MONTH($B9),'VSAOI data'!$P:$P) -> 0 | P9: =SUMIF('VSAOI data'!$Y:$Y,YEAR($B9)&MONTH($B9),'VSAOI data'!$Q:$Q) -> 0 | Q9: =COUNTIF('VSAOI data'!$AA:$AA,YEAR($B9)&MONTH($B9)&"Tab4G*") -> 0 | R9: =IFERROR((SUMIF('VSAOI data'!$AB:$AB,YEAR($B9)&MONTH($B9),'VSAOI data'!$J:$J)+SUMIF('VSAOI data'!$AB:$AB,YEAR($B9)&MONTH($B9),'VSAOI data'!$L:$L))/COUNTIF('VSAOI data'!$AB:$AB,YEAR($B9)&MONTH($B9)),"-") -> - | S9: =IFERROR((SUMIF('VSAOI data'!$AB:$AB,YEAR($B9)&MONTH($B9),'VSAOI data'!$J:$J)+SUMIF('VSAOI data'!$AB:$AB,YEAR($B9)&MONTH($B9),'VSAOI data'!$L:$L))/SUMIF('VSAOI data'!$AB:$AB,YEAR($B9)&MONTH($B9),'VSAOI data'!$Q:$Q),"-") -> -
B10: 1900-08-31 | C10: =SUMIF('VSAOI data'!$Y:$Y,YEAR($B10)&MONTH($B10),'VSAOI data'!$J:$J)+SUMIF('VSAOI data'!$Y:$Y,YEAR($B10)&MONTH($B10),'VSAOI data'!$L:$L) -> 0 | D10: =SUMIF('VSAOI data'!$Z:$Z,YEAR($B10)&MONTH($B10)&"D*",'VSAOI data'!$AP:$AP)+SUMIF('VSAOI data'!$Z:$Z,YEAR($B10)&MONTH($B10)&"C*",'VSAOI data'!$AP:$AP)+SUMIF('VSAOI data'!$Z:$Z,YEAR($B10)&MONTH($B10)&"A*",'VSAOI data'!$AP:$AP) -> 0 | E10: =SUMIF('VSAOI data'!$Z:$Z,YEAR($B10)&MONTH($B10)&"D*",'VSAOI data'!$AO:$AO)+SUMIF('VSAOI data'!$Z:$Z,YEAR($B10)&MONTH($B10)&"C*",'VSAOI data'!$AO:$AO)+SUMIF('VSAOI data'!$Z:$Z,YEAR($B10)&MONTH($B10)&"A*",'VSAOI data'!$AO:$AO) -> 0 | F10: 0 | G10: =SUMIF('VSAOI data'!$Y:$Y,YEAR($B10)&MONTH($B10),'VSAOI data'!$K:$K)+SUMIF('VSAOI data'!$Y:$Y,YEAR($B10)&MONTH($B10),'VSAOI data'!$M:$M) -> 0 | H10: 0 | I10: =COUNTIF('VSAOI data'!$AA:$AA,YEAR($B10)&MONTH($B10)&"Tab*Ir")-COUNTIF('VSAOI data'!$AA:$AA,YEAR($B10)&MONTH($B10)&"Tab4*Ir") -> 0 | J10: =COUNTIF('VSAOI data'!$AA:$AA,YEAR($B10)&MONTH($B10)&"Tab*Nav")-COUNTIF('VSAOI data'!$AA:$AA,YEAR($B10)&MONTH($B10)&"Tab4*Nav") -> 0 | K10: =SUMIF('VSAOI data'!$Z:$Z,YEAR($B10)&MONTH($B10)&"D*",'VSAOI data'!$AI:$AI)+SUMIF('VSAOI data'!$Z:$Z,YEAR($B10)&MONTH($B10)&"C*",'VSAOI data'!$AI:$AI)+SUMIF('VSAOI data'!$Z:$Z,YEAR($B10)&MONTH($B10)&"A*",'VSAOI data'!$AI:$AI) -> 0 | L10: =SUMIF('VSAOI data'!$Y:$Y,YEAR($B10)&MONTH($B10),'VSAOI data'!$N:$N) -> 0 | M10: =SUMIF('VSAOI data'!$Z:$Z,YEAR($B10)&MONTH($B10)&"D*",'VSAOI data'!$AM:$AM)+SUMIF('VSAOI data'!$Z:$Z,YEAR($B10)&MONTH($B10)&"C*",'VSAOI data'!$AM:$AM)+SUMIF('VSAOI data'!$Z:$Z,YEAR($B10)&MONTH($B10)&"A*",'VSAOI data'!$AM:$AM) -> 0 | N10: =IF('Sakuma lapa'!$J$8="iepriekšējo mēnesi",IF(C11>0,M10-L11,0),IF(C10>0,M10-L10,0)) -> 0 | O10: =SUMIF('VSAOI data'!$Y:$Y,YEAR($B10)&MONTH($B10),'VSAOI data'!$P:$P) -> 0 | P10: =SUMIF('VSAOI data'!$Y:$Y,YEAR($B10)&MONTH($B10),'VSAOI data'!$Q:$Q) -> 0 | Q10: =COUNTIF('VSAOI data'!$AA:$AA,YEAR($B10)&MONTH($B10)&"Tab4G*") -> 0 | R10: =IFERROR((SUMIF('VSAOI data'!$AB:$AB,YEAR($B10)&MONTH($B10),'VSAOI data'!$J:$J)+SUMIF('VSAOI data'!$AB:$AB,YEAR($B10)&MONTH($B10),'VSAOI data'!$L:$L))/COUNTIF('VSAOI data'!$AB:$AB,YEAR($B10)&MONTH($B10)),"-") -> - | S10: =IFERROR((SUMIF('VSAOI data'!$AB:$AB,YEAR($B10)&MONTH($B10),'VSAOI data'!$J:$J)+SUMIF('VSAOI data'!$AB:$AB,YEAR($B10)&MONTH($B10),'VSAOI data'!$L:$L))/SUMIF('VSAOI data'!$AB:$AB,YEAR($B10)&MONTH($B10),'VSAOI data'!$Q:$Q),"-") -> -
B11: 1900-09-30 | C11: =SUMIF('VSAOI data'!$Y:$Y,YEAR($B11)&MONTH($B11),'VSAOI data'!$J:$J)+SUMIF('VSAOI data'!$Y:$Y,YEAR($B11)&MONTH($B11),'VSAOI data'!$L:$L) -> 0 | D11: =SUMIF('VSAOI data'!$Z:$Z,YEAR($B11)&MONTH($B11)&"D*",'VSAOI data'!$AP:$AP)+SUMIF('VSAOI data'!$Z:$Z,YEAR($B11)&MONTH($B11)&"C*",'VSAOI data'!$AP:$AP)+SUMIF('VSAOI data'!$Z:$Z,YEAR($B11)&MONTH($B11)&"A*",'VSAOI data'!$AP:$AP) -> 0 | E11: =SUMIF('VSAOI data'!$Z:$Z,YEAR($B11)&MONTH($B11)&"D*",'VSAOI data'!$AO:$AO)+SUMIF('VSAOI data'!$Z:$Z,YEAR($B11)&MONTH($B11)&"C*",'VSAOI data'!$AO:$AO)+SUMIF('VSAOI data'!$Z:$Z,YEAR($B11)&MONTH($B11)&"A*",'VSAOI data'!$AO:$AO) -> 0 | F11: 0 | G11: =SUMIF('VSAOI data'!$Y:$Y,YEAR($B11)&MONTH($B11),'VSAOI data'!$K:$K)+SUMIF('VSAOI data'!$Y:$Y,YEAR($B11)&MONTH($B11),'VSAOI data'!$M:$M) -> 0 | H11: 0 | I11: =COUNTIF('VSAOI data'!$AA:$AA,YEAR($B11)&MONTH($B11)&"Tab*Ir")-COUNTIF('VSAOI data'!$AA:$AA,YEAR($B11)&MONTH($B11)&"Tab4*Ir") -> 0 | J11: =COUNTIF('VSAOI data'!$AA:$AA,YEAR($B11)&MONTH($B11)&"Tab*Nav")-COUNTIF('VSAOI data'!$AA:$AA,YEAR($B11)&MONTH($B11)&"Tab4*Nav") -> 0 | K11: =SUMIF('VSAOI data'!$Z:$Z,YEAR($B11)&MONTH($B11)&"D*",'VSAOI data'!$AI:$AI)+SUMIF('VSAOI data'!$Z:$Z,YEAR($B11)&MONTH($B11)&"C*",'VSAOI data'!$AI:$AI)+SUMIF('VSAOI data'!$Z:$Z,YEAR($B11)&MONTH($B11)&"A*",'VSAOI data'!$AI:$AI) -> 0 | L11: =SUMIF('VSAOI data'!$Y:$Y,YEAR($B11)&MONTH($B11),'VSAOI data'!$N:$N) -> 0 | M11: =SUMIF('VSAOI data'!$Z:$Z,YEAR($B11)&MONTH($B11)&"D*",'VSAOI data'!$AM:$AM)+SUMIF('VSAOI data'!$Z:$Z,YEAR($B11)&MONTH($B11)&"C*",'VSAOI data'!$AM:$AM)+SUMIF('VSAOI data'!$Z:$Z,YEAR($B11)&MONTH($B11)&"A*",'VSAOI data'!$AM:$AM) -> 0 | N11: =IF('Sakuma lapa'!$J$8="iepriekšējo mēnesi",IF(C12>0,M11-L12,0),IF(C11>0,M11-L11,0)) -> 0 | O11: =SUMIF('VSAOI data'!$Y:$Y,YEAR($B11)&MONTH($B11),'VSAOI data'!$P:$P) -> 0 | P11: =SUMIF('VSAOI data'!$Y:$Y,YEAR($B11)&MONTH($B11),'VSAOI data'!$Q:$Q) -> 0 | Q11: =COUNTIF('VSAOI data'!$AA:$AA,YEAR($B11)&MONTH($B11)&"Tab4G*") -> 0 | R11: =IFERROR((SUMIF('VSAOI data'!$AB:$AB,YEAR($B11)&MONTH($B11),'VSAOI data'!$J:$J)+SUMIF('VSAOI data'!$AB:$AB,YEAR($B11)&MONTH($B11),'VSAOI data'!$L:$L))/COUNTIF('VSAOI data'!$AB:$AB,YEAR($B11)&MONTH($B11)),"-") -> - | S11: =IFERROR((SUMIF('VSAOI data'!$AB:$AB,YEAR($B11)&MONTH($B11),'VSAOI data'!$J:$J)+SUMIF('VSAOI data'!$AB:$AB,YEAR($B11)&MONTH($B11),'VSAOI data'!$L:$L))/SUMIF('VSAOI data'!$AB:$AB,YEAR($B11)&MONTH($B11),'VSAOI data'!$Q:$Q),"-") -> -
B12: 1900-10-31 | C12: =SUMIF('VSAOI data'!$Y:$Y,YEAR($B12)&MONTH($B12),'VSAOI data'!$J:$J)+SUMIF('VSAOI data'!$Y:$Y,YEAR($B12)&MONTH($B12),'VSAOI data'!$L:$L) -> 0 | D12: =SUMIF('VSAOI data'!$Z:$Z,YEAR($B12)&MONTH($B12)&"D*",'VSAOI data'!$AP:$AP)+SUMIF('VSAOI data'!$Z:$Z,YEAR($B12)&MONTH($B12)&"C*",'VSAOI data'!$AP:$AP)+SUMIF('VSAOI data'!$Z:$Z,YEAR($B12)&MONTH($B12)&"A*",'VSAOI data'!$AP:$AP) -> 0 | E12: =SUMIF('VSAOI data'!$Z:$Z,YEAR($B12)&MONTH($B12)&"D*",'VSAOI data'!$AO:$AO)+SUMIF('VSAOI data'!$Z:$Z,YEAR($B12)&MONTH($B12)&"C*",'VSAOI data'!$AO:$AO)+SUMIF('VSAOI data'!$Z:$Z,YEAR($B12)&MONTH($B12)&"A*",'VSAOI data'!$AO:$AO) -> 0 | F12: 0 | G12: =SUMIF('VSAOI data'!$Y:$Y,YEAR($B12)&MONTH($B12),'VSAOI data'!$K:$K)+SUMIF('VSAOI data'!$Y:$Y,YEAR($B12)&MONTH($B12),'VSAOI data'!$M:$M) -> 0 | H12: 0 | I12: =COUNTIF('VSAOI data'!$AA:$AA,YEAR($B12)&MONTH($B12)&"Tab*Ir")-COUNTIF('VSAOI data'!$AA:$AA,YEAR($B12)&MONTH($B12)&"Tab4*Ir") -> 0 | J12: =COUNTIF('VSAOI data'!$AA:$AA,YEAR($B12)&MONTH($B12)&"Tab*Nav")-COUNTIF('VSAOI data'!$AA:$AA,YEAR($B12)&MONTH($B12)&"Tab4*Nav") -> 0 | K12: =SUMIF('VSAOI data'!$Z:$Z,YEAR($B12)&MONTH($B12)&"D*",'VSAOI data'!$AI:$AI)+SUMIF('VSAOI data'!$Z:$Z,YEAR($B12)&MONTH($B12)&"C*",'VSAOI data'!$AI:$AI)+SUMIF('VSAOI data'!$Z:$Z,YEAR($B12)&MONTH($B12)&"A*",'VSAOI data'!$AI:$AI) -> 0 | L12: =SUMIF('VSAOI data'!$Y:$Y,YEAR($B12)&MONTH($B12),'VSAOI data'!$N:$N) -> 0 | M12: =SUMIF('VSAOI data'!$Z:$Z,YEAR($B12)&MONTH($B12)&"D*",'VSAOI data'!$AM:$AM)+SUMIF('VSAOI data'!$Z:$Z,YEAR($B12)&MONTH($B12)&"C*",'VSAOI data'!$AM:$AM)+SUMIF('VSAOI data'!$Z:$Z,YEAR($B12)&MONTH($B12)&"A*",'VSAOI data'!$AM:$AM) -> 0 | N12: =IF('Sakuma lapa'!$J$8="iepriekšējo mēnesi",IF(C13>0,M12-L13,0),IF(C12>0,M12-L12,0)) -> 0 | O12: =SUMIF('VSAOI data'!$Y:$Y,YEAR($B12)&MONTH($B12),'VSAOI data'!$P:$P) -> 0 | P12: =SUMIF('VSAOI data'!$Y:$Y,YEAR($B12)&MONTH($B12),'VSAOI data'!$Q:$Q) -> 0 | Q12: =COUNTIF('VSAOI data'!$AA:$AA,YEAR($B12)&MONTH($B12)&"Tab4G*") -> 0 | R12: =IFERROR((SUMIF('VSAOI data'!$AB:$AB,YEAR($B12)&MONTH($B12),'VSAOI data'!$J:$J)+SUMIF('VSAOI data'!$AB:$AB,YEAR($B12)&MONTH($B12),'VSAOI data'!$L:$L))/COUNTIF('VSAOI data'!$AB:$AB,YEAR($B12)&MONTH($B12)),"-") -> - | S12: =IFERROR((SUMIF('VSAOI data'!$AB:$AB,YEAR($B12)&MONTH($B12),'VSAOI data'!$J:$J)+SUMIF('VSAOI data'!$AB:$AB,YEAR($B12)&MONTH($B12),'VSAOI data'!$L:$L))/SUMIF('VSAOI data'!$AB:$AB,YEAR($B12)&MONTH($B12),'VSAOI data'!$Q:$Q),"-") -> -
B13: =DATE(YEAR(B12),MONTH(B12)+2,0) -> 1900-11-30 | C13: =SUMIF('VSAOI data'!$Y:$Y,YEAR($B13)&MONTH($B13),'VSAOI data'!$J:$J)+SUMIF('VSAOI data'!$Y:$Y,YEAR($B13)&MONTH($B13),'VSAOI data'!$L:$L) -> 0 | D13: =SUMIF('VSAOI data'!$Z:$Z,YEAR($B13)&MONTH($B13)&"D*",'VSAOI data'!$AP:$AP)+SUMIF('VSAOI data'!$Z:$Z,YEAR($B13)&MONTH($B13)&"C*",'VSAOI data'!$AP:$AP)+SUMIF('VSAOI data'!$Z:$Z,YEAR($B13)&MONTH($B13)&"A*",'VSAOI data'!$AP:$AP) -> 0 | E13: =SUMIF('VSAOI data'!$Z:$Z,YEAR($B13)&MONTH($B13)&"D*",'VSAOI data'!$AO:$AO)+SUMIF('VSAOI data'!$Z:$Z,YEAR($B13)&MONTH($B13)&"C*",'VSAOI data'!$AO:$AO)+SUMIF('VSAOI data'!$Z:$Z,YEAR($B13)&MONTH($B13)&"A*",'VSAOI data'!$AO:$AO) -> 0 | F13: 0 | G13: =SUMIF('VSAOI data'!$Y:$Y,YEAR($B13)&MONTH($B13),'VSAOI data'!$K:$K)+SUMIF('VSAOI data'!$Y:$Y,YEAR($B13)&MONTH($B13),'VSAOI data'!$M:$M) -> 0 | H13: 0 | I13: =COUNTIF('VSAOI data'!$AA:$AA,YEAR($B13)&MONTH($B13)&"Tab*Ir")-COUNTIF('VSAOI data'!$AA:$AA,YEAR($B13)&MONTH($B13)&"Tab4*Ir") -> 0 | J13: =COUNTIF('VSAOI data'!$AA:$AA,YEAR($B13)&MONTH($B13)&"Tab*Nav")-COUNTIF('VSAOI data'!$AA:$AA,YEAR($B13)&MONTH($B13)&"Tab4*Nav") -> 0 | K13: =SUMIF('VSAOI data'!$Z:$Z,YEAR($B13)&MONTH($B13)&"D*",'VSAOI data'!$AI:$AI)+SUMIF('VSAOI data'!$Z:$Z,YEAR($B13)&MONTH($B13)&"C*",'VSAOI data'!$AI:$AI)+SUMIF('VSAOI data'!$Z:$Z,YEAR($B13)&MONTH($B13)&"A*",'VSAOI data'!$AI:$AI) -> 0 | L13: =SUMIF('VSAOI data'!$Y:$Y,YEAR($B13)&MONTH($B13),'VSAOI data'!$N:$N) -> 0 | M13: =SUMIF('VSAOI data'!$Z:$Z,YEAR($B13)&MONTH($B13)&"D*",'VSAOI data'!$AM:$AM)+SUMIF('VSAOI data'!$Z:$Z,YEAR($B13)&MONTH($B13)&"C*",'VSAOI data'!$AM:$AM)+SUMIF('VSAOI data'!$Z:$Z,YEAR($B13)&MONTH($B13)&"A*",'VSAOI data'!$AM:$AM) -> 0 | N13: =IF('Sakuma lapa'!$J$8="iepriekšējo mēnesi",IF(C14>0,M13-L14,0),IF(C13>0,M13-L13,0)) -> 0 | O13: =SUMIF('VSAOI data'!$Y:$Y,YEAR($B13)&MONTH($B13),'VSAOI data'!$P:$P) -> 0 | P13: =SUMIF('VSAOI data'!$Y:$Y,YEAR($B13)&MONTH($B13),'VSAOI data'!$Q:$Q) -> 0 | Q13: =COUNTIF('VSAOI data'!$AA:$AA,YEAR($B13)&MONTH($B13)&"Tab4G*") -> 0 | R13: =IFERROR((SUMIF('VSAOI data'!$AB:$AB,YEAR($B13)&MONTH($B13),'VSAOI data'!$J:$J)+SUMIF('VSAOI data'!$AB:$AB,YEAR($B13)&MONTH($B13),'VSAOI data'!$L:$L))/COUNTIF('VSAOI data'!$AB:$AB,YEAR($B13)&MONTH($B13)),"-") -> - | S13: =IFERROR((SUMIF('VSAOI data'!$AB:$AB,YEAR($B13)&MONTH($B13),'VSAOI data'!$J:$J)+SUMIF('VSAOI data'!$AB:$AB,YEAR($B13)&MONTH($B13),'VSAOI data'!$L:$L))/SUMIF('VSAOI data'!$AB:$AB,YEAR($B13)&MONTH($B13),'VSAOI data'!$Q:$Q),"-") -> -
B14: 1900-12-31 | C14: =SUMIF('VSAOI data'!$Y:$Y,YEAR($B14)&MONTH($B14),'VSAOI data'!$J:$J)+SUMIF('VSAOI data'!$Y:$Y,YEAR($B14)&MONTH($B14),'VSAOI data'!$L:$L) -> 0 | D14: =SUMIF('VSAOI data'!$Z:$Z,YEAR($B14)&MONTH($B14)&"D*",'VSAOI data'!$AP:$AP)+SUMIF('VSAOI data'!$Z:$Z,YEAR($B14)&MONTH($B14)&"C*",'VSAOI data'!$AP:$AP)+SUMIF('VSAOI data'!$Z:$Z,YEAR($B14)&MONTH($B14)&"A*",'VSAOI data'!$AP:$AP) -> 0 | E14: =SUMIF('VSAOI data'!$Z:$Z,YEAR($B14)&MONTH($B14)&"D*",'VSAOI data'!$AO:$AO)+SUMIF('VSAOI data'!$Z:$Z,YEAR($B14)&MONTH($B14)&"C*",'VSAOI data'!$AO:$AO)+SUMIF('VSAOI data'!$Z:$Z,YEAR($B14)&MONTH($B14)&"A*",'VSAOI data'!$AO:$AO) -> 0 | F14: 0 | G14: =SUMIF('VSAOI data'!$Y:$Y,YEAR($B14)&MONTH($B14),'VSAOI data'!$K:$K)+SUMIF('VSAOI data'!$Y:$Y,YEAR($B14)&MONTH($B14),'VSAOI data'!$M:$M) -> 0 | H14: 0 | I14: =COUNTIF('VSAOI data'!$AA:$AA,YEAR($B14)&MONTH($B14)&"Tab*Ir")-COUNTIF('VSAOI data'!$AA:$AA,YEAR($B14)&MONTH($B14)&"Tab4*Ir") -> 0 | J14: =COUNTIF('VSAOI data'!$AA:$AA,YEAR($B14)&MONTH($B14)&"Tab*Nav")-COUNTIF('VSAOI data'!$AA:$AA,YEAR($B14)&MONTH($B14)&"Tab4*Nav") -> 0 | K14: =SUMIF('VSAOI data'!$Z:$Z,YEAR($B14)&MONTH($B14)&"D*",'VSAOI data'!$AI:$AI)+SUMIF('VSAOI data'!$Z:$Z,YEAR($B14)&MONTH($B14)&"C*",'VSAOI data'!$AI:$AI)+SUMIF('VSAOI data'!$Z:$Z,YEAR($B14)&MONTH($B14)&"A*",'VSAOI data'!$AI:$AI) -> 0 | L14: =SUMIF('VSAOI data'!$Y:$Y,YEAR($B14)&MONTH($B14),'VSAOI data'!$N:$N) -> 0 | M14: =SUMIF('VSAOI data'!$Z:$Z,YEAR($B14)&MONTH($B14)&"D*",'VSAOI data'!$AM:$AM)+SUMIF('VSAOI data'!$Z:$Z,YEAR($B14)&MONTH($B14)&"C*",'VSAOI data'!$AM:$AM)+SUMIF('VSAOI data'!$Z:$Z,YEAR($B14)&MONTH($B14)&"A*",'VSAOI data'!$AM:$AM) -> 0 | N14: =IF('Sakuma lapa'!$J$8="iepriekšējo mēnesi",IF(C15>0,M14-#REF!,0),IF(C14>0,M14-L14,0)) -> 0 | O14: =SUMIF('VSAOI data'!$Y:$Y,YEAR($B14)&MONTH($B14),'VSAOI data'!$P:$P) -> 0 | P14: =SUMIF('VSAOI data'!$Y:$Y,YEAR($B14)&MONTH($B14),'VSAOI data'!$Q:$Q) -> 0 | Q14: =COUNTIF('VSAOI data'!$AA:$AA,YEAR($B14)&MONTH($B14)&"Tab4G*") -> 0 | R14: =IFERROR((SUMIF('VSAOI data'!$AB:$AB,YEAR($B14)&MONTH($B14),'VSAOI data'!$J:$J)+SUMIF('VSAOI data'!$AB:$AB,YEAR($B14)&MONTH($B14),'VSAOI data'!$L:$L))/COUNTIF('VSAOI data'!$AB:$AB,YEAR($B14)&MONTH($B14)),"-") -> - | S14: =IFERROR((SUMIF('VSAOI data'!$AB:$AB,YEAR($B14)&MONTH($B14),'VSAOI data'!$J:$J)+SUMIF('VSAOI data'!$AB:$AB,YEAR($B14)&MONTH($B14),'VSAOI data'!$L:$L))/SUMIF('VSAOI data'!$AB:$AB,YEAR($B14)&MONTH($B14),'VSAOI data'!$Q:$Q),"-") -> -
B15: Kopā: | C15: =SUM(C3:C14) -> 0 | D15: =SUM(D3:D14) -> 0 | E15: =SUM(E3:E14) -> 0 | F15: =SUM(F3:F14) -> 0 | G15: =SUM(G3:G14) -> 0 | L15: =SUM(L3:L14) -> 0 | M15: =SUM(M3:M14) -> 0 | N15: =SUM(N3:N14) -> 0 | O15: =SUM(O3:O14) -> 0 | P15: =SUM(P3:P14) -> 0
B17: VG aprēķīns
B18: Aprēķ. novirze | C18: =C15-C17 -> 0 | D18: =D15-D17 -> 0 | E18: 0 | G18: =G15-G17 -> 0 | L18: =L15-L17 -> 0 | O18: =O15-O17 -> 0
G20: (+ parāds, - pārmaksa) | L20: (+ parāds, - pārmaksa) | O20: (+ parāds, - pārmaksa)
G21: VSAOI | L21: IIN | O21: Riska nodeva
H22: VG sakuma saldo | M22: VG sakuma saldo | P22: VG sakuma saldo
G23: ='VSAOI vertikāli'!O37 -> 0 | H23: Aprēķināts - Deklarācija | L23: ='VSAOI vertikāli'!O45 -> 0 | M23: Aprēķināts | O23: ='VSAOI vertikāli'!O53 -> 0 | P23: Aprēķināts
G24: ='VSAOI vertikāli'!O38 -> 0 | H24: Aprēķināts - Citi | L24: ='VSAOI vertikāli'!O46 -> 0 | M24: Aprēķināts - CIti | O24: ='VSAOI vertikāli'!O54 -> 0 | P24: Aprēķināts
G25: =G15-SUM(G23:G24) -> 0 | H25: Apr. starpība | L25: =L15-SUM(L23:L24) -> 0 | M25: Apr. starpība | O25: =O15-SUM(O23:O24) -> 0 | P25: Apr. starpība
G26: ='VSAOI vertikāli'!O39 -> 0 | H26: Iemaksa/Atmaksa/Pārvietošana | L26: ='VSAOI vertikāli'!O47 -> 0 | M26: Iemaksa/Atmaksa/Pārvietošana | O26: ='VSAOI vertikāli'!O55 -> 0 | P26: Iemaksa/Atmaksa/Pārvietošana
H27: VG beigu saldo | M27: VG beigu saldo | P27: VG beigu saldo
G28: =IF(G27="","-",G27-SUM(G22:G23,G26)) -> - | H28: Saldo starpība | L28: =IF(L27="","-",L27-SUM(L22:L23,L26)) -> - | M28: Saldo starpība | O28: =IF(O27="","-",O27-SUM(O22:O23,O26)) -> - | P28: Saldo starpība

Sheet VSAOI pa darbiniekiem
B2: Darbienieks | C2: Statuss | D2: Periods | E2: Bruto alga | F2: Aprēķinātās darba devēja VSAOI | G2: Aprēķinātās darba ņēmēja VSAOI | H2: starpības | I2: KOPĀ VSAOI | J2: Aprēķinātais IIN (par iepr. Menesi) | K2: Riska nodeva | L2: Nostrādātās stundas | M2: Minimālā stundas likme | N2: Stundas likme | O2: 80% no vid.st. likmes valstī | P2: St. likmen mēneša izmaiņas | Q2: DokId

Sheet Ienākumi pa gruppam - Alga
D2: Kritērijs (EUR) | E2: Skaits | F2: % | H2: Bruto alga = Ienākumi + Precizētie ienākumi
B3: 0.01 | C3: 500 | D3: =B3&"-"&C3 -> 0.01-500 | E3: =COUNTIF($E$11:$P$65536,">="&B3)-E4-E5-E6 -> 0 | F3: =E3/SUM($E$3:$E$6) -> 
B4: =C3+0.01 -> 500.01 | C4: 1200 | D4: =B4&"-"&C4 -> 500.01-1200 | E4: =COUNTIF($E$11:$P$65536,">="&B4)-E5-E6 -> 0 | F4: =E4/SUM($E$3:$E$6) -> 
B5: =C4+0.01 -> 1200.01 | C5: 1667 | D5: =B5&"-"&C5 -> 1200.01-1667 | E5: =COUNTIF($E$11:$P$65536,">="&B5)-E6 -> 0 | F5: =E5/SUM($E$3:$E$6) -> 
B6: =C5+0.01 -> 1667.01 | D6: =B6&"+"&C6 -> 1667.01+ | E6: =COUNTIF($E$11:$P$65536,">="&B6) -> 0 | F6: =E6/SUM($E$3:$E$6) -> 
D8: Sum of Bruto alga | E8: Gads | F8: Menesis
E9: (blank)
D10: Persona2 | E10: (blank)
D11: (blank) | E11: 0

Sheet Ienākumi pa gruppam - st.likme
D2: Kritērijs (EUR) | E2: Skaits | F2: % | H2: Bruto alga = Ienākumi + Precizētie ienākumi
B3: 0.01 | C3: 5 | D3: =B3&"-"&C3 -> 0.01-5 | E3: =COUNTIF($E$11:$P$65536,">="&B3)-E4-E5-E6 -> 0 | F3: =E3/SUM($E$3:$E$6) -> 
B4: =C3+0.01 -> 5.01 | C4: 10 | D4: =B4&"-"&C4 -> 5.01-10 | E4: =COUNTIF($E$11:$P$65536,">="&B4)-E5-E6 -> 0 | F4: =E4/SUM($E$3:$E$6) -> 
B5: =C4+0.01 -> 10.01 | C5: 20 | D5: =B5&"-"&C5 -> 10.01-20 | E5: =COUNTIF($E$11:$P$65536,">="&B5)-E6 -> 0 | F5: =E5/SUM($E$3:$E$6) -> 
B6: =C5+0.01 -> 20.01 | D6: =B6&"+"&C6 -> 20.01+ | E6: =COUNTIF($E$11:$P$65536,">="&B6) -> 0 | F6: =E6/SUM($E$3:$E$6) -> 
D8: Vid. st. likme | E8: Gads | F8: Menesis
E9: (blank)
D10: Persona2 | E10: (blank)
D11: (blank)

Sheet Format (hidden)
B2: Darbienieks | C2: Statuss | D2: Periods | E2: Bruto alga | F2: Aprēķinātās darba devēja VSAOI | G2: Aprēķinātās darba ņēmēja VSAOI | H2: starpības | I2: KOPĀ VSAOI | J2: Aprēķinātais IIN (par iepr. Menesi) | K2: Riska nodeva | L2: Nostrādātās stundas | M2: Minimālā stundas likme | N2: Stundas likme | O2: 80% no vid.st. likmes valstī | P2: St. likmen mēneša izmaiņas | Q2: DokId
E3: =SUMIFS('VSAOI data'!$J:$J,'VSAOI data'!$D:$D,$B3)+SUMIFS('VSAOI data'!$L:$L,'VSAOI data'!$D:$D,$B3) -> 0 | F3: =SUMIFS('VSAOI data'!$AP:$AP,'VSAOI data'!$D:$D,$B3) -> 0 | G3: =SUMIFS('VSAOI data'!$AO:$AO,'VSAOI data'!$D:$D,$B3) -> 0 | H3: =I3-SUM(F3:G3) -> 0 | I3: =SUMIFS('VSAOI data'!$K:$K,'VSAOI data'!$D:$D,$B3)+SUMIFS('VSAOI data'!$M:$M,'VSAOI data'!$D:$D,$B3) -> 0 | J3: =SUMIFS('VSAOI data'!$N:$N,'VSAOI data'!$D:$D,$B3) -> 0 | K3: =SUMIFS('VSAOI data'!$P:$P,'VSAOI data'!$D:$D,$B3) -> 0 | L3: =SUMIFS('VSAOI data'!$Q:$Q,'VSAOI data'!$D:$D,$B3) -> 0 | M3: =IF(COUNTIFS('VSAOI data'!$AD:$AD,$B3&"*")=0,"-",(SUMIFS('VSAOI data'!$J:$J,'VSAOI data'!$AD:$AD,$B3&"*")+SUMIFS('VSAOI data'!$L:$L,'VSAOI data'!$AD:$AD,$B3&"*")) /COUNTIFS('VSAOI data'!$AD:$AD,$B3&"*")) -> 0 | N3: =IF(SUMIFS('VSAOI data'!$Q:$Q,'VSAOI data'!$AD:$AD,$B3&"*")=0,"-",(SUMIFS('VSAOI data'!$J:$J,'VSAOI data'!$D:$D,$B3)+SUMIFS('VSAOI data'!$L:$L,'VSAOI data'!$AD:$AD,$B3&"*")) /SUMIFS('VSAOI data'!$Q:$Q,'VSAOI data'!$AD:$AD,$B3&"*")) -> -
E4: =SUMIFS('VSAOI data'!$J:$J,'VSAOI data'!$D:$D,$B4,'VSAOI data'!$E:$E,YEAR($D4),'VSAOI data'!$F:$F,MONTH($D4))+SUMIFS('VSAOI data'!$L:$L,'VSAOI data'!$D:$D,$B4,'VSAOI data'!$E:$E,YEAR($D4),'VSAOI data'!$F:$F,MONTH($D4)) -> 0 | F4: =SUMIFS('VSAOI data'!$AP:$AP,'VSAOI data'!$D:$D,$B4,'VSAOI data'!$E:$E,YEAR($D4),'VSAOI data'!$F:$F,MONTH($D4)) -> 0 | G4: =SUMIFS('VSAOI data'!$AO:$AO,'VSAOI data'!$D:$D,$B4,'VSAOI data'!$E:$E,YEAR($D4),'VSAOI data'!$F:$F,MONTH($D4)) -> 0 | H4: =I4-SUM(F4:G4) -> 0 | I4: =SUMIFS('VSAOI data'!$K:$K,'VSAOI data'!$D:$D,$B4,'VSAOI data'!$E:$E,YEAR($D4),'VSAOI data'!$F:$F,MONTH($D4))+SUMIFS('VSAOI data'!$M:$M,'VSAOI data'!$D:$D,$B4,'VSAOI data'!$E:$E,YEAR($D4),'VSAOI data'!$F:$F,MONTH($D4)) -> 0 | J4: =SUMIFS('VSAOI data'!$N:$N,'VSAOI data'!$D:$D,$B4,'VSAOI data'!$E:$E,YEAR($D4),'VSAOI data'!$F:$F,MONTH($D4)) -> 0 | K4: =SUMIFS('VSAOI data'!$P:$P,'VSAOI data'!$D:$D,$B4,'VSAOI data'!$E:$E,YEAR($D4),'VSAOI data'!$F:$F,MONTH($D4)) -> 0 | L4: =SUMIFS('VSAOI data'!$Q:$Q,'VSAOI data'!$D:$D,$B4,'VSAOI data'!$E:$E,YEAR($D4),'VSAOI data'!$F:$F,MONTH($D4)) -> 0 | M4: =SUMIF('Sakuma lapa'!$N$15:$N$26,D4,'Sakuma lapa'!$R$15:$R$26) -> 0 | N4: =IF(L4=0,"-",ROUND(E4/L4,2)) -> - | P4: =IFERROR(IF(D3="","",N4-N3),"-") -> 
J8: =IF(AND(I8="",OR(M8<>"",L8<>"")),IF(L8="",M8,L8)-1,IF(I8<>"",I8,IF(H8<'Sakuma lapa'!$F$16,'Sakuma lapa'!$F$16,""))) -> 

Sheet Tiesibas (hidden)
D2: DatumsNo | E2: 2025-05-05 | H2: TisWbName | I2: ThisWbCustId | J2: RN | K2: ActivationDate | L2: CompName/Path | M2: Processor/HddSerialId | N2: PROCESSOR_REVISION | O2: USERNAME
D3: DatumsLidz | E3: 2025-05-15 | H3: VSAOI | I3: 1 | J3: 24 | K3: 2020-09-09 | L3: - | M3: - | N3: - | O3: -
D4: Skaitītājs (demo versijai)
D6: ThisWbName | E6: VSAOI
D7: ThisWbCustId | E7: 1
D8: Limenis | E8: D
D10: Nesakonfigurētas tiesības!
D11: Nesakonfigurētas tiesības versijai!
D12: Versijas periods ir beidzies!
D13: Versijas apstrādes uzņēmuma RegNr neatbilst definētam!
D14: Izvelētais RegNr nav definēts šajā versijā!
D15: Lūdzu aizpildiet reģistrācijas numuru!
D16: Versijas Importa/Eksporta skaits sasniedza 20!
D17: Lūdzu veikt faila aktivāciju uz lapas "Instrukcija"!
D18: Fails jau ir aktivizēts šim datoram un lietotājam!
